Workbook

Sheet Main
B10: 2023-06-02
B12: Sheet No. | C12: Template Name | D12: Summary
B13: 1 | C13: Future Intra | D13: For Intraday trading in F&O segment
B14: 2 | C14: Cash Intra | D14: For Intraday trading in cash market segment
B15: 3 | C15: Mid-cap Intra | D15: For Intraday trading in Mid-cap stocks
B16: 4 | C16: Bulk Deals | D16: Reveals Bulk Deals carried on NSE & BSE
B17: 5 | C17: Call Tracker
K27: `

Sheet Future Intra
M5: Back to Main Page
A6: FOR INTRA DAY TRADING | L6: =Main!B10 -> 2023-06-02
A9: Sr.no | B9: Sector | C9: Scrip | D9: Expiry Date | E9: CLOSE RATE | F9: Pivot Point | G9: Supports | J9: Resistances
E10: Point | F10: Point | G10: S1 | H10: S2 | I10: S3 | J10: R1 | K10: R2 | L10: R3 | M10: HIGH | N10: LOW | O10: OI | P10: % Change in OI
A11: 1 | B11: Index | C11: NIFTY | D11: 2023-06-29 | E11: 18570.00 | F11: 18593.00 | G11: 18527.00 | H11: 18484.00 | I11: 18418.00 | J11: 18636.00 | K11: 18702.00 | L11: 18745.00 | M11: 18659 | N11: 18550 | O11: 9751900 | P11: -4.30%
A12: 2 | B12: Index | C12: BANKNIFTY | D12: 2023-06-29 | E12: 43948.25 | F12: 44033.08 | G12: 43776.17 | H12: 43604.08 | I12: 43347.17 | J12: 44205.17 | K12: 44462.08 | L12: 44634.17 | M12: 44290 | N12: 43861 | O12: 2449640 | P12: 3.62%
A13: 3 | B13: Index | C13: FINNIFTY | D13: 2023-06-27 | E13: 19423.30 | F13: 19467.38 | G13: 19347.97 | H13: 19272.63 | I13: 19153.22 | J13: 19542.72 | K13: 19662.13 | L13: 19737.47 | M13: 19586.8 | N13: 19392.05 | O13: 38520 | P13: 9.06%
A14: 4 | B14: Index | C14: MIDCPNIFTY | D14: 2023-06-27 | E14: 7834.00 | F14: 7841.98 | G14: 7812.07 | H14: 7790.13 | I14: 7760.22 | J14: 7863.92 | K14: 7893.83 | L14: 7915.77 | M14: 7871.9 | N14: 7820.05 | O14: 825 | P14: -71.79%
A15: 5 | B15: Chemical | C15: AARTIIND | D15: 2023-06-29 | E15: 518.30 | F15: 519.62 | G15: 515.63 | H15: 512.97 | I15: 508.98 | J15: 522.28 | K15: 526.27 | L15: 528.93 | M15: 523.6 | N15: 516.95 | O15: 5318050 | P15: 1.27%
A16: 6 | B16: Capital_Goods | C16: ABB | D16: 2023-06-29 | E16: 3955.25 | F16: 4007.22 | G16: 3894.88 | H16: 3834.52 | I16: 3722.18 | J16: 4067.58 | K16: 4179.92 | L16: 4240.28 | M16: 4119.55 | N16: 3946.85 | O16: 1449750 | P16: -7.62%
A17: 7 | B17: Pharma | C17: ABBOTINDIA | D17: 2023-06-29 | E17: 21754.45 | F17: 21835.47 | G17: 21618.98 | H17: 21483.52 | I17: 21267.03 | J17: 21970.93 | K17: 22187.42 | L17: 22322.88 | M17: 22051.95 | N17: 21700 | O17: 68120 | P17: 3.21%
A18: 8 | B18: Others | C18: ABCAPITAL | D18: 2023-06-29 | E18: 173.00 | F18: 172.73 | G18: 171.77 | H18: 170.53 | I18: 169.57 | J18: 173.97 | K18: 174.93 | L18: 176.17 | M18: 173.7 | N18: 171.5 | O18: 28987200 | P18: -0.26%
A19: 9 | B19: Textile | C19: ABFRL | D19: 2023-06-29 | E19: 204.15 | F19: 204.05 | G19: 202.60 | H19: 201.05 | I19: 199.60 | J19: 205.60 | K19: 207.05 | L19: 208.60 | M19: 205.5 | N19: 202.5 | O19: 28579200 | P19: 0.31%
A20: 10 | B20: Cement | C20: ACC | D20: 2023-06-29 | E20: 1808.05 | F20: 1811.93 | G20: 1788.87 | H20: 1769.68 | I20: 1746.62 | J20: 1831.12 | K20: 1854.18 | L20: 1873.37 | M20: 1835 | N20: 1792.75 | O20: 5047750 | P20: 0.42%
A21: 11 | B21: Others | C21: ADANIENT | D21: 2023-06-29 | E21: 2507.85 | F21: 2519.93 | G21: 2488.17 | H21: 2468.48 | I21: 2436.72 | J21: 2539.62 | K21: 2571.38 | L21: 2591.07 | M21: 2551.7 | N21: 2500.25 | O21: 9379450 | P21: 0.08%
A22: 12 | B22: Others | C22: ADANIPORTS | D22: 2023-06-29 | E22: 737.15 | F22: 739.02 | G22: 730.08 | H22: 723.02 | I22: 714.08 | J22: 746.08 | K22: 755.02 | L22: 762.08 | M22: 747.95 | N22: 731.95 | O22: 38784150 | P22: 0.56%
A23: 13 | B23: Pharma | C23: ALKEM | D23: 2023-06-29 | E23: 3397.15 | F23: 3406.47 | G23: 3379.28 | H23: 3361.42 | I23: 3334.23 | J23: 3424.33 | K23: 3451.52 | L23: 3469.38 | M23: 3433.65 | N23: 3388.6 | O23: 575800 | P23: 1.20%
A24: 14 | B24: Cement | C24: AMBUJACEM | D24: 2023-06-29 | E24: 432.35 | F24: 430.95 | G24: 427.60 | H24: 422.85 | I24: 419.50 | J24: 435.70 | K24: 439.05 | L24: 443.80 | M24: 434.3 | N24: 426.2 | O24: 58460400 | P24: -0.10%
A25: 15 | B25: Others | C25: APOLLOHOSP | D25: 2023-06-29 | E25: 4842.80 | F25: 4796.77 | G25: 4720.03 | H25: 4597.27 | I25: 4520.53 | J25: 4919.53 | K25: 4996.27 | L25: 5119.03 | M25: 4873.5 | N25: 4674 | O25: 2160750 | P25: 7.23%
A26: 16 | B26: Automobile | C26: APOLLOTYRE | D26: 2023-06-29 | E26: 389.75 | F26: 389.72 | G26: 387.03 | H26: 384.32 | I26: 381.63 | J26: 392.43 | K26: 395.12 | L26: 397.83 | M26: 392.4 | N26: 387 | O26: 13108700 | P26: -0.73%
A27: 17 | B27: Automobile | C27: ASHOKLEY | D27: 2023-06-29 | E27: 147.90 | F27: 147.92 | G27: 146.73 | H27: 145.57 | I27: 144.38 | J27: 149.08 | K27: 150.27 | L27: 151.43 | M27: 149.1 | N27: 146.75 | O27: 70640000 | P27: 1.16%
A28: 18 | B28: FMCG | C28: ASIANPAINT | D28: 2023-06-29 | E28: 3232.75 | F28: 3230.20 | G28: 3212.55 | H28: 3192.35 | I28: 3174.70 | J28: 3250.40 | K28: 3268.05 | L28: 3288.25 | M28: 3247.85 | N28: 3210 | O28: 5217000 | P28: -3.03%
A29: 19 | B29: Others | C29: ASTRAL | D29: 2023-06-29 | E29: 1817.85 | F29: 1825.38 | G29: 1806.77 | H29: 1795.68 | I29: 1777.07 | J29: 1836.47 | K29: 1855.08 | L29: 1866.17 | M29: 1844 | N29: 1814.3 | O29: 1591679 | P29: -1.18%
A30: 20 | B30: Others | C30: ATUL | D30: 2023-06-29 | E30: 6763.30 | F30: 6765.13 | G30: 6710.27 | H30: 6657.23 | I30: 6602.37 | J30: 6818.17 | K30: 6873.03 | L30: 6926.07 | M30: 6820 | N30: 6712.1 | O30: 196500 | P30: 1.55%
A31: 21 | B31: Banking | C31: AUBANK | D31: 2023-06-29 | E31: 765.10 | F31: 767.78 | G31: 760.57 | H31: 756.03 | I31: 748.82 | J31: 772.32 | K31: 779.53 | L31: 784.07 | M31: 775 | N31: 763.25 | O31: 13704000 | P31: -0.65%
A32: 22 | B32: Pharma | C32: AUROPHARMA | D32: 2023-06-29 | E32: 662.60 | F32: 659.50 | G32: 654.10 | H32: 645.60 | I32: 640.20 | J32: 668.00 | K32: 673.40 | L32: 681.90 | M32: 664.9 | N32: 651 | O32: 9165900 | P32: -2.29%
A33: 23 | B33: Banking | C33: AXISBANK | D33: 2023-06-29 | E33: 923.80 | F33: 926.43 | G33: 918.97 | H33: 914.13 | I33: 906.67 | J33: 931.27 | K33: 938.73 | L33: 943.57 | M33: 933.9 | N33: 921.6 | O33: 48390950 | P33: -1.98%
A34: 24 | B34: Automobile | C34: BAJAJ-AUTO | D34: 2023-06-29 | E34: 4674.40 | F34: 4659.90 | G34: 4628.80 | H34: 4583.20 | I34: 4552.10 | J34: 4705.50 | K34: 4736.60 | L34: 4782.20 | M34: 4691 | N34: 4614.3 | O34: 2648000 | P34: 8.19%
A35: 25 | B35: Finance | C35: BAJAJFINSV | D35: 2023-06-29 | E35: 1460.50 | F35: 1460.97 | G35: 1452.93 | H35: 1445.37 | I35: 1437.33 | J35: 1468.53 | K35: 1476.57 | L35: 1484.13 | M35: 1469 | N35: 1453.4 | O35: 9104500 | P35: 0.08%
A36: 26 | B36: Finance | C36: BAJFINANCE | D36: 2023-06-29 | E36: 7068.85 | F36: 7046.42 | G36: 7003.88 | H36: 6938.92 | I36: 6896.38 | J36: 7111.38 | K36: 7153.92 | L36: 7218.88 | M36: 7088.95 | N36: 6981.45 | O36: 3846500 | P36: 0.90%
A37: 27 | B37: Automobile | C37: BALKRISIND | D37: 2023-06-29 | E37: 2297.10 | F37: 2302.30 | G37: 2284.80 | H37: 2272.50 | I37: 2255.00 | J37: 2314.60 | K37: 2332.10 | L37: 2344.40 | M37: 2319.8 | N37: 2290 | O37: 1818300 | P37: -1.46%
A38: 28 | B38: Others | C38: BALRAMCHIN | D38: 2023-06-29 | E38: 392.95 | F38: 394.50 | G38: 389.60 | H38: 386.25 | I38: 381.35 | J38: 397.85 | K38: 402.75 | L38: 406.10 | M38: 399.4 | N38: 391.15 | O38: 6886400 | P38: 0.19%
A39: 29 | B39: Banking | C39: BANDHANBNK | D39: 2023-06-29 | E39: 270.00 | F39: 270.22 | G39: 267.03 | H39: 264.07 | I39: 260.88 | J39: 273.18 | K39: 276.37 | L39: 279.33 | M39: 273.4 | N39: 267.25 | O39: 33821400 | P39: 1.06%
A40: 30 | B40: Banking | C40: BANKBARODA | D40: 2023-06-29 | E40: 185.95 | F40: 186.62 | G40: 184.73 | H40: 183.52 | I40: 181.63 | J40: 187.83 | K40: 189.72 | L40: 190.93 | M40: 188.5 | N40: 185.4 | O40: 93447900 | P40: -0.95%
A41: 31 | B41: FMCG | C41: BATAINDIA | D41: 2023-06-29 | E41: 1584.25 | F41: 1588.40 | G41: 1577.85 | H41: 1571.45 | I41: 1560.90 | J41: 1594.80 | K41: 1605.35 | L41: 1611.75 | M41: 1598.95 | N41: 1582 | O41: 1610550 | P41: -0.40%
A42: 32 | B42: Capital_Goods | C42: BEL | D42: 2023-06-29 | E42: 113.35 | F42: 113.37 | G42: 112.78 | H42: 112.22 | I42: 111.63 | J42: 113.93 | K42: 114.52 | L42: 115.08 | M42: 113.95 | N42: 112.8 | O42: 72851700 | P42: -0.10%
A43: 33 | B43: FMCG | C43: BERGEPAINT | D43: 2023-06-29 | E43: 652.00 | F43: 654.58 | G43: 648.47 | H43: 644.93 | I43: 638.82 | J43: 658.12 | K43: 664.23 | L43: 667.77 | M43: 660.7 | N43: 651.05 | O43: 9033200 | P43: 0.95%
A44: 34 | B44: Automobile | C44: BHARATFORG | D44: 2023-06-29 | E44: 800.30 | F44: 797.28 | G44: 792.52 | H44: 784.73 | I44: 779.97 | J44: 805.07 | K44: 809.83 | L44: 817.62 | M44: 802.05 | N44: 789.5 | O44: 8478000 | P44: -4.23%
A45: 35 | B45: Telecom | C45: BHARTIARTL | D45: 2023-06-29 | E45: 826.45 | F45: 829.00 | G45: 820.05 | H45: 813.65 | I45: 804.70 | J45: 835.40 | K45: 844.35 | L45: 850.75 | M45: 837.95 | N45: 822.6 | O45: 40832900 | P45: -2.01%
A46: 36 | B46: Capital_Goods | C46: BHEL | D46: 2023-06-29 | E46: 82.35 | F46: 82.75 | G46: 81.80 | H46: 81.25 | I46: 80.30 | J46: 83.30 | K46: 84.25 | L46: 84.80 | M46: 83.7 | N46: 82.2 | O46: 104958000 | P46: 0.15%
A47: 37 | B47: Pharma | C47: BIOCON | D47: 2023-06-29 | E47: 247.10 | F47: 247.77 | G47: 246.03 | H47: 244.97 | I47: 243.23 | J47: 248.83 | K47: 250.57 | L47: 251.63 | M47: 249.5 | N47: 246.7 | O47: 25189400 | P47: -0.05%
A48: 38 | B48: Automobile | C48: BOSCHLTD | D48: 2023-06-29 | E48: 18749.50 | F48: 18739.03 | G48: 18636.12 | H48: 18522.73 | I48: 18419.82 | J48: 18852.42 | K48: 18955.33 | L48: 19068.72 | M48: 18841.95 | N48: 18625.65 | O48: 139350 | P48: -2.14%
A49: 39 | B49: Oil_Gas | C49: BPCL | D49: 2023-06-29 | E49: 367.10 | F49: 368.37 | G49: 365.33 | H49: 363.57 | I49: 360.53 | J49: 370.13 | K49: 373.17 | L49: 374.93 | M49: 371.4 | N49: 366.6 | O49: 20820600 | P49: 1.27%
A50: 40 | B50: FMCG | C50: BRITANNIA | D50: 2023-06-29 | E50: 4661.60 | F50: 4646.90 | G50: 4624.85 | H50: 4588.10 | I50: 4566.05 | J50: 4683.65 | K50: 4705.70 | L50: 4742.45 | M50: 4668.95 | N50: 4610.15 | O50: 1362600 | P50: -1.28%
A51: 41 | B51: Technology | C51: BSOFT | D51: 2023-06-29 | E51: 346.05 | F51: 347.92 | G51: 343.13 | H51: 340.22 | I51: 335.43 | J51: 350.83 | K51: 355.62 | L51: 358.53 | M51: 352.7 | N51: 345 | O51: 9376000 | P51: 0.45%
A52: 42 | B52: Banking | C52: CANBK | D52: 2023-06-29 | E52: 311.25 | F52: 311.78 | G52: 309.62 | H52: 307.98 | I52: 305.82 | J52: 313.42 | K52: 315.58 | L52: 317.22 | M52: 313.95 | N52: 310.15 | O52: 42552000 | P52: -1.42%
A53: 43 | B53: Finance | C53: CANFINHOME | D53: 2023-06-29 | E53: 730.90 | F53: 724.68 | G53: 714.22 | H53: 697.53 | I53: 687.07 | J53: 741.37 | K53: 751.83 | L53: 768.52 | M53: 735.15 | N53: 708 | O53: 3633825 | P53: 2.67%
A54: 44 | B54: Others | C54: CHAMBLFERT | D54: 2023-06-29 | E54: 280.40 | F54: 280.80 | G54: 279.10 | H54: 277.80 | I54: 276.10 | J54: 282.10 | K54: 283.80 | L54: 285.10 | M54: 282.5 | N54: 279.5 | O54: 7320900 | P54: -0.37%
A55: 45 | B55: Finance | C55: CHOLAFIN | D55: 2023-06-29 | E55: 1050.35 | F55: 1051.00 | G55: 1044.50 | H55: 1038.65 | I55: 1032.15 | J55: 1056.85 | K55: 1063.35 | L55: 1069.20 | M55: 1057.5 | N55: 1045.15 | O55: 11132500 | P55: 2.30%
A56: 46 | B56: Pharma | C56: CIPLA | D56: 2023-06-29 | E56: 968.20 | F56: 962.68 | G56: 955.62 | H56: 943.03 | I56: 935.97 | J56: 975.27 | K56: 982.33 | L56: 994.92 | M56: 969.75 | N56: 950.1 | O56: 9776650 | P56: 0.55%
A57: 47 | B57: Others | C57: COALINDIA | D57: 2023-06-29 | E57: 230.00 | F57: 228.95 | G57: 227.05 | H57: 224.10 | I57: 222.20 | J57: 231.90 | K57: 233.80 | L57: 236.75 | M57: 230.85 | N57: 226 | O57: 66444000 | P57: 70.33%
A58: 48 | B58: Technology | C58: COFORGE | D58: 2023-06-29 | E58: 4588.85 | F58: 4582.60 | G58: 4547.20 | H58: 4505.55 | I58: 4470.15 | J58: 4624.25 | K58: 4659.65 | L58: 4701.30 | M58: 4618 | N58: 4540.95 | O58: 757950 | P58: 6.13%
A59: 49 | B59: FMCG | C59: COLPAL | D59: 2023-06-29 | E59: 1619.45 | F59: 1619.65 | G59: 1604.35 | H59: 1589.25 | I59: 1573.95 | J59: 1634.75 | K59: 1650.05 | L59: 1665.15 | M59: 1634.95 | N59: 1604.55 | O59: 2809450 | P59: -1.07%
A60: 50 | B60: Others | C60: CONCOR | D60: 2023-06-29 | E60: 663.50 | F60: 668.20 | G60: 657.70 | H60: 651.90 | I60: 641.40 | J60: 674.00 | K60: 684.50 | L60: 690.30 | M60: 678.7 | N60: 662.4 | O60: 5455000 | P60: -0.31%
A61: 51 | B61: Others | C61: COROMANDEL | D61: 2023-06-29 | E61: 952.75 | F61: 956.57 | G61: 946.18 | H61: 939.62 | I61: 929.23 | J61: 963.13 | K61: 973.52 | L61: 980.08 | M61: 966.95 | N61: 950 | O61: 1404900 | P61: -1.38%
A62: 52 | B62: Capital_Goods | C62: CROMPTON | D62: 2023-06-29 | E62: 275.05 | F62: 276.08 | G62: 273.47 | H62: 271.88 | I62: 269.27 | J62: 277.67 | K62: 280.28 | L62: 281.87 | M62: 278.7 | N62: 274.5 | O62: 19139100 | P62: -1.68%
A63: 53 | B63: Banking | C63: CUB | D63: 2023-06-29 | E63: 124.45 | F63: 124.37 | G63: 123.23 | H63: 122.02 | I63: 120.88 | J63: 125.58 | K63: 126.72 | L63: 127.93 | M63: 125.5 | N63: 123.15 | O63: 34245000 | P63: 14.84%
A64: 54 | B64: Capital_Goods | C64: CUMMINSIND | D64: 2023-06-29 | E64: 1757.10 | F64: 1762.63 | G64: 1747.52 | H64: 1737.93 | I64: 1722.82 | J64: 1772.22 | K64: 1787.33 | L64: 1796.92 | M64: 1777.75 | N64: 1753.05 | O64: 2906400 | P64: -3.02%
A65: 55 | B65: FMCG | C65: DABUR | D65: 2023-06-29 | E65: 560.55 | F65: 561.48 | G65: 556.37 | H65: 552.18 | I65: 547.07 | J65: 565.67 | K65: 570.78 | L65: 574.97 | M65: 566.6 | N65: 557.3 | O65: 10706250 | P65: 1.04%
A66: 56 | B66: Cement | C66: DALBHARAT | D66: 2023-06-29 | E66: 2147.35 | F66: 2155.72 | G66: 2135.68 | H66: 2124.02 | I66: 2103.98 | J66: 2167.38 | K66: 2187.42 | L66: 2199.08 | M66: 2175.75 | N66: 2144.05 | O66: 1907000 | P66: 2.09%
A67: 57 | B67: Chemical | C67: DEEPAKNTR | D67: 2023-06-29 | E67: 2075.30 | F67: 2081.30 | G67: 2066.60 | H67: 2057.90 | I67: 2043.20 | J67: 2090.00 | K67: 2104.70 | L67: 2113.40 | M67: 2096 | N67: 2072.6 | O67: 2009900 | P67: 1.02%
A68: 58 | B68: Others | C68: DELTACORP | D68: 2023-06-29 | E68: 243.75 | F68: 244.52 | G68: 242.23 | H68: 240.72 | I68: 238.43 | J68: 246.03 | K68: 248.32 | L68: 249.83 | M68: 246.8 | N68: 243 | O68: 17007200 | P68: 1.78%
A69: 59 | B69: Pharma | C69: DIVISLAB | D69: 2023-06-29 | E69: 3535.80 | F69: 3525.47 | G69: 3478.68 | H69: 3421.57 | I69: 3374.78 | J69: 3582.58 | K69: 3629.37 | L69: 3686.48 | M69: 3572.25 | N69: 3468.35 | O69: 3269950 | P69: -1.27%
A70: 60 | B70: Others | C70: DIXON | D70: 2023-06-29 | E70: 3920.10 | F70: 3933.77 | G70: 3838.78 | H70: 3757.47 | I70: 3662.48 | J70: 4015.08 | K70: 4110.07 | L70: 4191.38 | M70: 4028.75 | N70: 3852.45 | O70: 1219175 | P70: 2.17%
A71: 61 | B71: Realty | C71: DLF | D71: 2023-06-29 | E71: 479.40 | F71: 478.87 | G71: 475.73 | H71: 472.07 | I71: 468.93 | J71: 482.53 | K71: 485.67 | L71: 489.33 | M71: 482 | N71: 475.2 | O71: 33537900 | P71: -1.83%
A72: 62 | B72: Pharma | C72: DRREDDY | D72: 2023-06-29 | E72: 4584.85 | F72: 4568.85 | G72: 4545.85 | H72: 4506.85 | I72: 4483.85 | J72: 4607.85 | K72: 4630.85 | L72: 4669.85 | M72: 4591.85 | N72: 4529.85 | O72: 3217750 | P72: -0.89%
A73: 63 | B73: Automobile | C73: EICHERMOT | D73: 2023-06-29 | E73: 3725.70 | F73: 3726.08 | G73: 3702.17 | H73: 3678.63 | I73: 3654.72 | J73: 3749.62 | K73: 3773.53 | L73: 3797.07 | M73: 3750 | N73: 3702.55 | O73: 3291050 | P73: 0.20%
A74: 64 | B74: Automobile | C74: ESCORTS | D74: 2023-06-29 | E74: 2203.40 | F74: 2202.77 | G74: 2182.53 | H74: 2161.67 | I74: 2141.43 | J74: 2223.63 | K74: 2243.87 | L74: 2264.73 | M74: 2223 | N74: 2181.9 | O74: 1178925 | P74: 0.85%
A75: 65 | B75: Automobile | C75: EXIDEIND | D75: 2023-06-29 | E75: 212.55 | F75: 213.22 | G75: 211.03 | H75: 209.52 | I75: 207.33 | J75: 214.73 | K75: 216.92 | L75: 218.43 | M75: 215.4 | N75: 211.7 | O75: 19058400 | P75: -2.27%
A76: 66 | B76: Banking | C76: FEDERALBNK | D76: 2023-06-29 | E76: 126.00 | F76: 126.10 | G76: 125.55 | H76: 125.10 | I76: 124.55 | J76: 126.55 | K76: 127.10 | L76: 127.55 | M76: 126.65 | N76: 125.65 | O76: 81165000 | P76: 1.18%
A77: 67 | B77: Oil_Gas | C77: GAIL | D77: 2023-06-29 | E77: 106.15 | F77: 105.53 | G77: 104.62 | H77: 103.08 | I77: 102.17 | J77: 107.07 | K77: 107.98 | L77: 109.52 | M77: 106.45 | N77: 104 | O77: 66227700 | P77: 0.39%
A78: 68 | B78: Pharma | C78: GLENMARK | D78: 2023-06-29 | E78: 613.55 | F78: 611.02 | G78: 604.78 | H78: 596.02 | I78: 589.78 | J78: 619.78 | K78: 626.02 | L78: 634.78 | M78: 617.25 | N78: 602.25 | O78: 7305100 | P78: -2.36%
A79: 69 | B79: Infrastructure | C79: GMRINFRA | D79: 2023-06-29 | E79: 41.05 | F79: 41.05 | G79: 40.80 | H79: 40.55 | I79: 40.30 | J79: 41.30 | K79: 41.55 | L79: 41.80 | M79: 41.3 | N79: 40.8 | O79: 148297500 | P79: -0.03%
A80: 70 | B80: Others | C80: GNFC | D80: 2023-06-29 | E80: 586.85 | F80: 590.58 | G80: 582.02 | H80: 577.18 | I80: 568.62 | J80: 595.42 | K80: 603.98 | L80: 608.82 | M80: 599.15 | N80: 585.75 | O80: 6137300 | P80: 2.43%
A81: 71 | B81: FMCG | C81: GODREJCP | D81: 2023-06-29 | E81: 1061.60 | F81: 1063.88 | G81: 1055.82 | H81: 1050.03 | I81: 1041.97 | J81: 1069.67 | K81: 1077.73 | L81: 1083.52 | M81: 1071.95 | N81: 1058.1 | O81: 6172000 | P81: -0.79%
A82: 72 | B82: Realty | C82: GODREJPROP | D82: 2023-06-29 | E82: 1412.20 | F82: 1414.92 | G82: 1396.83 | H82: 1381.47 | I82: 1363.38 | J82: 1430.28 | K82: 1448.37 | L82: 1463.73 | M82: 1433 | N82: 1399.55 | O82: 3904075 | P82: -4.42%
A83: 73 | B83: Pharma | C83: GRANULES | D83: 2023-06-29 | E83: 289.05 | F83: 287.73 | G83: 285.67 | H83: 282.28 | I83: 280.22 | J83: 291.12 | K83: 293.18 | L83: 296.57 | M83: 289.8 | N83: 284.35 | O83: 8042000 | P83: -3.46%
A84: 74 | B84: Cement | C84: GRASIM | D84: 2023-06-29 | E84: 1709.40 | F84: 1714.72 | G84: 1701.68 | H84: 1693.97 | I84: 1680.93 | J84: 1722.43 | K84: 1735.47 | L84: 1743.18 | M84: 1727.75 | N84: 1707 | O84: 12475875 | P84: 0.02%
A85: 75 | B85: Oil_Gas | C85: GUJGASLTD | D85: 2023-06-29 | E85: 489.85 | F85: 492.00 | G85: 480.60 | H85: 471.35 | I85: 459.95 | J85: 501.25 | K85: 512.65 | L85: 521.90 | M85: 503.4 | N85: 482.75 | O85: 5403750 | P85: 2.34%
A86: 76 | B86: Others | C86: HAL | D86: 2023-06-29 | E86: 3070.05 | F86: 3068.10 | G86: 3048.95 | H86: 3027.85 | I86: 3008.70 | J86: 3089.20 | K86: 3108.35 | L86: 3129.45 | M86: 3087.25 | N86: 3047 | O86: 4259700 | P86: 4.02%
A87: 77 | B87: Capital_Goods | C87: HAVELLS | D87: 2023-06-29 | E87: 1336.10 | F87: 1336.20 | G87: 1307.40 | H87: 1278.70 | I87: 1249.90 | J87: 1364.90 | K87: 1393.70 | L87: 1422.40 | M87: 1365 | N87: 1307.5 | O87: 5717500 | P87: 4.74%
A88: 78 | B88: Technology | C88: HCLTECH | D88: 2023-06-29 | E88: 1146.10 | F88: 1149.40 | G88: 1139.55 | H88: 1133.00 | I88: 1123.15 | J88: 1155.95 | K88: 1165.80 | L88: 1172.35 | M88: 1159.25 | N88: 1142.85 | O88: 9879100 | P88: -1.40%
A89: 79 | B89: Finance | C89: HDFC | D89: 2023-06-29 | E89: 2662.70 | F89: 2667.33 | G89: 2653.37 | H89: 2644.03 | I89: 2630.07 | J89: 2676.67 | K89: 2690.63 | L89: 2699.97 | M89: 2681.3 | N89: 2658 | O89: 26134800 | P89: -0.43%
A90: 80 | B90: Finance | C90: HDFCAMC | D90: 2023-06-29 | E90: 1949.05 | F90: 1956.75 | G90: 1937.55 | H90: 1926.05 | I90: 1906.85 | J90: 1968.25 | K90: 1987.45 | L90: 1998.95 | M90: 1975.95 | N90: 1945.25 | O90: 2548200 | P90: -0.38%
A91: 81 | B91: Banking | C91: HDFCBANK | D91: 2023-06-29 | E91: 1615.75 | F91: 1619.62 | G91: 1609.33 | H91: 1602.92 | I91: 1592.63 | J91: 1626.03 | K91: 1636.32 | L91: 1642.73 | M91: 1629.9 | N91: 1613.2 | O91: 80235100 | P91: 2.95%
A92: 82 | B92: Finance | C92: HDFCLIFE | D92: 2023-06-29 | E92: 584.25 | F92: 587.28 | G92: 579.77 | H92: 575.28 | I92: 567.77 | J92: 591.77 | K92: 599.28 | L92: 603.77 | M92: 594.8 | N92: 582.8 | O92: 19076200 | P92: -1.37%
A93: 83 | B93: Automobile | C93: HEROMOTOCO | D93: 2023-06-29 | E93: 2812.95 | F93: 2802.87 | G93: 2775.73 | H93: 2738.52 | I93: 2711.38 | J93: 2840.08 | K93: 2867.22 | L93: 2904.43 | M93: 2830 | N93: 2765.65 | O93: 4098900 | P93: -0.18%
A94: 84 | B94: Metals | C94: HINDALCO | D94: 2023-06-29 | E94: 409.25 | F94: 411.75 | G94: 406.15 | H94: 403.05 | I94: 397.45 | J94: 414.85 | K94: 420.45 | L94: 423.55 | M94: 417.35 | N94: 408.65 | O94: 31971800 | P94: 0.45%
A95: 85 | B95: Metals | C95: HINDCOPPER | D95: 2023-06-29 | E95: 112.10 | F95: 112.85 | G95: 111.10 | H95: 110.10 | I95: 108.35 | J95: 113.85 | K95: 115.60 | L95: 116.60 | M95: 114.6 | N95: 111.85 | O95: 24365900 | P95: 1.15%
A96: 86 | B96: Oil_Gas | C96: HINDPETRO | D96: 2023-06-29 | E96: 262.15 | F96: 264.35 | G96: 259.55 | H96: 256.95 | I96: 252.15 | J96: 266.95 | K96: 271.75 | L96: 274.35 | M96: 269.15 | N96: 261.75 | O96: 21149100 | P96: 3.17%
A97: 87 | B97: FMCG | C97: HINDUNILVR | D97: 2023-06-29 | E97: 2687.25 | F97: 2687.83 | G97: 2653.67 | H97: 2620.08 | I97: 2585.92 | J97: 2721.42 | K97: 2755.58 | L97: 2789.17 | M97: 2722 | N97: 2654.25 | O97: 9398100 | P97: -1.85%
A98: 88 | B98: Finance | C98: IBULHSGFIN | D98: 2023-06-29 | E98: 115.35 | F98: 116.23 | G98: 114.12 | H98: 112.88 | I98: 110.77 | J98: 117.47 | K98: 119.58 | L98: 120.82 | M98: 118.35 | N98: 115 | O98: 52628500 | P98: 1.32%
A99: 89 | B99: Banking | C99: ICICIBANK | D99: 2023-06-29 | E99: 942.60 | F99: 946.73 | G99: 935.47 | H99: 928.33 | I99: 917.07 | J99: 953.87 | K99: 965.13 | L99: 972.27 | M99: 958 | N99: 939.6 | O99: 68008500 | P99: -0.08%
A100: 90 | B100: Finance | C100: ICICIGI | D100: 2023-06-29 | E100: 1224.60 | F100: 1211.68 | G100: 1196.02 | H100: 1167.43 | I100: 1151.77 | J100: 1240.27 | K100: 1255.93 | L100: 1284.52 | M100: 1227.35 | N100: 1183.1 | O100: 4857225 | P100: -2.66%
A101: 91 | B101: Finance | C101: ICICIPRULI | D101: 2023-06-29 | E101: 479.15 | F101: 477.42 | G101: 469.88 | H101: 460.62 | I101: 453.08 | J101: 486.68 | K101: 494.22 | L101: 503.48 | M101: 484.95 | N101: 468.15 | O101: 14124000 | P101: -2.08%
A102: 92 | B102: Telecom | C102: IDEA | D102: 2023-06-29 | E102: 7.20 | F102: 7.23 | G102: 7.17 | H102: 7.13 | I102: 7.07 | J102: 7.27 | K102: 7.33 | L102: 7.37 | M102: 7.3 | N102: 7.2 | O102: 543270000 | P102: -0.31%
A103: 93 | B103: Finance | C103: IDFC | D103: 2023-06-29 | E103: 100.05 | F103: 100.05 | G103: 99.15 | H103: 98.25 | I103: 97.35 | J103: 100.95 | K103: 101.85 | L103: 102.75 | M103: 100.95 | N103: 99.15 | O103: 173620000 | P103: 0.20%
A104: 94 | B104: Banking | C104: IDFCFIRSTB | D104: 2023-06-29 | E104: 72.30 | F104: 72.25 | G104: 71.30 | H104: 70.30 | I104: 69.35 | J104: 73.25 | K104: 74.20 | L104: 75.20 | M104: 73.2 | N104: 71.25 | O104: 218625000 | P104: 3.01%
A105: 95 | B105: Others | C105: IEX | D105: 2023-06-29 | E105: 154.15 | F105: 154.45 | G105: 153.50 | H105: 152.85 | I105: 151.90 | J105: 155.10 | K105: 156.05 | L105: 156.70 | M105: 155.4 | N105: 153.8 | O105: 38358750 | P105: -0.68%
A106: 96 | B106: Oil_Gas | C106: IGL | D106: 2023-06-29 | E106: 474.10 | F106: 474.90 | G106: 470.10 | H106: 466.10 | I106: 461.30 | J106: 478.90 | K106: 483.70 | L106: 487.70 | M106: 479.7 | N106: 470.9 | O106: 7832000 | P106: 5.44%
A107: 97 | B107: Infrastructure | C107: INDHOTEL | D107: 2023-06-29 | E107: 396.15 | F107: 393.05 | G107: 389.40 | H107: 382.65 | I107: 379.00 | J107: 399.80 | K107: 403.45 | L107: 410.20 | M107: 396.7 | N107: 386.3 | O107: 17396000 | P107: -7.40%
A108: 98 | B108: Cement | C108: INDIACEM | D108: 2023-06-29 | E108: 212.40 | F108: 210.00 | G108: 205.05 | H108: 197.70 | I108: 192.75 | J108: 217.35 | K108: 222.30 | L108: 229.65 | M108: 214.95 | N108: 202.65 | O108: 19467700 | P108: 11.12%
A109: 99 | B109: Others | C109: INDIAMART | D109: 2023-06-29 | E109: 5636.25 | F109: 5641.18 | G109: 5582.32 | H109: 5528.38 | I109: 5469.52 | J109: 5695.12 | K109: 5753.98 | L109: 5807.92 | M109: 5700.05 | N109: 5587.25 | O109: 358050 | P109: 2.36%
A110: 100 | B110: Others | C110: INDIGO | D110: 2023-06-29 | E110: 2352.75 | F110: 2360.80 | G110: 2339.95 | H110: 2327.15 | I110: 2306.30 | J110: 2373.60 | K110: 2394.45 | L110: 2407.25 | M110: 2381.65 | N110: 2348 | O110: 3235500 | P110: -0.59%
A111: 101 | B111: Banking | C111: INDUSINDBK | D111: 2023-06-29 | E111: 1284.00 | F111: 1279.07 | G111: 1264.78 | H111: 1245.57 | I111: 1231.28 | J111: 1298.28 | K111: 1312.57 | L111: 1331.78 | M111: 1293.35 | N111: 1259.85 | O111: 19901500 | P111: 2.43%
A112: 102 | B112: Telecom | C112: INDUSTOWER | D112: 2023-06-29 | E112: 159.50 | F112: 159.38 | G112: 157.02 | H112: 154.53 | I112: 152.17 | J112: 161.87 | K112: 164.23 | L112: 166.72 | M112: 161.75 | N112: 156.9 | O112: 61727200 | P112: -4.50%
A113: 103 | B113: Technology | C113: INFY | D113: 2023-06-29 | E113: 1309.40 | F113: 1312.28 | G113: 1304.77 | H113: 1300.13 | I113: 1292.62 | J113: 1316.92 | K113: 1324.43 | L113: 1329.07 | M113: 1319.8 | N113: 1307.65 | O113: 43624000 | P113: -0.53%
A114: 104 | B114: Technology | C114: INTELLECT | D114: 2023-06-29 | E114: 606.85 | F114: 601.35 | G114: 593.70 | H114: 580.55 | I114: 572.90 | J114: 614.50 | K114: 622.15 | L114: 635.30 | M114: 609 | N114: 588.2 | O114: 3300700 | P114: 4.67%
A115: 105 | B115: Oil_Gas | C115: IOC | D115: 2023-06-29 | E115: 90.90 | F115: 90.92 | G115: 90.33 | H115: 89.77 | I115: 89.18 | J115: 91.48 | K115: 92.07 | L115: 92.63 | M115: 91.5 | N115: 90.35 | O115: 60001500 | P115: -3.86%
A116: 106 | B116: Pharma | C116: IPCALAB | D116: 2023-06-29 | E116: 709.50 | F116: 708.33 | G116: 702.67 | H116: 695.83 | I116: 690.17 | J116: 715.17 | K116: 720.83 | L116: 727.67 | M116: 714 | N116: 701.5 | O116: 3357250 | P116: -1.21%
A117: 107 | B117: Others | C117: IRCTC | D117: 2023-06-29 | E117: 653.20 | F117: 656.25 | G117: 648.35 | H117: 643.50 | I117: 635.60 | J117: 661.10 | K117: 669.00 | L117: 673.85 | M117: 664.15 | N117: 651.4 | O117: 13663125 | P117: -1.30%
A118: 108 | B118: FMCG | C118: ITC | D118: 2023-06-29 | E118: 442.80 | F118: 444.67 | G118: 440.28 | H118: 437.77 | I118: 433.38 | J118: 447.18 | K118: 451.57 | L118: 454.08 | M118: 449.05 | N118: 442.15 | O118: 73652800 | P118: -0.71%
A119: 109 | B119: Metals | C119: JINDALSTEL | D119: 2023-06-29 | E119: 513.00 | F119: 516.18 | G119: 507.87 | H119: 502.73 | I119: 494.42 | J119: 521.32 | K119: 529.63 | L119: 534.77 | M119: 524.5 | N119: 511.05 | O119: 24396250 | P119: 2.72%
A120: 110 | B120: Cement | C120: JKCEMENT | D120: 2023-06-29 | E120: 3232.95 | F120: 3234.40 | G120: 3213.55 | H120: 3194.15 | I120: 3173.30 | J120: 3253.80 | K120: 3274.65 | L120: 3294.05 | M120: 3255.25 | N120: 3215 | O120: 534500 | P120: 1.42%
A121: 111 | B121: Metals | C121: JSWSTEEL | D121: 2023-06-29 | E121: 698.95 | F121: 700.52 | G121: 694.68 | H121: 690.42 | I121: 684.58 | J121: 704.78 | K121: 710.62 | L121: 714.88 | M121: 706.35 | N121: 696.25 | O121: 29235600 | P121: 0.35%
A122: 112 | B122: Others | C122: JUBLFOOD | D122: 2023-06-29 | E122: 491.25 | F122: 489.83 | G122: 483.77 | H122: 476.28 | I122: 470.22 | J122: 497.32 | K122: 503.38 | L122: 510.87 | M122: 495.9 | N122: 482.35 | O122: 15443750 | P122: 0.62%
A123: 113 | B123: Banking | C123: KOTAKBANK | D123: 2023-06-29 | E123: 1927.45 | F123: 1940.33 | G123: 1908.82 | H123: 1890.18 | I123: 1858.67 | J123: 1958.97 | K123: 1990.48 | L123: 2009.12 | M123: 1971.85 | N123: 1921.7 | O123: 31034800 | P123: 8.63%
A124: 114 | B124: Finance | C124: L&TFH | D124: 2023-06-29 | E124: 105.60 | F124: 105.77 | G124: 104.88 | H124: 104.17 | I124: 103.28 | J124: 106.48 | K124: 107.37 | L124: 108.08 | M124: 106.65 | N124: 105.05 | O124: 68054424 | P124: 0.45%
A125: 115 | B125: Others | C125: LALPATHLAB | D125: 2023-06-29 | E125: 2017.00 | F125: 2030.30 | G125: 1998.65 | H125: 1980.30 | I125: 1948.65 | J125: 2048.65 | K125: 2080.30 | L125: 2098.65 | M125: 2061.95 | N125: 2011.95 | O125: 697600 | P125: 9.32%
A126: 116 | B126: Pharma | C126: LAURUSLABS | D126: 2023-06-29 | E126: 342.00 | F126: 341.33 | G126: 336.17 | H126: 330.33 | I126: 325.17 | J126: 347.17 | K126: 352.33 | L126: 358.17 | M126: 346.5 | N126: 335.5 | O126: 13207700 | P126: 5.49%
A127: 117 | B127: Finance | C127: LICHSGFIN | D127: 2023-06-29 | E127: 378.60 | F127: 378.07 | G127: 375.13 | H127: 371.67 | I127: 368.73 | J127: 381.53 | K127: 384.47 | L127: 387.93 | M127: 381 | N127: 374.6 | O127: 14752000 | P127: -2.41%
A128: 118 | B128: Capital_Goods | C128: LT | D128: 2023-06-29 | E128: 2223.80 | F128: 2225.35 | G128: 2215.00 | H128: 2206.20 | I128: 2195.85 | J128: 2234.15 | K128: 2244.50 | L128: 2253.30 | M128: 2235.7 | N128: 2216.55 | O128: 13770900 | P128: -0.58%
A129: 119 | B129: Technology | C129: LTIM | D129: 2023-06-29 | E129: 4998.05 | F129: 5021.93 | G129: 4966.22 | H129: 4934.38 | I129: 4878.67 | J129: 5053.77 | K129: 5109.48 | L129: 5141.32 | M129: 5077.65 | N129: 4990.1 | O129: 1621200 | P129: 2.82%
A130: 120 | B130: Technology | C130: LTTS | D130: 2023-06-29 | E130: 3915.55 | F130: 3924.52 | G130: 3900.03 | H130: 3884.52 | I130: 3860.03 | J130: 3940.03 | K130: 3964.52 | L130: 3980.03 | M130: 3949 | N130: 3909 | O130: 1126400 | P130: -0.55%
A131: 121 | B131: Pharma | C131: LUPIN | D131: 2023-06-29 | E131: 817.30 | F131: 816.83 | G131: 812.07 | H131: 806.83 | I131: 802.07 | J131: 822.07 | K131: 826.83 | L131: 832.07 | M131: 821.6 | N131: 811.6 | O131: 6820400 | P131: -0.64%
A132: 122 | B132: Automobile | C132: M&M | D132: 2023-06-29 | E132: 1327.65 | F132: 1330.68 | G132: 1315.07 | H132: 1302.48 | I132: 1286.87 | J132: 1343.27 | K132: 1358.88 | L132: 1371.47 | M132: 1346.3 | N132: 1318.1 | O132: 13271300 | P132: -1.85%
A133: 123 | B133: Finance | C133: M&MFIN | D133: 2023-06-29 | E133: 295.35 | F133: 292.63 | G133: 288.72 | H133: 282.08 | I133: 278.17 | J133: 299.27 | K133: 303.18 | L133: 309.82 | M133: 296.55 | N133: 286 | O133: 26620000 | P133: -0.88%
A134: 124 | B134: Finance | C134: MANAPPURAM | D134: 2023-06-29 | E134: 114.30 | F134: 113.53 | G134: 111.42 | H134: 108.53 | I134: 106.42 | J134: 116.42 | K134: 118.53 | L134: 121.42 | M134: 115.65 | N134: 110.65 | O134: 60288000 | P134: 14.44%
A135: 125 | B135: FMCG | C135: MARICO | D135: 2023-06-29 | E135: 558.70 | F135: 554.82 | G135: 547.13 | H135: 535.57 | I135: 527.88 | J135: 566.38 | K135: 574.07 | L135: 585.63 | M135: 562.5 | N135: 543.25 | O135: 10256400 | P135: 4.24%
A136: 126 | B136: Automobile | C136: MARUTI | D136: 2023-06-29 | E136: 9380.25 | F136: 9363.33 | G136: 9286.92 | H136: 9193.58 | I136: 9117.17 | J136: 9456.67 | K136: 9533.08 | L136: 9626.42 | M136: 9439.75 | N136: 9270 | O136: 2110400 | P136: 0.93%
A137: 127 | B137: FMCG | C137: MCDOWELL-N | D137: 2023-06-29 | E137: 880.35 | F137: 883.65 | G137: 873.70 | H137: 867.05 | I137: 857.10 | J137: 890.30 | K137: 900.25 | L137: 906.90 | M137: 893.6 | N137: 877 | O137: 10347075 | P137: -0.29%
A138: 128 | B138: Others | C138: MCX | D138: 2023-06-29 | E138: 1483.35 | F138: 1476.57 | G138: 1464.38 | H138: 1445.42 | I138: 1433.23 | J138: 1495.53 | K138: 1507.72 | L138: 1526.68 | M138: 1488.75 | N138: 1457.6 | O138: 1678800 | P138: -0.85%
A139: 129 | B139: Pharma | C139: METROPOLIS | D139: 2023-06-29 | E139: 1313.85 | F139: 1319.52 | G139: 1302.93 | H139: 1292.02 | I139: 1275.43 | J139: 1330.43 | K139: 1347.02 | L139: 1357.93 | M139: 1336.1 | N139: 1308.6 | O139: 908800 | P139: 0.44%
A140: 130 | B140: Finance | C140: MFSL | D140: 2023-06-29 | E140: 706.30 | F140: 709.67 | G140: 701.33 | H140: 696.37 | I140: 688.03 | J140: 714.63 | K140: 722.97 | L140: 727.93 | M140: 718 | N140: 704.7 | O140: 3742450 | P140: -0.30%
A141: 131 | B141: Oil_Gas | C141: MGL | D141: 2023-06-29 | E141: 1074.10 | F141: 1073.45 | G141: 1062.65 | H141: 1051.20 | I141: 1040.40 | J141: 1084.90 | K141: 1095.70 | L141: 1107.15 | M141: 1084.25 | N141: 1062 | O141: 1993600 | P141: -5.43%
A142: 132 | B142: Automobile | C142: MOTHERSON | D142: 2023-06-29 | E142: 79.45 | F142: 79.70 | G142: 78.95 | H142: 78.45 | I142: 77.70 | J142: 80.20 | K142: 80.95 | L142: 81.45 | M142: 80.45 | N142: 79.2 | O142: 62727350 | P142: -2.85%
A143: 133 | B143: Technology | C143: MPHASIS | D143: 2023-06-29 | E143: 1972.95 | F143: 1985.83 | G143: 1951.87 | H143: 1930.78 | I143: 1896.82 | J143: 2006.92 | K143: 2040.88 | L143: 2061.97 | M143: 2019.8 | N143: 1964.75 | O143: 2619375 | P143: -0.20%
A144: 134 | B144: Automobile | C144: MRF | D144: 2023-06-29 | E144: 98094.25 | F144: 98129.75 | G144: 97559.55 | H144: 97024.85 | I144: 96454.65 | J144: 98664.45 | K144: 99234.65 | L144: 99769.35 | M144: 98699.95 | N144: 97595.05 | O144: 55130 | P144: 0.75%
A145: 135 | B145: Finance | C145: MUTHOOTFIN | D145: 2023-06-29 | E145: 1130.40 | F145: 1127.63 | G145: 1119.82 | H145: 1109.23 | I145: 1101.42 | J145: 1138.22 | K145: 1146.03 | L145: 1156.62 | M145: 1135.45 | N145: 1117.05 | O145: 5468650 | P145: -0.22%
A146: 136 | B146: Metals | C146: NATIONALUM | D146: 2023-06-29 | E146: 83.15 | F146: 83.67 | G146: 82.48 | H146: 81.82 | I146: 80.63 | J146: 84.33 | K146: 85.52 | L146: 86.18 | M146: 84.85 | N146: 83 | O146: 45307500 | P146: -0.63%
A147: 137 | B147: Others | C147: NAUKRI | D147: 2023-06-29 | E147: 4240.90 | F147: 4224.53 | G147: 4144.17 | H147: 4047.43 | I147: 3967.07 | J147: 4321.27 | K147: 4401.63 | L147: 4498.37 | M147: 4304.9 | N147: 4127.8 | O147: 1678925 | P147: -0.86%
A148: 138 | B148: Chemical | C148: NAVINFLUOR | D148: 2023-06-29 | E148: 4620.90 | F148: 4647.18 | G148: 4579.27 | H148: 4537.63 | I148: 4469.72 | J148: 4688.82 | K148: 4756.73 | L148: 4798.37 | M148: 4715.1 | N148: 4605.55 | O148: 559050 | P148: 7.72%
A149: 139 | B149: FMCG | C149: NESTLEIND | D149: 2023-06-29 | E149: 21960.15 | F149: 21925.97 | G149: 21791.93 | H149: 21623.72 | I149: 21489.68 | J149: 22094.18 | K149: 22228.22 | L149: 22396.43 | M149: 22060 | N149: 21757.75 | O149: 424360 | P149: -2.69%
A150: 140 | B150: Metals | C150: NMDC | D150: 2023-06-29 | E150: 107.55 | F150: 107.72 | G150: 107.13 | H150: 106.72 | I150: 106.13 | J150: 108.13 | K150: 108.72 | L150: 109.13 | M150: 108.3 | N150: 107.3 | O150: 52816500 | P150: -0.85%
A151: 141 | B151: Power | C151: NTPC | D151: 2023-06-29 | E151: 175.10 | F151: 174.38 | G151: 173.42 | H151: 171.73 | I151: 170.77 | J151: 176.07 | K151: 177.03 | L151: 178.72 | M151: 175.35 | N151: 172.7 | O151: 70007400 | P151: -2.21%
A152: 142 | B152: Realty | C152: OBEROIRLTY | D152: 2023-06-29 | E152: 947.00 | F152: 945.67 | G152: 933.33 | H152: 919.67 | I152: 907.33 | J152: 959.33 | K152: 971.67 | L152: 985.33 | M152: 958 | N152: 932 | O152: 5496400 | P152: 0.60%
A153: 143 | B153: Technology | C153: OFSS | D153: 2023-06-29 | E153: 3642.65 | F153: 3653.57 | G153: 3624.08 | H153: 3605.52 | I153: 3576.03 | J153: 3672.13 | K153: 3701.62 | L153: 3720.18 | M153: 3683.05 | N153: 3635 | O153: 201800 | P153: -2.13%
A154: 144 | B154: Oil_Gas | C154: ONGC | D154: 2023-06-29 | E154: 154.55 | F154: 155.15 | G154: 153.50 | H154: 152.45 | I154: 150.80 | J154: 156.20 | K154: 157.85 | L154: 158.90 | M154: 156.8 | N154: 154.1 | O154: 48629350 | P154: -2.15%
A155: 145 | B155: Textile | C155: PAGEIND | D155: 2023-06-29 | E155: 39272.95 | F155: 39130.00 | G155: 38942.95 | H155: 38612.95 | I155: 38425.90 | J155: 39460.00 | K155: 39647.05 | L155: 39977.05 | M155: 39317.05 | N155: 38800 | O155: 165795 | P155: -2.29%
A156: 146 | B156: Pharma | C156: PEL | D156: 2023-06-29 | E156: 787.05 | F156: 786.18 | G156: 776.47 | H156: 765.88 | I156: 756.17 | J156: 796.77 | K156: 806.48 | L156: 817.07 | M156: 795.9 | N156: 775.6 | O156: 8714500 | P156: 1.01%
A157: 147 | B157: Technology | C157: PERSISTENT | D157: 2023-06-29 | E157: 5185.15 | F157: 5171.52 | G157: 5125.03 | H157: 5064.92 | I157: 5018.43 | J157: 5231.63 | K157: 5278.12 | L157: 5338.23 | M157: 5218 | N157: 5111.4 | O157: 1290800 | P157: -0.82%
A158: 148 | B158: Oil_Gas | C158: PETRONET | D158: 2023-06-29 | E158: 223.75 | F158: 224.40 | G158: 222.70 | H158: 221.65 | I158: 219.95 | J158: 225.45 | K158: 227.15 | L158: 228.20 | M158: 226.1 | N158: 223.35 | O158: 14982000 | P158: 1.18%
A159: 149 | B159: Finance | C159: PFC | D159: 2023-06-29 | E159: 184.05 | F159: 183.92 | G159: 182.98 | H159: 181.92 | I159: 180.98 | J159: 184.98 | K159: 185.92 | L159: 186.98 | M159: 184.85 | N159: 182.85 | O159: 64300200 | P159: -0.77%
A160: 150 | B160: FMCG | C160: PIDILITIND | D160: 2023-06-29 | E160: 2662.85 | F160: 2659.28 | G160: 2635.92 | H160: 2608.98 | I160: 2585.62 | J160: 2686.22 | K160: 2709.58 | L160: 2736.52 | M160: 2682.65 | N160: 2632.35 | O160: 2191500 | P160: -1.02%
A161: 151 | B161: Chemical | C161: PIIND | D161: 2023-06-29 | E161: 3533.60 | F161: 3564.62 | G161: 3490.33 | H161: 3447.07 | I161: 3372.78 | J161: 3607.88 | K161: 3682.17 | L161: 3725.43 | M161: 3638.9 | N161: 3521.35 | O161: 1899750 | P161: 2.77%
A162: 152 | B162: Banking | C162: PNB | D162: 2023-06-29 | E162: 51.45 | F162: 51.58 | G162: 51.17 | H162: 50.88 | I162: 50.47 | J162: 51.87 | K162: 52.28 | L162: 52.57 | M162: 52 | N162: 51.3 | O162: 251280000 | P162: 0.11%
A163: 153 | B163: Others | C163: POLYCAB | D163: 2023-06-29 | E163: 3489.60 | F163: 3470.32 | G163: 3443.28 | H163: 3396.97 | I163: 3369.93 | J163: 3516.63 | K163: 3543.67 | L163: 3589.98 | M163: 3497.35 | N163: 3424 | O163: 1690200 | P163: 5.82%
A164: 154 | B164: Power | C164: POWERGRID | D164: 2023-06-29 | E164: 233.95 | F164: 233.30 | G164: 231.65 | H164: 229.35 | I164: 227.70 | J164: 235.60 | K164: 237.25 | L164: 239.55 | M164: 234.95 | N164: 231 | O164: 32556600 | P164: -2.17%
A165: 155 | B165: Media | C165: PVRINOX | D165: 2023-06-29 | E165: 1425.70 | F165: 1427.17 | G165: 1419.38 | H165: 1413.07 | I165: 1405.28 | J165: 1433.48 | K165: 1441.27 | L165: 1447.58 | M165: 1434.95 | N165: 1420.85 | O165: 3076106 | P165: 2.19%
A166: 156 | B166: Others | C166: RAIN | D166: 2023-06-29 | E166: 153.20 | F166: 153.63 | G166: 152.22 | H166: 151.23 | I166: 149.82 | J166: 154.62 | K166: 156.03 | L166: 157.02 | M166: 155.05 | N166: 152.65 | O166: 11354000 | P166: -0.03%
A167: 157 | B167: Cement | C167: RAMCOCEM | D167: 2023-06-29 | E167: 909.00 | F167: 910.40 | G167: 903.70 | H167: 898.40 | I167: 891.70 | J167: 915.70 | K167: 922.40 | L167: 927.70 | M167: 917.1 | N167: 905.1 | O167: 2576350 | P167: -3.62%
A168: 158 | B168: Banking | C168: RBLBANK | D168: 2023-06-29 | E168: 169.70 | F168: 168.70 | G168: 164.45 | H168: 159.20 | I168: 154.95 | J168: 173.95 | K168: 178.20 | L168: 183.45 | M168: 172.95 | N168: 163.45 | O168: 46395000 | P168: 6.20%
A169: 159 | B169: Power | C169: RECLTD | D169: 2023-06-29 | E169: 141.60 | F169: 142.00 | G169: 140.85 | H169: 140.10 | I169: 138.95 | J169: 142.75 | K169: 143.90 | L169: 144.65 | M169: 143.15 | N169: 141.25 | O169: 58208000 | P169: -0.64%
A170: 160 | B170: Oil_Gas | C170: RELIANCE | D170: 2023-06-29 | E170: 2481.10 | F170: 2486.78 | G170: 2471.17 | H170: 2461.23 | I170: 2445.62 | J170: 2496.72 | K170: 2512.33 | L170: 2522.27 | M170: 2502.4 | N170: 2476.85 | O170: 35666750 | P170: 3.40%
A171: 161 | B171: Metals | C171: SAIL | D171: 2023-06-29 | E171: 82.50 | F171: 82.68 | G171: 81.87 | H171: 81.23 | I171: 80.42 | J171: 83.32 | K171: 84.13 | L171: 84.77 | M171: 83.5 | N171: 82.05 | O171: 98720000 | P171: 4.15%
A172: 162 | B172: Banking | C172: SBICARD | D172: 2023-06-29 | E172: 907.05 | F172: 904.02 | G172: 898.38 | H172: 889.72 | I172: 884.08 | J172: 912.68 | K172: 918.32 | L172: 926.98 | M172: 909.65 | N172: 895.35 | O172: 8711200 | P172: 0.14%
A173: 163 | B173: Finance | C173: SBILIFE | D173: 2023-06-29 | E173: 1215.60 | F173: 1224.53 | G173: 1204.02 | H173: 1192.43 | I173: 1171.92 | J173: 1236.12 | K173: 1256.63 | L173: 1268.22 | M173: 1245.05 | N173: 1212.95 | O173: 6620250 | P173: 1.30%
A174: 164 | B174: Banking | C174: SBIN | D174: 2023-06-29 | E174: 585.50 | F174: 586.22 | G174: 583.33 | H174: 581.17 | I174: 578.28 | J174: 588.38 | K174: 591.27 | L174: 593.43 | M174: 589.1 | N174: 584.05 | O174: 64941000 | P174: -2.56%
A175: 165 | B175: Cement | C175: SHREECEM | D175: 2023-06-29 | E175: 25317.80 | F175: 25346.42 | G175: 25151.93 | H175: 24986.07 | I175: 24791.58 | J175: 25512.28 | K175: 25706.77 | L175: 25872.63 | M175: 25540.9 | N175: 25180.55 | O175: 266800 | P175: -2.45%
A176: 166 | B176: Capital_Goods | C176: SIEMENS | D176: 2023-06-29 | E176: 3552.00 | F176: 3550.73 | G176: 3532.02 | H176: 3512.03 | I176: 3493.32 | J176: 3570.72 | K176: 3589.43 | L176: 3609.42 | M176: 3569.45 | N176: 3530.75 | O176: 2433200 | P176: -0.38%
A177: 167 | B177: Textile | C177: SRF | D177: 2023-06-29 | E177: 2489.75 | F177: 2502.70 | G177: 2473.60 | H177: 2457.45 | I177: 2428.35 | J177: 2518.85 | K177: 2547.95 | L177: 2564.10 | M177: 2531.8 | N177: 2486.55 | O177: 2670750 | P177: 2.79%
A178: 168 | B178: Finance | C178: SHRIRAMFIN | D178: 2023-06-29 | E178: 1398.75 | F178: 1398.43 | G178: 1387.97 | H178: 1377.18 | I178: 1366.72 | J178: 1409.22 | K178: 1419.68 | L178: 1430.47 | M178: 1408.9 | N178: 1387.65 | O178: 4117800 | P178: 2.82%
A179: 169 | B179: Pharma | C179: SUNPHARMA | D179: 2023-06-29 | E179: 991.55 | F179: 988.33 | G179: 982.67 | H179: 973.78 | I179: 968.12 | J179: 997.22 | K179: 1002.88 | L179: 1011.77 | M179: 994 | N179: 979.45 | O179: 24279500 | P179: -5.22%
A180: 170 | B180: Media | C180: SUNTV | D180: 2023-06-29 | E180: 455.00 | F180: 452.50 | G180: 449.00 | H180: 443.00 | I180: 439.50 | J180: 458.50 | K180: 462.00 | L180: 468.00 | M180: 456 | N180: 446.5 | O180: 8298000 | P180: -4.47%
A181: 171 | B181: Pharma | C181: SYNGENE | D181: 2023-06-29 | E181: 729.20 | F181: 728.53 | G181: 724.17 | H181: 719.13 | I181: 714.77 | J181: 733.57 | K181: 737.93 | L181: 742.97 | M181: 732.9 | N181: 723.5 | O181: 2480000 | P181: -2.63%
A182: 172 | B182: Chemical | C182: TATACHEM | D182: 2023-06-29 | E182: 947.30 | F182: 949.75 | G182: 943.60 | H182: 939.90 | I182: 933.75 | J182: 953.45 | K182: 959.60 | L182: 963.30 | M182: 955.9 | N182: 946.05 | O182: 6656400 | P182: 0.66%
A183: 173 | B183: Telecom | C183: TATACOMM | D183: 2023-06-29 | E183: 1320.55 | F183: 1317.52 | G183: 1298.13 | H183: 1275.72 | I183: 1256.33 | J183: 1339.93 | K183: 1359.32 | L183: 1381.73 | M183: 1336.9 | N183: 1295.1 | O183: 2880500 | P183: 0.75%
A184: 174 | B184: FMCG | C184: TATACONSUM | D184: 2023-06-29 | E184: 797.60 | F184: 799.70 | G184: 794.45 | H184: 791.30 | I184: 786.05 | J184: 802.85 | K184: 808.10 | L184: 811.25 | M184: 804.95 | N184: 796.55 | O184: 10764000 | P184: 1.81%
A185: 175 | B185: Automobile | C185: TATAMOTORS | D185: 2023-06-29 | E185: 538.15 | F185: 534.30 | G185: 528.90 | H185: 519.65 | I185: 514.25 | J185: 543.55 | K185: 548.95 | L185: 558.20 | M185: 539.7 | N185: 525.05 | O185: 53625600 | P185: 0.18%
A186: 176 | B186: Power | C186: TATAPOWER | D186: 2023-06-29 | E186: 214.20 | F186: 213.60 | G186: 211.15 | H186: 208.10 | I186: 205.65 | J186: 216.65 | K186: 219.10 | L186: 222.15 | M186: 216.05 | N186: 210.55 | O186: 94662000 | P186: 0.42%
A187: 177 | B187: Metals | C187: TATASTEEL | D187: 2023-06-29 | E187: 106.55 | F187: 106.70 | G187: 106.20 | H187: 105.85 | I187: 105.35 | J187: 107.05 | K187: 107.55 | L187: 107.90 | M187: 107.2 | N187: 106.35 | O187: 231121000 | P187: 1.93%
A188: 178 | B188: Technology | C188: TCS | D188: 2023-06-29 | E188: 3322.15 | F188: 3322.08 | G188: 3302.17 | H188: 3282.18 | I188: 3262.27 | J188: 3342.07 | K188: 3361.98 | L188: 3381.97 | M188: 3342 | N188: 3302.1 | O188: 13063400 | P188: -0.32%
A189: 179 | B189: Technology | C189: TECHM | D189: 2023-06-29 | E189: 1128.60 | F189: 1133.10 | G189: 1121.60 | H189: 1114.60 | I189: 1103.10 | J189: 1140.10 | K189: 1151.60 | L189: 1158.60 | M189: 1144.6 | N189: 1126.1 | O189: 11335800 | P189: 0.03%
A190: 180 | B190: FMCG | C190: TITAN | D190: 2023-06-29 | E190: 2838.45 | F190: 2837.70 | G190: 2827.40 | H190: 2816.35 | I190: 2806.05 | J190: 2848.75 | K190: 2859.05 | L190: 2870.10 | M190: 2848 | N190: 2826.65 | O190: 6351000 | P190: -0.62%
A191: 181 | B191: Pharma | C191: TORNTPHARM | D191: 2023-06-29 | E191: 1779.65 | F191: 1795.68 | G191: 1757.87 | H191: 1736.08 | I191: 1698.27 | J191: 1817.47 | K191: 1855.28 | L191: 1877.07 | M191: 1833.5 | N191: 1773.9 | O191: 1986500 | P191: -3.24%
A192: 182 | B192: Others | C192: TRENT | D192: 2023-06-29 | E192: 1571.50 | F192: 1572.32 | G192: 1559.88 | H192: 1548.27 | I192: 1535.83 | J192: 1583.93 | K192: 1596.37 | L192: 1607.98 | M192: 1584.75 | N192: 1560.7 | O192: 3255600 | P192: 0.20%
A193: 183 | B193: Automobile | C193: TVSMOTOR | D193: 2023-06-29 | E193: 1273.75 | F193: 1278.73 | G193: 1264.27 | H193: 1254.78 | I193: 1240.32 | J193: 1288.22 | K193: 1302.68 | L193: 1312.17 | M193: 1293.2 | N193: 1269.25 | O193: 7800800 | P193: -3.14%
A194: 184 | B194: FMCG | C194: UBL | D194: 2023-06-29 | E194: 1466.90 | F194: 1471.33 | G194: 1459.12 | H194: 1451.33 | I194: 1439.12 | J194: 1479.12 | K194: 1491.33 | L194: 1499.12 | M194: 1483.55 | N194: 1463.55 | O194: 2096800 | P194: 2.14%
A195: 185 | B195: Cement | C195: ULTRACEMCO | D195: 2023-06-29 | E195: 7899.05 | F195: 7899.95 | G195: 7847.60 | H195: 7796.15 | I195: 7743.80 | J195: 7951.40 | K195: 8003.75 | L195: 8055.20 | M195: 7952.3 | N195: 7848.5 | O195: 1977700 | P195: 3.77%
A196: 186 | B196: Chemical | C196: UPL | D196: 2023-06-29 | E196: 682.75 | F196: 684.50 | G196: 679.65 | H196: 676.55 | I196: 671.70 | J196: 687.60 | K196: 692.45 | L196: 695.55 | M196: 689.35 | N196: 681.4 | O196: 20441200 | P196: 5.24%
A197: 187 | B197: Metals | C197: VEDL | D197: 2023-06-29 | E197: 272.90 | F197: 272.62 | G197: 271.38 | H197: 269.87 | I197: 268.63 | J197: 274.13 | K197: 275.37 | L197: 276.88 | M197: 273.85 | N197: 271.1 | O197: 57502000 | P197: 1.64%
A198: 188 | B198: Capital_Goods | C198: VOLTAS | D198: 2023-06-29 | E198: 825.95 | F198: 826.92 | G198: 820.03 | H198: 814.12 | I198: 807.23 | J198: 832.83 | K198: 839.72 | L198: 845.63 | M198: 833.8 | N198: 821 | O198: 7262400 | P198: 9.55%
A199: 189 | B199: Technology | C199: WIPRO | D199: 2023-06-29 | E199: 406.10 | F199: 406.78 | G199: 404.52 | H199: 402.93 | I199: 400.67 | J199: 408.37 | K199: 410.63 | L199: 412.22 | M199: 409.05 | N199: 405.2 | O199: 27469500 | P199: 2.17%
A200: 190 | B200: Media | C200: ZEEL | D200: 2023-06-29 | E200: 193.60 | F200: 194.80 | G200: 191.65 | H200: 189.70 | I200: 186.55 | J200: 196.75 | K200: 199.90 | L200: 201.85 | M200: 197.95 | N200: 192.85 | O200: 91737000 | P200: -0.22%
A201: 191 | B201: Pharma | C201: ZYDUSLIFE | D201: 2023-06-29 | E201: 515.50 | F201: 511.68 | G201: 506.97 | H201: 498.43 | I201: 493.72 | J201: 520.22 | K201: 524.93 | L201: 533.47 | M201: 516.4 | N201: 503.15 | O201: 6786000 | P201: -1.10%
A202: 192
A203: 193
A204: 194
A221: Pivot Point: This is trigger point for intra day buy/sell based on the price range of the previous day
A222: As per the tool,the trader should take BUY position just above Pivot and keep the stop loss of pivot point and the first target would be Resistance 1(R1)
... 13 more rows

Sheet Cash Intra
M5: Back to Main Page
A6: FOR INTRA DAY TRADING | K6: =Main!B10 -> 2023-06-02
A8: Sr.no | C8: CLOSE RATE | D8: Pivot Point | E8: Supports | H8: Resistances
E9: S1 | F9: S2 | G9: S3 | H9: R1 | I9: R2 | J9: R3 | K9: HIGH | L9: LOW | M9: Total Trade Quanity in Lakhs
A10: 1 | B10: Nifty 50 | C10: 18487.75 | D10: 18510.87 | E10: 18441.43 | F10: 18395.12 | G10: 18325.68 | H10: 18557.18 | I10: 18626.62 | J10: 18672.93 | K10: 18580.30 | L10: 18464.55
A11: 2 | B11: Nifty Bank | C11: 43790.20 | D11: 43892.10 | E11: 43604.25 | F11: 43418.30 | G11: 43130.45 | H11: 44078.05 | I11: 44365.90 | J11: 44551.85 | K11: 44179.95 | L11: 43706.15
A12: 3 | B12: Nifty CPSE | C12: 3065.45 | D12: 3062.52 | E12: 3052.03 | F12: 3038.62 | G12: 3028.13 | H12: 3075.93 | I12: 3086.42 | J12: 3099.83 | K12: 3073.00 | L12: 3049.10
A13: 4 | B13: Nifty Infra | C13: 5446.75 | D13: 5451.73 | E13: 5434.42 | F13: 5422.08 | G13: 5404.77 | H13: 5464.07 | I13: 5481.38 | J13: 5493.72 | K13: 5469.05 | L13: 5439.40
A14: 5 | B14: Nifty IT | C14: 29446.25 | D14: 29475.80 | E14: 29352.50 | F14: 29258.75 | G14: 29135.45 | H14: 29569.55 | I14: 29692.85 | J14: 29786.60 | K14: 29599.10 | L14: 29382.05
A15: 6 | B15: Nifty PSE | C15: 4776.50 | D15: 4777.62 | E15: 4760.48 | F15: 4744.47 | G15: 4727.33 | H15: 4793.63 | I15: 4810.77 | J15: 4826.78 | K15: 4794.75 | L15: 4761.60
A16: 7 | B16: Nifty Midcap 50 | C16: 9559.50 | D16: 9568.00 | E16: 9532.60 | F16: 9505.70 | G16: 9470.30 | H16: 9594.90 | I16: 9630.30 | J16: 9657.20 | K16: 9603.40 | L16: 9541.10
A17: 8 | B17: ABB | C17: 3944.65 | D17: 4007.15 | E17: 3874.30 | F17: 3803.95 | G17: 3671.10 | H17: 4077.50 | I17: 4210.35 | J17: 4280.70 | K17: 4140 | L17: 3936.8 | M17: 4.2149
A18: 9 | B18: ACC | C18: 1800.3 | D18: 1801.57 | E18: 1779.43 | F18: 1758.57 | G18: 1736.43 | H18: 1822.43 | I18: 1844.57 | J18: 1865.43 | K18: 1823.7 | L18: 1780.7 | M18: 5.42023
A19: 10 | B19: AUBANK | C19: 769.75 | D19: 772.40 | E19: 762.65 | F19: 755.55 | G19: 745.80 | H19: 779.50 | I19: 789.25 | J19: 796.35 | K19: 782.15 | L19: 765.3 | M19: 13.86561
A20: 11 | B20: ABBOTINDIA | C20: 21602.65 | D20: 21680.78 | E20: 21471.87 | F20: 21341.08 | G20: 21132.17 | H20: 21811.57 | I20: 22020.48 | J20: 22151.27 | K20: 21889.7 | L20: 21550 | M20: 0.10678
A21: 12 | B21: ADANIENT | C21: 2492.15 | D21: 2512.48 | E21: 2464.97 | F21: 2437.78 | G21: 2390.27 | H21: 2539.67 | I21: 2587.18 | J21: 2614.37 | K21: 2560 | L21: 2485.3 | M21: 17.04946
A22: 13 | B22: ADANIGREEN | C22: 993.95 | D22: 996.32 | E22: 981.63 | F22: 969.32 | G22: 954.63 | H22: 1008.63 | I22: 1023.32 | J22: 1035.63 | K22: 1011 | L22: 984 | M22: 46.39202
A23: 14 | B23: ADANIPORTS | C23: 732.05 | D23: 735.33 | E23: 725.72 | F23: 719.38 | G23: 709.77 | H23: 741.67 | I23: 751.28 | J23: 757.62 | K23: 744.95 | L23: 729 | M23: 37.7176
A24: 15 | B24: ATGL | C24: 694.35 | D24: 680.75 | E24: 664.15 | F24: 633.95 | G24: 617.35 | H24: 710.95 | I24: 727.55 | J24: 757.75 | K24: 697.35 | L24: 650.55 | M24: 165.89982
A25: 16 | B25: ADANITRANS | C25: 815.5 | D25: 808.12 | E25: 800.73 | F25: 785.97 | G25: 778.58 | H25: 822.88 | I25: 830.27 | J25: 845.03 | K25: 815.5 | L25: 793.35 | M25: 40.42939
A26: 17 | B26: AWL | C26: 442.05 | D26: 443.47 | E26: 438.58 | F26: 435.12 | G26: 430.23 | H26: 446.93 | I26: 451.82 | J26: 455.28 | K26: 448.35 | L26: 440 | M26: 18.25488
A27: 18 | B27: ABCAPITAL | C27: 171.85 | D27: 171.55 | E27: 170.60 | F27: 169.35 | G27: 168.40 | H27: 172.80 | I27: 173.75 | J27: 175.00 | K27: 172.5 | L27: 170.3 | M27: 28.58463
A28: 19 | B28: ABFRL | C28: 203.3 | D28: 203.15 | E28: 201.80 | F28: 200.30 | G28: 198.95 | H28: 204.65 | I28: 206.00 | J28: 207.50 | K28: 204.5 | L28: 201.65 | M28: 18.17415
A29: 20 | B29: ALKEM | C29: 3380.35 | D29: 3388.52 | E29: 3358.28 | F29: 3336.22 | G29: 3305.98 | H29: 3410.58 | I29: 3440.82 | J29: 3462.88 | K29: 3418.75 | L29: 3366.45 | M29: 0.55564
A30: 21 | B30: AMBUJACEM | C30: 429.25 | D30: 428.17 | E30: 425.08 | F30: 420.92 | G30: 417.83 | H30: 432.33 | I30: 435.42 | J30: 439.58 | K30: 431.25 | L30: 424 | M30: 34.22014
A31: 22 | B31: APOLLOHOSP | C31: 4814.25 | D31: 4782.42 | E31: 4717.83 | F31: 4621.42 | G31: 4556.83 | H31: 4878.83 | I31: 4943.42 | J31: 5039.83 | K31: 4847 | L31: 4686 | M31: 16.92479
A32: 23 | B32: ASHOKLEY | C32: 147.15 | D32: 146.93 | E32: 145.87 | F32: 144.58 | G32: 143.52 | H32: 148.22 | I32: 149.28 | J32: 150.57 | K32: 148 | L32: 145.65 | M32: 58.44016
A33: 24 | B33: ASIANPAINT | C33: 3240.7 | D33: 3232.53 | E33: 3215.17 | F33: 3189.63 | G33: 3172.27 | H33: 3258.07 | I33: 3275.43 | J33: 3300.97 | K33: 3249.9 | L33: 3207 | M33: 11.04861
A34: 25 | B34: ASTRAL | C34: 1809.1 | D34: 1816.00 | E34: 1795.00 | F34: 1780.90 | G34: 1759.90 | H34: 1830.10 | I34: 1851.10 | J34: 1865.20 | K34: 1837 | L34: 1801.9 | M34: 3.76713
A35: 26 | B35: AUROPHARMA | C35: 658.7 | D35: 655.28 | E35: 649.57 | F35: 640.43 | G35: 634.72 | H35: 664.42 | I35: 670.13 | J35: 679.27 | K35: 661 | L35: 646.15 | M35: 16.57715
A36: 27 | B36: DMART | C36: 3500.9 | D36: 3500.30 | E36: 3473.60 | F36: 3446.30 | G36: 3419.60 | H36: 3527.60 | I36: 3554.30 | J36: 3581.60 | K36: 3527 | L36: 3473 | M36: 1.89632
A37: 28 | B37: AXISBANK | C37: 919.7 | D37: 922.23 | E37: 913.52 | F37: 907.33 | G37: 898.62 | H37: 928.42 | I37: 937.13 | J37: 943.32 | K37: 930.95 | L37: 916.05 | M37: 118.17533
A38: 29 | B38: BAJAJ-AUTO | C38: 4643.6 | D38: 4626.88 | E38: 4583.97 | F38: 4524.33 | G38: 4481.42 | H38: 4686.52 | I38: 4729.43 | J38: 4789.07 | K38: 4669.8 | L38: 4567.25 | M38: 6.98733
A39: 30 | B39: BAJFINANCE | C39: 7040.5 | D39: 7016.30 | E39: 6975.30 | F39: 6910.10 | G39: 6869.10 | H39: 7081.50 | I39: 7122.50 | J39: 7187.70 | K39: 7057.3 | L39: 6951.1 | M39: 5.90026
A40: 31 | B40: BAJAJFINSV | C40: 1450.15 | D40: 1451.05 | E40: 1443.10 | F40: 1436.05 | G40: 1428.10 | H40: 1458.10 | I40: 1466.05 | J40: 1473.10 | K40: 1459 | L40: 1444 | M40: 9.39379
A41: 32 | B41: BAJAJHLDNG | C41: 6993.1 | D41: 7071.45 | E41: 6846.65 | F41: 6700.20 | G41: 6475.40 | H41: 7217.90 | I41: 7442.70 | J41: 7589.15 | K41: 7296.25 | L41: 6925 | M41: 0.73859
A42: 33 | B42: BALKRISIND | C42: 2287.4 | D42: 2292.40 | E42: 2275.00 | F42: 2262.60 | G42: 2245.20 | H42: 2304.80 | I42: 2322.20 | J42: 2334.60 | K42: 2309.8 | L42: 2280 | M42: 2.10324
A43: 34 | B43: BANDHANBNK | C43: 268.35 | D43: 268.75 | E43: 265.50 | F43: 262.65 | G43: 259.40 | H43: 271.60 | I43: 274.85 | J43: 277.70 | K43: 272 | L43: 265.9 | M43: 53.67508
A44: 35 | B44: BANKBARODA | C44: 184.85 | D44: 185.37 | E44: 183.58 | F44: 182.32 | G44: 180.53 | H44: 186.63 | I44: 188.42 | J44: 189.68 | K44: 187.15 | L44: 184.1 | M44: 115.92705
A45: 36 | B45: BANKINDIA | C45: 74.5 | D45: 74.35 | E45: 73.60 | F45: 72.70 | G45: 71.95 | H45: 75.25 | I45: 76.00 | J45: 76.90 | K45: 75.1 | L45: 73.45 | M45: 77.83523
A46: 37 | B46: BATAINDIA | C46: 1577.85 | D46: 1583.20 | E46: 1566.45 | F46: 1555.05 | G46: 1538.30 | H46: 1594.60 | I46: 1611.35 | J46: 1622.75 | K46: 1599.95 | L46: 1571.8 | M46: 0.76898
A47: 38 | B47: BERGEPAINT | C47: 650.5 | D47: 653.25 | E47: 646.75 | F47: 643.00 | G47: 636.50 | H47: 657.00 | I47: 663.50 | J47: 667.25 | K47: 659.75 | L47: 649.5 | M47: 6.32165
A48: 39 | B48: BEL | C48: 112.9 | D48: 112.78 | E48: 112.12 | F48: 111.33 | G48: 110.67 | H48: 113.57 | I48: 114.23 | J48: 115.02 | K48: 113.45 | L48: 112 | M48: 91.85292
A49: 40 | B49: BHARATFORG | C49: 797.05 | D49: 794.23 | E49: 789.07 | F49: 781.08 | G49: 775.92 | H49: 802.22 | I49: 807.38 | J49: 815.37 | K49: 799.4 | L49: 786.25 | M49: 10.65254
A50: 41 | B50: BHEL | C50: 82 | D50: 82.37 | E50: 81.43 | F50: 80.87 | G50: 79.93 | H50: 82.93 | I50: 83.87 | J50: 84.43 | K50: 83.3 | L50: 81.8 | M50: 117.38032
A51: 42 | B51: BPCL | C51: 364.55 | D51: 365.85 | E51: 362.80 | F51: 361.05 | G51: 358.00 | H51: 367.60 | I51: 370.65 | J51: 372.40 | K51: 368.9 | L51: 364.1 | M51: 17.68641
A52: 43 | B52: BHARTIARTL | C52: 827.95 | D52: 829.63 | E52: 821.32 | F52: 814.68 | G52: 806.37 | H52: 836.27 | I52: 844.58 | J52: 851.22 | K52: 837.95 | L52: 823 | M52: 97.13155
A53: 44 | B53: BIOCON | C53: 245.3 | D53: 246.08 | E53: 244.22 | F53: 243.13 | G53: 241.27 | H53: 247.17 | I53: 249.03 | J53: 250.12 | K53: 247.95 | L53: 245 | M53: 25.22264
A54: 45 | B54: BOSCHLTD | C54: 18602 | D54: 18601.83 | E54: 18484.62 | F54: 18367.23 | G54: 18250.02 | H54: 18719.22 | I54: 18836.43 | J54: 18953.82 | K54: 18719.05 | L54: 18484.45 | M54: 0.43911
A55: 46 | B55: BRITANNIA | C55: 4635.25 | D55: 4625.93 | E55: 4596.87 | F55: 4558.48 | G55: 4529.42 | H55: 4664.32 | I55: 4693.38 | J55: 4731.77 | K55: 4655 | L55: 4587.55 | M55: 1.88427
A56: 47 | B56: CANBK | C56: 309.4 | D56: 309.87 | E56: 308.23 | F56: 307.07 | G56: 305.43 | H56: 311.03 | I56: 312.67 | J56: 313.83 | K56: 311.5 | L56: 308.7 | M56: 46.86805
A57: 48 | B57: CHOLAFIN | C57: 1043.9 | D57: 1044.30 | E57: 1037.60 | F57: 1031.30 | G57: 1024.60 | H57: 1050.60 | I57: 1057.30 | J57: 1063.60 | K57: 1051 | L57: 1038 | M57: 8.47659
A58: 49 | B58: CIPLA | C58: 964.75 | D58: 959.33 | E58: 952.17 | F58: 939.58 | G58: 932.42 | H58: 971.92 | I58: 979.08 | J58: 991.67 | K58: 966.5 | L58: 946.75 | M58: 11.32919
A59: 50 | B59: CLEAN | C59: 1411.5 | D59: 1415.63 | E59: 1403.87 | F59: 1396.23 | G59: 1384.47 | H59: 1423.27 | I59: 1435.03 | J59: 1442.67 | K59: 1427.4 | L59: 1408 | M59: 0.70719
A60: 51 | B60: COALINDIA | C60: 230.35 | D60: 230.47 | E60: 229.03 | F60: 227.72 | G60: 226.28 | H60: 231.78 | I60: 233.22 | J60: 234.53 | K60: 231.9 | L60: 229.15 | M60: 355.09867
A61: 52 | B61: COFORGE | C61: 4562.15 | D61: 4560.53 | E61: 4530.17 | F61: 4498.18 | G61: 4467.82 | H61: 4592.52 | I61: 4622.88 | J61: 4654.87 | K61: 4590.9 | L61: 4528.55 | M61: 2.20301
A62: 53 | B62: COLPAL | C62: 1610.9 | D62: 1612.28 | E62: 1599.57 | F62: 1588.23 | G62: 1575.52 | H62: 1623.62 | I62: 1636.33 | J62: 1647.67 | K62: 1625 | L62: 1600.95 | M62: 2.16289
A63: 54 | B63: CONCOR | C63: 659.45 | D63: 664.10 | E63: 653.35 | F63: 647.25 | G63: 636.50 | H63: 670.20 | I63: 680.95 | J63: 687.05 | K63: 674.85 | L63: 658 | M63: 3.77426
A64: 55 | B64: COROMANDEL | C64: 946.65 | D64: 950.93 | E64: 938.92 | F64: 931.18 | G64: 919.17 | H64: 958.67 | I64: 970.68 | J64: 978.42 | K64: 962.95 | L64: 943.2 | M64: 2.78264
A65: 56 | B65: CROMPTON | C65: 273.9 | D65: 274.82 | E65: 272.38 | F65: 270.87 | G65: 268.43 | H65: 276.33 | I65: 278.77 | J65: 280.28 | K65: 277.25 | L65: 273.3 | M65: 11.27524
A66: 57 | B66: CUMMINSIND | C66: 1750.7 | D66: 1755.83 | E66: 1739.87 | F66: 1729.03 | G66: 1713.07 | H66: 1766.67 | I66: 1782.63 | J66: 1793.47 | K66: 1771.8 | L66: 1745 | M66: 3.30554
A67: 58 | B67: DLF | C67: 477.2 | D67: 476.77 | E67: 473.48 | F67: 469.77 | G67: 466.48 | H67: 480.48 | I67: 483.77 | J67: 487.48 | K67: 480.05 | L67: 473.05 | M67: 42.70077
A68: 59 | B68: DABUR | C68: 556.9 | D68: 558.02 | E68: 552.13 | F68: 547.37 | G68: 541.48 | H68: 562.78 | I68: 568.67 | J68: 573.43 | K68: 563.9 | L68: 553.25 | M68: 13.85234
A69: 60 | B69: DALBHARAT | C69: 2134.5 | D69: 2143.05 | E69: 2117.45 | F69: 2100.40 | G69: 2074.80 | H69: 2160.10 | I69: 2185.70 | J69: 2202.75 | K69: 2168.65 | L69: 2126 | M69: 2.11118
A70: 61 | B70: DEEPAKNTR | C70: 2075.8 | D70: 2079.70 | E70: 2066.05 | F70: 2056.30 | G70: 2042.65 | H70: 2089.45 | I70: 2103.10 | J70: 2112.85 | K70: 2093.35 | L70: 2069.95 | M70: 2.05129
A71: 62 | B71: DELHIVERY | C71: 355.4 | D71: 354.40 | E71: 351.05 | F71: 346.70 | G71: 343.35 | H71: 358.75 | I71: 362.10 | J71: 366.45 | K71: 357.75 | L71: 350.05 | M71: 10.8525
A72: 63 | B72: DIVISLAB | C72: 3525.4 | D72: 3510.33 | E72: 3458.67 | F72: 3391.93 | G72: 3340.27 | H72: 3577.07 | I72: 3628.73 | J72: 3695.47 | K72: 3562 | L72: 3443.6 | M72: 7.91714
A73: 64 | B73: DIXON | C73: 3909.5 | D73: 3929.88 | E73: 3834.77 | F73: 3760.03 | G73: 3664.92 | H73: 4004.62 | I73: 4099.73 | J73: 4174.47 | K73: 4025 | L73: 3855.15 | M73: 14.83536
A74: 65 | B74: LALPATHLAB | C74: 2005.35 | D74: 2020.42 | E74: 1984.83 | F74: 1964.32 | G74: 1928.73 | H74: 2040.93 | I74: 2076.52 | J74: 2097.03 | K74: 2056 | L74: 1999.9 | M74: 1.94879
A75: 66 | B75: DRREDDY | C75: 4552.05 | D75: 4537.68 | E75: 4515.42 | F75: 4478.78 | G75: 4456.52 | H75: 4574.32 | I75: 4596.58 | J75: 4633.22 | K75: 4559.95 | L75: 4501.05 | M75: 3.05791
A76: 67 | B76: EICHERMOT | C76: 3716.05 | D76: 3712.02 | E76: 3691.03 | F76: 3666.02 | G76: 3645.03 | H76: 3737.03 | I76: 3758.02 | J76: 3783.03 | K76: 3733 | L76: 3687 | M76: 6.22442
A77: 68 | B77: EMAMILTD | C77: 387.35 | D77: 391.15 | E77: 382.40 | F77: 377.45 | G77: 368.70 | H77: 396.10 | I77: 404.85 | J77: 409.80 | K77: 399.9 | L77: 386.2 | M77: 2.07307
A78: 69 | B78: ESCORTS | C78: 2196.55 | D78: 2200.02 | E78: 2172.03 | F78: 2147.52 | G78: 2119.53 | H78: 2224.53 | I78: 2252.52 | J78: 2277.03 | K78: 2228 | L78: 2175.5 | M78: 3.2899
A79: 70 | B79: NYKAA | C79: 126.15 | D79: 125.90 | E79: 124.90 | F79: 123.65 | G79: 122.65 | H79: 127.15 | I79: 128.15 | J79: 129.40 | K79: 126.9 | L79: 124.65 | M79: 49.49201
A80: 71 | B80: FEDERALBNK | C80: 125.5 | D80: 125.42 | E80: 124.88 | F80: 124.27 | G80: 123.73 | H80: 126.03 | I80: 126.57 | J80: 127.18 | K80: 125.95 | L80: 124.8 | M80: 109.82556
A81: 72 | B81: FORTIS | C81: 278.85 | D81: 278.78 | E81: 275.27 | F81: 271.68 | G81: 268.17 | H81: 282.37 | I81: 285.88 | J81: 289.47 | K81: 282.3 | L81: 275.2 | M81: 11.48477
A82: 73 | B82: GAIL | C82: 105.35 | D82: 104.90 | E82: 103.95 | F82: 102.55 | G82: 101.60 | H82: 106.30 | I82: 107.25 | J82: 108.65 | K82: 105.85 | L82: 103.5 | M82: 94.65271
A83: 74 | B83: GLAND | C83: 932.45 | D83: 932.23 | E83: 921.47 | F83: 910.48 | G83: 899.72 | H83: 943.22 | I83: 953.98 | J83: 964.97 | K83: 943 | L83: 921.25 | M83: 3.3681
A84: 75 | B84: GODREJCP | C84: 1054.2 | D84: 1058.08 | E84: 1047.17 | F84: 1040.13 | G84: 1029.22 | H84: 1065.12 | I84: 1076.03 | J84: 1083.07 | K84: 1069 | L84: 1051.05 | M84: 7.9978
A85: 76 | B85: GODREJPROP | C85: 1402.7 | D85: 1406.35 | E85: 1389.70 | F85: 1376.70 | G85: 1360.05 | H85: 1419.35 | I85: 1436.00 | J85: 1449.00 | K85: 1423 | L85: 1393.35 | M85: 6.90024
A86: 77 | B86: GRASIM | C86: 1702.45 | D86: 1707.48 | E86: 1694.97 | F86: 1687.48 | G86: 1674.97 | H86: 1714.97 | I86: 1727.48 | J86: 1734.97 | K86: 1720 | L86: 1700 | M86: 3.78694
A87: 78 | B87: GUJGASLTD | C87: 488.25 | D87: 490.35 | E87: 480.90 | F87: 473.55 | G87: 464.10 | H87: 497.70 | I87: 507.15 | J87: 514.50 | K87: 499.8 | L87: 483 | M87: 30.60387
A88: 79 | B88: GSPL | C88: 304.3 | D88: 303.32 | E88: 300.98 | F88: 297.67 | G88: 295.33 | H88: 306.63 | I88: 308.97 | J88: 312.28 | K88: 305.65 | L88: 300 | M88: 3.97178
A89: 80 | B89: HCLTECH | C89: 1141.9 | D89: 1144.90 | E89: 1134.65 | F89: 1127.40 | G89: 1117.15 | H89: 1152.15 | I89: 1162.40 | J89: 1169.65 | K89: 1155.15 | L89: 1137.65 | M89: 14.45692
A90: 81 | B90: HDFCAMC | C90: 1950 | D90: 1959.25 | E90: 1935.80 | F90: 1921.60 | G90: 1898.15 | H90: 1973.45 | I90: 1996.90 | J90: 2011.10 | K90: 1982.7 | L90: 1945.05 | M90: 2.73417
A91: 82 | B91: HDFCBANK | C91: 1604 | D91: 1607.97 | E91: 1596.03 | F91: 1588.07 | G91: 1576.13 | H91: 1615.93 | I91: 1627.87 | J91: 1635.83 | K91: 1619.9 | L91: 1600 | M91: 251.83469
A92: 83 | B92: HDFCLIFE | C92: 582.2 | D92: 585.88 | E92: 577.32 | F92: 572.43 | G92: 563.87 | H92: 590.77 | I92: 599.33 | J92: 604.22 | K92: 594.45 | L92: 581 | M92: 16.59264
A93: 84 | B93: HAVELLS | C93: 1331.9 | D93: 1334.07 | E93: 1308.23 | F93: 1284.57 | G93: 1258.73 | H93: 1357.73 | I93: 1383.57 | J93: 1407.23 | K93: 1359.9 | L93: 1310.4 | M93: 12.47361
A94: 85 | B94: HEROMOTOCO | C94: 2800.4 | D94: 2786.63 | E94: 2760.62 | F94: 2720.83 | G94: 2694.82 | H94: 2826.42 | I94: 2852.43 | J94: 2892.22 | K94: 2812.65 | L94: 2746.85 | M94: 5.52629
A95: 86 | B95: HINDALCO | C95: 406.35 | D95: 408.88 | E95: 403.37 | F95: 400.38 | G95: 394.87 | H95: 411.87 | I95: 417.38 | J95: 420.37 | K95: 414.4 | L95: 405.9 | M95: 42.69628
A96: 87 | B96: HAL | C96: 3080.75 | D96: 3079.75 | E96: 3061.50 | F96: 3042.25 | G96: 3024.00 | H96: 3099.00 | I96: 3117.25 | J96: 3136.50 | K96: 3098 | L96: 3060.5 | M96: 10.85016
A97: 88 | B97: HINDPETRO | C97: 260.25 | D97: 262.40 | E97: 257.45 | F97: 254.65 | G97: 249.70 | H97: 265.20 | I97: 270.15 | J97: 272.95 | K97: 267.35 | L97: 259.6 | M97: 26.35049
A98: 89 | B98: HINDUNILVR | C98: 2697.9 | D98: 2694.55 | E98: 2657.85 | F98: 2617.80 | G98: 2581.10 | H98: 2734.60 | I98: 2771.30 | J98: 2811.35 | K98: 2731.25 | L98: 2654.5 | M98: 15.4108
A99: 90 | B99: HINDZINC | C99: 305.65 | D99: 305.75 | E99: 304.40 | F99: 303.15 | G99: 301.80 | H99: 307.00 | I99: 308.35 | J99: 309.60 | K99: 307.1 | L99: 304.5 | M99: 2.83062
A100: 91 | B100: HONAUT | C100: 40207.55 | D100: 40209.50 | E100: 39942.00 | F100: 39676.45 | G100: 39408.95 | H100: 40475.05 | I100: 40742.55 | J100: 41008.10 | K100: 40477 | L100: 39943.95 | M100: 0.01813
A101: 92 | B101: HDFC | C101: 2646.7 | D101: 2651.83 | E101: 2633.67 | F101: 2620.63 | G101: 2602.47 | H101: 2664.87 | I101: 2683.03 | J101: 2696.07 | K101: 2670 | L101: 2638.8 | M101: 36.66667
A102: 93 | B102: ICICIBANK | C102: 936.1 | D102: 941.05 | E102: 927.85 | F102: 919.60 | G102: 906.40 | H102: 949.30 | I102: 962.50 | J102: 970.75 | K102: 954.25 | L102: 932.8 | M102: 216.507
A103: 94 | B103: ICICIGI | C103: 1225.25 | D103: 1209.02 | E103: 1189.23 | F103: 1153.22 | G103: 1133.43 | H103: 1245.03 | I103: 1264.82 | J103: 1300.83 | K103: 1228.8 | L103: 1173 | M103: 12.28214
A104: 95 | B104: ICICIPRULI | C104: 478 | D104: 475.18 | E104: 467.82 | F104: 457.63 | G104: 450.27 | H104: 485.37 | I104: 492.73 | J104: 502.92 | K104: 482.55 | L104: 465 | M104: 27.34461
A105: 96 | B105: ISEC | C105: 489.95 | D105: 492.55 | E105: 486.40 | F105: 482.85 | G105: 476.70 | H105: 496.10 | I105: 502.25 | J105: 505.80 | K105: 498.7 | L105: 489 | M105: 2.29477
A106: 97 | B106: IDFCFIRSTB | C106: 72.6 | D106: 72.42 | E106: 71.43 | F106: 70.27 | G106: 69.28 | H106: 73.58 | I106: 74.57 | J106: 75.73 | K106: 73.4 | L106: 71.25 | M106: 387.96472
A107: 98 | B107: ITC | C107: 439.7 | D107: 441.90 | E107: 436.80 | F107: 433.90 | G107: 428.80 | H107: 444.80 | I107: 449.90 | J107: 452.80 | K107: 447 | L107: 439 | M107: 88.03137
A108: 99 | B108: INDIAMART | C108: 5601.05 | D108: 5605.85 | E108: 5546.70 | F108: 5492.35 | G108: 5433.20 | H108: 5660.20 | I108: 5719.35 | J108: 5773.70 | K108: 5665 | L108: 5551.5 | M108: 1.03278
A109: 100 | B109: INDIANB | C109: 274.9 | D109: 273.77 | E109: 271.03 | F109: 267.17 | G109: 264.43 | H109: 277.63 | I109: 280.37 | J109: 284.23 | K109: 276.5 | L109: 269.9 | M109: 18.31486
A110: 101 | B110: IEX | C110: 153.45 | D110: 153.82 | E110: 152.63 | F110: 151.82 | G110: 150.63 | H110: 154.63 | I110: 155.82 | J110: 156.63 | K110: 155 | L110: 153 | M110: 22.16723
A111: 102 | B111: INDHOTEL | C111: 395.7 | D111: 392.77 | E111: 389.13 | F111: 382.57 | G111: 378.93 | H111: 399.33 | I111: 402.97 | J111: 409.53 | K111: 396.4 | L111: 386.2 | M111: 50.8169
A112: 103 | B112: IOC | C112: 90.5 | D112: 90.52 | E112: 89.88 | F112: 89.27 | G112: 88.63 | H112: 91.13 | I112: 91.77 | J112: 92.38 | K112: 91.15 | L112: 89.9 | M112: 117.70478
A113: 104 | B113: IRCTC | C113: 649.5 | D113: 652.02 | E113: 644.93 | F113: 640.37 | G113: 633.28 | H113: 656.58 | I113: 663.67 | J113: 668.23 | K113: 659.1 | L113: 647.45 | M113: 24.53298
A114: 105 | B114: IGL | C114: 471.75 | D114: 472.10 | E114: 467.80 | F114: 463.85 | G114: 459.55 | H114: 476.05 | I114: 480.35 | J114: 484.30 | K114: 476.4 | L114: 468.15 | M114: 22.744
A115: 106 | B115: INDUSTOWER | C115: 158.55 | D115: 158.37 | E115: 156.03 | F115: 153.52 | G115: 151.18 | H115: 160.88 | I115: 163.22 | J115: 165.73 | K115: 160.7 | L115: 155.85 | M115: 143.42857
A116: 107 | B116: INDUSINDBK | C116: 1290.15 | D116: 1279.88 | E116: 1261.77 | F116: 1233.38 | G116: 1215.27 | H116: 1308.27 | I116: 1326.38 | J116: 1354.77 | K116: 1298 | L116: 1251.5 | M116: 32.44947
A117: 108 | B117: NAUKRI | C117: 4218.65 | D117: 4198.55 | E117: 4115.15 | F117: 4011.65 | G117: 3928.25 | H117: 4302.05 | I117: 4385.45 | J117: 4488.95 | K117: 4281.95 | L117: 4095.05 | M117: 8.2985
A118: 109 | B118: INFY | C118: 1319.5 | D118: 1322.37 | E118: 1315.23 | F118: 1310.97 | G118: 1303.83 | H118: 1326.63 | I118: 1333.77 | J118: 1338.03 | K118: 1329.5 | L118: 1318.1 | M118: 42.77841
A119: 110 | B119: INDIGO | C119: 2343.8 | D119: 2350.68 | E119: 2328.87 | F119: 2313.93 | G119: 2292.12 | H119: 2365.62 | I119: 2387.43 | J119: 2402.37 | K119: 2372.5 | L119: 2335.75 | M119: 4.31516
A120: 111 | B120: IPCALAB | C120: 705.5 | D120: 705.18 | E120: 698.92 | F120: 692.33 | G120: 686.07 | H120: 711.77 | I120: 718.03 | J120: 724.62 | K120: 711.45 | L120: 698.6 | M120: 3.46424
A121: 112 | B121: JSWENERGY | C121: 253.45 | D121: 254.98 | E121: 251.02 | F121: 248.58 | G121: 244.62 | H121: 257.42 | I121: 261.38 | J121: 263.82 | K121: 258.95 | L121: 252.55 | M121: 11.19477
A122: 113 | B122: JSWSTEEL | C122: 693.85 | D122: 695.63 | E122: 689.37 | F122: 684.88 | G122: 678.62 | H122: 700.12 | I122: 706.38 | J122: 710.87 | K122: 701.9 | L122: 691.15 | M122: 19.95511
A123: 114 | B123: JINDALSTEL | C123: 509.85 | D123: 512.90 | E123: 504.90 | F123: 499.95 | G123: 491.95 | H123: 517.85 | I123: 525.85 | J123: 530.80 | K123: 520.9 | L123: 507.95 | M123: 24.36623
A124: 115 | B124: JUBLFOOD | C124: 491.5 | D124: 489.77 | E124: 485.03 | F124: 478.57 | G124: 473.83 | H124: 496.23 | I124: 500.97 | J124: 507.43 | K124: 494.5 | L124: 483.3 | M124: 15.86384
A125: 116 | B125: KOTAKBANK | C125: 1930.05 | D125: 1944.73 | E125: 1910.32 | F125: 1890.58 | G125: 1856.17 | H125: 1964.47 | I125: 1998.88 | J125: 2018.62 | K125: 1979.15 | L125: 1925 | M125: 59.67432
A126: 117 | B126: L&TFH | C126: 104.85 | D126: 104.97 | E126: 104.08 | F126: 103.32 | G126: 102.43 | H126: 105.73 | I126: 106.62 | J126: 107.38 | K126: 105.85 | L126: 104.2 | M126: 68.86135
A127: 118 | B127: LTTS | C127: 3898.05 | D127: 3905.23 | E127: 3878.02 | F127: 3857.98 | G127: 3830.77 | H127: 3925.27 | I127: 3952.48 | J127: 3972.52 | K127: 3932.45 | L127: 3885.2 | M127: 1.1887
A128: 119 | B128: LICHSGFIN | C128: 377.1 | D128: 376.40 | E128: 373.45 | F128: 369.80 | G128: 366.85 | H128: 380.05 | I128: 383.00 | J128: 386.65 | K128: 379.35 | L128: 372.75 | M128: 9.26549
A129: 120 | B129: LTIM | C129: 4969.3 | D129: 4988.95 | E129: 4937.90 | F129: 4906.50 | G129: 4855.45 | H129: 5020.35 | I129: 5071.40 | J129: 5102.80 | K129: 5040 | L129: 4957.55 | M129: 3.20472
A130: 121 | B130: LT | C130: 2207.8 | D130: 2210.65 | E130: 2199.30 | F130: 2190.80 | G130: 2179.45 | H130: 2219.15 | I130: 2230.50 | J130: 2239.00 | K130: 2222 | L130: 2202.15 | M130: 10.49488
A131: 122 | B131: LAURUSLABS | C131: 340.5 | D131: 339.52 | E131: 334.03 | F131: 327.57 | G131: 322.08 | H131: 345.98 | I131: 351.47 | J131: 357.93 | K131: 345 | L131: 333.05 | M131: 69.86665
A132: 123 | B132: LICI | C132: 597.15 | D132: 597.20 | E132: 593.90 | F132: 590.65 | G132: 587.35 | H132: 600.45 | I132: 603.75 | J132: 607.00 | K132: 600.5 | L132: 593.95 | M132: 6.94568
A133: 124 | B133: LINDEINDIA | C133: 3994.3 | D133: 3986.77 | E133: 3969.53 | F133: 3944.77 | G133: 3927.53 | H133: 4011.53 | I133: 4028.77 | J133: 4053.53 | K133: 4004 | L133: 3962 | M133: 0.21891
A134: 125 | B134: LUPIN | C134: 812.15 | D134: 811.50 | E134: 805.65 | F134: 799.15 | G134: 793.30 | H134: 818.00 | I134: 823.85 | J134: 830.35 | K134: 817.35 | L134: 805 | M134: 9.05122
A135: 126 | B135: MRF | C135: 97567.3 | D135: 97551.75 | E135: 97114.55 | F135: 96661.80 | G135: 96224.60 | H135: 98004.50 | I135: 98441.70 | J135: 98894.45 | K135: 97988.95 | L135: 97099 | M135: 0.03795
A136: 127 | B136: M&MFIN | C136: 294.05 | D136: 290.75 | E136: 286.50 | F136: 278.95 | G136: 274.70 | H136: 298.30 | I136: 302.55 | J136: 310.10 | K136: 295 | L136: 283.2 | M136: 50.65861
A137: 128 | B137: M&M | C137: 1318.9 | D137: 1323.13 | E137: 1308.57 | F137: 1298.23 | G137: 1283.67 | H137: 1333.47 | I137: 1348.03 | J137: 1358.37 | K137: 1337.7 | L137: 1312.8 | M137: 23.64455
A138: 129 | B138: MARICO | C138: 556.3 | D138: 551.25 | E138: 543.75 | F138: 531.20 | G138: 523.70 | H138: 563.80 | I138: 571.30 | J138: 583.85 | K138: 558.75 | L138: 538.7 | M138: 19.69756
A139: 130 | B139: MARUTI | C139: 9328.3 | D139: 9309.28 | E139: 9241.02 | F139: 9153.73 | G139: 9085.47 | H139: 9396.57 | I139: 9464.83 | J139: 9552.12 | K139: 9377.55 | L139: 9222 | M139: 3.78706
A140: 131 | B140: MFSL | C140: 703.2 | D140: 707.03 | E140: 698.17 | F140: 693.13 | G140: 684.27 | H140: 712.07 | I140: 720.93 | J140: 725.97 | K140: 715.9 | L140: 702 | M140: 3.05604
A141: 132 | B141: MAXHEALTH | C141: 532.95 | D141: 536.32 | E141: 524.73 | F141: 516.52 | G141: 504.93 | H141: 544.53 | I141: 556.12 | J141: 564.33 | K141: 547.9 | L141: 528.1 | M141: 51.71685
A142: 133 | B142: MSUMI | C142: 58.1 | D142: 58.12 | E142: 57.63 | F142: 57.17 | G142: 56.68 | H142: 58.58 | I142: 59.07 | J142: 59.53 | K142: 58.6 | L142: 57.65 | M142: 35.06798
A143: 134 | B143: MPHASIS | C143: 1977.35 | D143: 1985.12 | E143: 1947.23 | F143: 1917.12 | G143: 1879.23 | H143: 2015.23 | I143: 2053.12 | J143: 2083.23 | K143: 2023 | L143: 1955 | M143: 7.78642
A144: 135 | B144: MUTHOOTFIN | C144: 1126.05 | D144: 1123.23 | E144: 1115.32 | F144: 1104.58 | G144: 1096.67 | H144: 1133.97 | I144: 1141.88 | J144: 1152.62 | K144: 1131.15 | L144: 1112.5 | M144: 2.29233
A145: 136 | B145: NTPC | C145: 174.4 | D145: 173.65 | E145: 172.60 | F145: 170.80 | G145: 169.75 | H145: 175.45 | I145: 176.50 | J145: 178.30 | K145: 174.7 | L145: 171.85 | M145: 116.02551
A146: 137 | B146: NATIONALUM | C146: 82.75 | D146: 83.22 | E146: 82.13 | F146: 81.52 | G146: 80.43 | H146: 83.83 | I146: 84.92 | J146: 85.53 | K146: 84.3 | L146: 82.6 | M146: 43.92057
A147: 138 | B147: NAVINFLUOR | C147: 4592.25 | D147: 4616.22 | E147: 4546.03 | F147: 4499.82 | G147: 4429.63 | H147: 4662.43 | I147: 4732.62 | J147: 4778.83 | K147: 4686.4 | L147: 4570 | M147: 1.00445
A148: 139 | B148: NESTLEIND | C148: 21874.3 | D148: 21790.68 | E148: 21656.42 | F148: 21438.53 | G148: 21304.27 | H148: 22008.57 | I148: 22142.83 | J148: 22360.72 | K148: 21924.95 | L148: 21572.8 | M148: 0.59866
A149: 140 | B149: NAM-INDIA | C149: 247.85 | D149: 248.50 | E149: 245.50 | F149: 243.15 | G149: 240.15 | H149: 250.85 | I149: 253.85 | J149: 256.20 | K149: 251.5 | L149: 246.15 | M149: 2.96798
A150: 141 | B150: OBEROIRLTY | C150: 940.55 | D150: 940.48 | E150: 928.07 | F150: 915.58 | G150: 903.17 | H150: 952.97 | I150: 965.38 | J150: 977.87 | K150: 952.9 | L150: 928 | M150: 6.74688
A151: 142 | B151: ONGC | C151: 153.65 | D151: 154.28 | E151: 152.57 | F151: 151.48 | G151: 149.77 | H151: 155.37 | I151: 157.08 | J151: 158.17 | K151: 156 | L151: 153.2 | M151: 139.82606
A152: 143 | B152: OIL | C152: 254.25 | D152: 255.48 | E152: 252.77 | F152: 251.28 | G152: 248.57 | H152: 256.97 | I152: 259.68 | J152: 261.17 | K152: 258.2 | L152: 254 | M152: 10.2208
A153: 144 | B153: PAYTM | C153: 701.95 | D153: 700.88 | E153: 695.77 | F153: 689.58 | G153: 684.47 | H153: 707.07 | I153: 712.18 | J153: 718.37 | K153: 706 | L153: 694.7 | M153: 16.01582
A154: 145 | B154: OFSS | C154: 3616.55 | D154: 3627.52 | E154: 3599.03 | F154: 3581.52 | G154: 3553.03 | H154: 3645.03 | I154: 3673.52 | J154: 3691.03 | K154: 3656 | L154: 3610 | M154: 0.2838
A155: 146 | B155: POLICYBZR | C155: 598.6 | D155: 602.12 | E155: 591.73 | F155: 584.87 | G155: 574.48 | H155: 608.98 | I155: 619.37 | J155: 626.23 | K155: 612.5 | L155: 595.25 | M155: 6.28794
A156: 147 | B156: PIIND | C156: 3519.55 | D156: 3556.88 | E156: 3468.77 | F156: 3417.98 | G156: 3329.87 | H156: 3607.67 | I156: 3695.78 | J156: 3746.57 | K156: 3645 | L156: 3506.1 | M156: 2.5853
A157: 148 | B157: PAGEIND | C157: 39133.45 | D157: 39029.15 | E157: 38808.30 | F157: 38483.15 | G157: 38262.30 | H157: 39354.30 | I157: 39575.15 | J157: 39900.30 | K157: 39250 | L157: 38704 | M157: 0.30679
A158: 149 | B158: PATANJALI | C158: 1040.5 | D158: 1041.17 | E158: 1027.33 | F158: 1014.17 | G158: 1000.33 | H158: 1054.33 | I158: 1068.17 | J158: 1081.33 | K158: 1055 | L158: 1028 | M158: 2.56052
A159: 150 | B159: PERSISTENT | C159: 5173.5 | D159: 5156.25 | E159: 5111.50 | F159: 5049.50 | G159: 5004.75 | H159: 5218.25 | I159: 5263.00 | J159: 5325.00 | K159: 5201 | L159: 5094.25 | M159: 2.83454
A160: 151 | B160: PETRONET | C160: 223.25 | D160: 224.13 | E160: 221.82 | F160: 220.38 | G160: 218.07 | H160: 225.57 | I160: 227.88 | J160: 229.32 | K160: 226.45 | L160: 222.7 | M160: 9.88792
A161: 152 | B161: PIDILITIND | C161: 2651.55 | D161: 2644.87 | E161: 2620.73 | F161: 2589.92 | G161: 2565.78 | H161: 2675.68 | I161: 2699.82 | J161: 2730.63 | K161: 2669 | L161: 2614.05 | M161: 4.78918
A162: 153 | B162: POLYCAB | C162: 3482.4 | D162: 3460.12 | E162: 3431.28 | F162: 3380.17 | G162: 3351.33 | H162: 3511.23 | I162: 3540.07 | J162: 3591.18 | K162: 3488.95 | L162: 3409 | M162: 3.46059
A163: 154 | B163: POONAWALLA | C163: 343.75 | D163: 344.58 | E163: 341.67 | F163: 339.58 | G163: 336.67 | H163: 346.67 | I163: 349.58 | J163: 351.67 | K163: 347.5 | L163: 342.5 | M163: 8.37407
A164: 155 | B164: PFC | C164: 183.2 | D164: 182.97 | E164: 182.03 | F164: 180.87 | G164: 179.93 | H164: 184.13 | I164: 185.07 | J164: 186.23 | K164: 183.9 | L164: 181.8 | M164: 64.03213
A165: 156 | B165: POWERGRID | C165: 233 | D165: 232.38 | E165: 230.67 | F165: 228.33 | G165: 226.62 | H165: 234.72 | I165: 236.43 | J165: 238.77 | K165: 234.1 | L165: 230.05 | M165: 66.03593
A166: 157 | B166: PRESTIGE | C166: 487.55 | D166: 486.92 | E166: 481.93 | F166: 476.32 | G166: 471.33 | H166: 492.53 | I166: 497.52 | J166: 503.13 | K166: 491.9 | L166: 481.3 | M166: 3.95141
A167: 158 | B167: PGHH | C167: 13621.15 | D167: 13608.73 | E167: 13539.47 | F167: 13457.78 | G167: 13388.52 | H167: 13690.42 | I167: 13759.68 | J167: 13841.37 | K167: 13678 | L167: 13527.05 | M167: 0.02746
A168: 159 | B168: PNB | C168: 51.7 | D168: 51.83 | E168: 51.42 | F168: 51.13 | G168: 50.72 | H168: 52.12 | I168: 52.53 | J168: 52.82 | K168: 52.25 | L168: 51.55 | M168: 291.3565
A169: 160 | B169: RECLTD | C169: 140.6 | D169: 141.15 | E169: 139.85 | F169: 139.10 | G169: 137.80 | H169: 141.90 | I169: 143.20 | J169: 143.95 | K169: 142.45 | L169: 140.4 | M169: 60.36123
A170: 161 | B170: RELIANCE | C170: 2463.25 | D170: 2468.72 | E170: 2452.53 | F170: 2441.82 | G170: 2425.63 | H170: 2479.43 | I170: 2495.62 | J170: 2506.33 | K170: 2484.9 | L170: 2458 | M170: 67.34525
A171: 162 | B171: SBICARD | C171: 910.5 | D171: 910.37 | E171: 903.13 | F171: 895.77 | G171: 888.53 | H171: 917.73 | I171: 924.97 | J171: 932.33 | K171: 917.6 | L171: 903 | M171: 11.3944
A172: 163 | B172: SBILIFE | C172: 1207.75 | D172: 1218.38 | E172: 1193.77 | F172: 1179.78 | G172: 1155.17 | H172: 1232.37 | I172: 1256.98 | J172: 1270.97 | K172: 1243 | L172: 1204.4 | M172: 10.41761
A173: 164 | B173: SRF | C173: 2478.55 | D173: 2491.00 | E173: 2461.25 | F173: 2443.95 | G173: 2414.20 | H173: 2508.30 | I173: 2538.05 | J173: 2555.35 | K173: 2520.75 | L173: 2473.7 | M173: 4.85845
A174: 165 | B174: MOTHERSON | C174: 78.9 | D174: 79.17 | E174: 78.38 | F174: 77.87 | G174: 77.08 | H174: 79.68 | I174: 80.47 | J174: 80.98 | K174: 79.95 | L174: 78.65 | M174: 61.39201
A175: 166 | B175: SHREECEM | C175: 25167.3 | D175: 25221.52 | E175: 25047.98 | F175: 24928.67 | G175: 24755.13 | H175: 25340.83 | I175: 25514.37 | J175: 25633.68 | K175: 25395.05 | L175: 25102.2 | M175: 0.31272
A176: 167 | B176: SHRIRAMFIN | C176: 1410.25 | D176: 1409.50 | E176: 1400.50 | F176: 1390.75 | G176: 1381.75 | H176: 1419.25 | I176: 1428.25 | J176: 1438.00 | K176: 1418.5 | L176: 1399.75 | M176: 5.80575
A177: 168 | B177: SIEMENS | C177: 3534.3 | D177: 3537.33 | E177: 3514.97 | F177: 3495.63 | G177: 3473.27 | H177: 3556.67 | I177: 3579.03 | J177: 3598.37 | K177: 3559.7 | L177: 3518 | M177: 1.97495
A178: 169 | B178: SONACOMS | C178: 530.2 | D178: 534.23 | E178: 521.47 | F178: 512.73 | G178: 499.97 | H178: 542.97 | I178: 555.73 | J178: 564.47 | K178: 547 | L178: 525.5 | M178: 58.29695
A179: 170 | B179: SBIN | C179: 582.75 | D179: 583.38 | E179: 580.37 | F179: 577.98 | G179: 574.97 | H179: 585.77 | I179: 588.78 | J179: 591.17 | K179: 586.4 | L179: 581 | M179: 178.20226
A180: 171 | B180: SAIL | C180: 82.2 | D180: 82.32 | E180: 81.68 | F180: 81.17 | G180: 80.53 | H180: 82.83 | I180: 83.47 | J180: 83.98 | K180: 82.95 | L180: 81.8 | M180: 229.11903
A181: 172 | B181: SUNPHARMA | C181: 987.7 | D181: 984.38 | E181: 978.32 | F181: 968.93 | G181: 962.87 | H181: 993.77 | I181: 999.83 | J181: 1009.22 | K181: 990.45 | L181: 975 | M181: 32.61906
A182: 173 | B182: SUNTV | C182: 453.1 | D182: 450.97 | E182: 447.63 | F182: 442.17 | G182: 438.83 | H182: 456.43 | I182: 459.77 | J182: 465.23 | K182: 454.3 | L182: 445.5 | M182: 6.22361
A183: 174 | B183: SYNGENE | C183: 726.55 | D183: 725.40 | E183: 721.15 | F183: 715.75 | G183: 711.50 | H183: 730.80 | I183: 735.05 | J183: 740.45 | K183: 729.65 | L183: 720 | M183: 4.50379
A184: 175 | B184: TVSMOTOR | C184: 1272.1 | D184: 1277.53 | E184: 1264.57 | F184: 1257.03 | G184: 1244.07 | H184: 1285.07 | I184: 1298.03 | J184: 1305.57 | K184: 1290.5 | L184: 1270 | M184: 7.27641
A185: 176 | B185: TATACHEM | C185: 968.95 | D185: 970.67 | E185: 964.43 | F185: 959.92 | G185: 953.68 | H185: 975.18 | I185: 981.42 | J185: 985.93 | K185: 976.9 | L185: 966.15 | M185: 4.1483
A186: 177 | B186: TATACOMM | C186: 1334 | D186: 1326.33 | E186: 1305.92 | F186: 1277.83 | G186: 1257.42 | H186: 1354.42 | I186: 1374.83 | J186: 1402.92 | K186: 1346.75 | L186: 1298.25 | M186: 7.16301
A187: 178 | B187: TCS | C187: 3324 | D187: 3320.50 | E187: 3301.00 | F187: 3278.00 | G187: 3258.50 | H187: 3343.50 | I187: 3363.00 | J187: 3386.00 | K187: 3340 | L187: 3297.5 | M187: 11.77314
A188: 179 | B188: TATACONSUM | C188: 793.65 | D188: 794.82 | E188: 788.18 | F188: 782.72 | G188: 776.08 | H188: 800.28 | I188: 806.92 | J188: 812.38 | K188: 801.45 | L188: 789.35 | M188: 7.03293
A189: 180 | B189: TATAELXSI | C189: 7634.5 | D189: 7580.23 | E189: 7510.47 | F189: 7386.43 | G189: 7316.67 | H189: 7704.27 | I189: 7774.03 | J189: 7898.07 | K189: 7650 | L189: 7456.2 | M189: 3.82173
A190: 181 | B190: TATAMOTORS | C190: 535.2 | D190: 531.43 | E190: 526.62 | F190: 518.03 | G190: 513.22 | H190: 540.02 | I190: 544.83 | J190: 553.42 | K190: 536.25 | L190: 522.85 | M190: 125.11265
A191: 182 | B191: TATAPOWER | C191: 215.3 | D191: 215.10 | E191: 213.20 | F191: 211.10 | G191: 209.20 | H191: 217.20 | I191: 219.10 | J191: 221.20 | K191: 217 | L191: 213 | M191: 63.24964
A192: 183 | B192: TATASTEEL | C192: 105.95 | D192: 106.15 | E192: 105.60 | F192: 105.25 | G192: 104.70 | H192: 106.50 | I192: 107.05 | J192: 107.40 | K192: 106.7 | L192: 105.8 | M192: 212.11538
A193: 184 | B193: TTML | C193: 63.75 | D193: 63.83 | E193: 61.37 | F193: 58.98 | G193: 56.52 | H193: 66.22 | I193: 68.68 | J193: 71.07 | K193: 66.3 | L193: 61.45 | M193: 76.34926
A194: 185 | B194: TECHM | C194: 1120.8 | D194: 1125.03 | E194: 1113.37 | F194: 1105.93 | G194: 1094.27 | H194: 1132.47 | I194: 1144.13 | J194: 1151.57 | K194: 1136.7 | L194: 1117.6 | M194: 14.1228
A195: 186 | B195: RAMCOCEM | C195: 908.3 | D195: 908.60 | E195: 900.80 | F195: 893.30 | G195: 885.50 | H195: 916.10 | I195: 923.90 | J195: 931.40 | K195: 916.4 | L195: 901.1 | M195: 2.90889
A196: 187 | B196: TITAN | C196: 2827.25 | D196: 2826.53 | E196: 2815.42 | F196: 2803.58 | G196: 2792.47 | H196: 2838.37 | I196: 2849.48 | J196: 2861.32 | K196: 2837.65 | L196: 2814.7 | M196: 5.3855
A197: 188 | B197: TORNTPHARM | C197: 1774.8 | D197: 1794.18 | E197: 1744.52 | F197: 1714.23 | G197: 1664.57 | H197: 1824.47 | I197: 1874.13 | J197: 1904.42 | K197: 1843.85 | L197: 1763.9 | M197: 11.1367
A198: 189 | B198: TORNTPOWER | C198: 561.55 | D198: 558.58 | E198: 551.17 | F198: 540.78 | G198: 533.37 | H198: 568.97 | I198: 576.38 | J198: 586.77 | K198: 566 | L198: 548.2 | M198: 3.11774
A199: 190 | B199: TRENT | C199: 1562.4 | D199: 1561.82 | E199: 1550.58 | F199: 1538.77 | G199: 1527.53 | H199: 1573.63 | I199: 1584.87 | J199: 1596.68 | K199: 1573.05 | L199: 1550 | M199: 4.52507
A200: 191 | B200: TRIDENT | C200: 32.2 | D200: 32.37 | E200: 31.88 | F200: 31.57 | G200: 31.08 | H200: 32.68 | I200: 33.17 | J200: 33.48 | K200: 32.85 | L200: 32.05 | M200: 51.43932
A201: 192 | B201: TIINDIA | C201: 2885.7 | D201: 2882.90 | E201: 2835.80 | F201: 2785.90 | G201: 2738.80 | H201: 2932.80 | I201: 2979.90 | J201: 3029.80 | K201: 2930 | L201: 2833 | M201: 1.36944
A202: 193 | B202: UPL | C202: 677.95 | D202: 679.85 | E202: 674.60 | F202: 671.25 | G202: 666.00 | H202: 683.20 | I202: 688.45 | J202: 691.80 | K202: 685.1 | L202: 676.5 | M202: 24.70088
A203: 194 | B203: ULTRACEMCO | C203: 7842.8 | D203: 7850.47 | E203: 7802.13 | F203: 7761.47 | G203: 7713.13 | H203: 7891.13 | I203: 7939.47 | J203: 7980.13 | K203: 7898.8 | L203: 7809.8 | M203: 1.84642
A204: 195 | B204: UNIONBANK | C204: 72.3 | D204: 72.08 | E204: 71.37 | F204: 70.43 | G204: 69.72 | H204: 73.02 | I204: 73.73 | J204: 74.67 | K204: 72.8 | L204: 71.15 | M204: 97.56887
A205: 196 | B205: UBL | C205: 1463.1 | D205: 1464.47 | E205: 1454.43 | F205: 1445.77 | G205: 1435.73 | H205: 1473.13 | I205: 1483.17 | J205: 1491.83 | K205: 1474.5 | L205: 1455.8 | M205: 2.45109
... 29 more rows

Sheet MidCap Intra
L5: Back To Main Page
A6: FOR INTRA DAY TRADING | K6: =Main!B10 -> 2023-06-02
A9: Sr.no | B9: Scrip | C9: CLOSE RATE | D9: Pivot Point | E9: Supports | H9: Resistances
E10: S1 | F10: S2 | G10: S3 | H10: R1 | I10: R2 | J10: R3 | K10: HIGH | L10: LOW | M10: Total Trade Quanity in Lakhs
A11: 1 | B11: 360ONE | C11: 419.9 | D11: 421.03 | E11: 417.07 | F11: 414.23 | G11: 410.27 | H11: 423.87 | I11: 427.83 | J11: 430.67 | K11: 425 | L11: 418.2 | M11: 7.55519
A12: 2 | B12: 3MINDIA | C12: 26290.7 | D12: 25918.27 | E12: 25386.53 | F12: 24482.37 | G12: 23950.63 | H12: 26822.43 | I12: 27354.17 | J12: 28258.33 | K12: 26450 | L12: 25014.1 | M12: 0.09503
A13: 3 | B13: ABB | C13: 3944.65 | D13: 4007.15 | E13: 3874.30 | F13: 3803.95 | G13: 3671.10 | H13: 4077.50 | I13: 4210.35 | J13: 4280.70 | K13: 4140 | L13: 3936.8 | M13: 4.2149
A14: 4 | B14: ACC | C14: 1800.3 | D14: 1801.57 | E14: 1779.43 | F14: 1758.57 | G14: 1736.43 | H14: 1822.43 | I14: 1844.57 | J14: 1865.43 | K14: 1823.7 | L14: 1780.7 | M14: 5.42023
A15: 5 | B15: AIAENG | C15: 3030 | D15: 3040.10 | E15: 2991.20 | F15: 2952.40 | G15: 2903.50 | H15: 3078.90 | I15: 3127.80 | J15: 3166.60 | K15: 3089 | L15: 3001.3 | M15: 1.59497
A16: 6 | B16: APLAPOLLO | C16: 1142.85 | D16: 1138.32 | E16: 1124.63 | F16: 1106.42 | G16: 1092.73 | H16: 1156.53 | I16: 1170.22 | J16: 1188.43 | K16: 1152 | L16: 1120.1 | M16: 5.46073
A17: 7 | B17: AUBANK | C17: 769.75 | D17: 772.40 | E17: 762.65 | F17: 755.55 | G17: 745.80 | H17: 779.50 | I17: 789.25 | J17: 796.35 | K17: 782.15 | L17: 765.3 | M17: 13.86561
A18: 8 | B18: AARTIDRUGS | C18: 454.65 | D18: 451.92 | E18: 441.83 | F18: 429.02 | G18: 418.93 | H18: 464.73 | I18: 474.82 | J18: 487.63 | K18: 462 | L18: 439.1 | M18: 9.07466
A19: 9 | B19: AAVAS | C19: 1390.85 | D19: 1393.03 | E19: 1380.87 | F19: 1370.88 | G19: 1358.72 | H19: 1403.02 | I19: 1415.18 | J19: 1425.17 | K19: 1405.2 | L19: 1383.05 | M19: 1.58446
A20: 10 | B20: ABBOTINDIA | C20: 21602.65 | D20: 21680.78 | E20: 21471.87 | F20: 21341.08 | G20: 21132.17 | H20: 21811.57 | I20: 22020.48 | J20: 22151.27 | K20: 21889.7 | L20: 21550 | M20: 0.10678
A21: 11 | B21: ADANIENT | C21: 2492.15 | D21: 2512.48 | E21: 2464.97 | F21: 2437.78 | G21: 2390.27 | H21: 2539.67 | I21: 2587.18 | J21: 2614.37 | K21: 2560 | L21: 2485.3 | M21: 17.04946
A22: 12 | B22: ADANIGREEN | C22: 993.95 | D22: 996.32 | E22: 981.63 | F22: 969.32 | G22: 954.63 | H22: 1008.63 | I22: 1023.32 | J22: 1035.63 | K22: 1011 | L22: 984 | M22: 46.39202
A23: 13 | B23: ADANIPORTS | C23: 732.05 | D23: 735.33 | E23: 725.72 | F23: 719.38 | G23: 709.77 | H23: 741.67 | I23: 751.28 | J23: 757.62 | K23: 744.95 | L23: 729 | M23: 37.7176
A24: 14 | B24: ATGL | C24: 694.35 | D24: 680.75 | E24: 664.15 | F24: 633.95 | G24: 617.35 | H24: 710.95 | I24: 727.55 | J24: 757.75 | K24: 697.35 | L24: 650.55 | M24: 165.89982
A25: 15 | B25: ADANITRANS | C25: 815.5 | D25: 808.12 | E25: 800.73 | F25: 785.97 | G25: 778.58 | H25: 822.88 | I25: 830.27 | J25: 845.03 | K25: 815.5 | L25: 793.35 | M25: 40.42939
A26: 16 | B26: AWL | C26: 442.05 | D26: 443.47 | E26: 438.58 | F26: 435.12 | G26: 430.23 | H26: 446.93 | I26: 451.82 | J26: 455.28 | K26: 448.35 | L26: 440 | M26: 18.25488
A27: 17 | B27: ABCAPITAL | C27: 171.85 | D27: 171.55 | E27: 170.60 | F27: 169.35 | G27: 168.40 | H27: 172.80 | I27: 173.75 | J27: 175.00 | K27: 172.5 | L27: 170.3 | M27: 28.58463
A28: 18 | B28: ABFRL | C28: 203.3 | D28: 203.15 | E28: 201.80 | F28: 200.30 | G28: 198.95 | H28: 204.65 | I28: 206.00 | J28: 207.50 | K28: 204.5 | L28: 201.65 | M28: 18.17415
A29: 19 | B29: ABSLAMC | C29: 355.05 | D29: 356.42 | E29: 352.63 | F29: 350.22 | G29: 346.43 | H29: 358.83 | I29: 362.62 | J29: 365.03 | K29: 360.2 | L29: 354 | M29: 0.25854
A30: 20 | B30: AEGISCHEM | C30: 342.35 | D30: 348.52 | E30: 332.53 | F30: 322.72 | G30: 306.73 | H30: 358.33 | I30: 374.32 | J30: 384.13 | K30: 364.5 | L30: 338.7 | M30: 9.71591
A31: 21 | B31: AETHER | C31: 905 | D31: 904.30 | E31: 898.70 | F31: 892.40 | G31: 886.80 | H31: 910.60 | I31: 916.20 | J31: 922.50 | K31: 909.9 | L31: 898 | M31: 4.04115
A32: 22 | B32: AFFLE | C32: 958.85 | D32: 963.42 | E32: 949.43 | F32: 940.02 | G32: 926.03 | H32: 972.83 | I32: 986.82 | J32: 996.23 | K32: 977.4 | L32: 954 | M32: 2.39082
A33: 23 | B33: AJANTPHARM | C33: 1313.75 | D33: 1309.52 | E33: 1297.08 | F33: 1280.42 | G33: 1267.98 | H33: 1326.18 | I33: 1338.62 | J33: 1355.28 | K33: 1321.95 | L33: 1292.85 | M33: 1.33548
A34: 24 | B34: APLLTD | C34: 548.85 | D34: 550.92 | E34: 541.33 | F34: 533.82 | G34: 524.23 | H34: 558.43 | I34: 568.02 | J34: 575.53 | K34: 560.5 | L34: 543.4 | M34: 0.62377
A35: 25 | B35: ALKEM | C35: 3380.35 | D35: 3388.52 | E35: 3358.28 | F35: 3336.22 | G35: 3305.98 | H35: 3410.58 | I35: 3440.82 | J35: 3462.88 | K35: 3418.75 | L35: 3366.45 | M35: 0.55564
A36: 26 | B36: ALKYLAMINE | C36: 2469.8 | D36: 2475.45 | E36: 2458.35 | F36: 2446.90 | G36: 2429.80 | H36: 2486.90 | I36: 2504.00 | J36: 2515.45 | K36: 2492.55 | L36: 2464 | M36: 0.18358
A37: 27 | B37: ALOKINDS | C37: 13.85 | D37: 13.68 | E37: 13.32 | F37: 12.78 | G37: 12.42 | H37: 14.22 | I37: 14.58 | J37: 15.12 | K37: 14.05 | L37: 13.15 | M37: 92.93984
A38: 28 | B38: AMARAJABAT | C38: 621.45 | D38: 617.00 | E38: 606.65 | F38: 591.85 | G38: 581.50 | H38: 631.80 | I38: 642.15 | J38: 656.95 | K38: 627.35 | L38: 602.2 | M38: 6.92979
A39: 29 | B39: AMBER | C39: 2148.05 | D39: 2149.67 | E39: 2120.83 | F39: 2093.62 | G39: 2064.78 | H39: 2176.88 | I39: 2205.72 | J39: 2232.93 | K39: 2178.5 | L39: 2122.45 | M39: 2.03207
A40: 30 | B40: AMBUJACEM | C40: 429.25 | D40: 428.17 | E40: 425.08 | F40: 420.92 | G40: 417.83 | H40: 432.33 | I40: 435.42 | J40: 439.58 | K40: 431.25 | L40: 424 | M40: 34.22014
A41: 31 | B41: ANGELONE | C41: 1340.4 | D41: 1344.77 | E41: 1320.63 | F41: 1300.87 | G41: 1276.73 | H41: 1364.53 | I41: 1388.67 | J41: 1408.43 | K41: 1368.9 | L41: 1325 | M41: 3.30212
A42: 32 | B42: ANURAS | C42: 1115.3 | D42: 1122.43 | E42: 1084.97 | F42: 1054.63 | G42: 1017.17 | H42: 1152.77 | I42: 1190.23 | J42: 1220.57 | K42: 1159.9 | L42: 1092.1 | M42: 2.44429
A43: 33 | B43: APOLLOHOSP | C43: 4814.25 | D43: 4782.42 | E43: 4717.83 | F43: 4621.42 | G43: 4556.83 | H43: 4878.83 | I43: 4943.42 | J43: 5039.83 | K43: 4847 | L43: 4686 | M43: 16.92479
A44: 34 | B44: APOLLOTYRE | C44: 391 | D44: 391.10 | E44: 388.75 | F44: 386.50 | G44: 384.15 | H44: 393.35 | I44: 395.70 | J44: 397.95 | K44: 393.45 | L44: 388.85 | M44: 8.15217
A45: 35 | B45: APTUS | C45: 265.1 | D45: 263.45 | E45: 260.90 | F45: 256.70 | G45: 254.15 | H45: 267.65 | I45: 270.20 | J45: 274.40 | K45: 266 | L45: 259.25 | M45: 13.13682
A46: 36 | B46: ASAHIINDIA | C46: 455.7 | D46: 454.45 | E46: 450.10 | F46: 444.50 | G46: 440.15 | H46: 460.05 | I46: 464.40 | J46: 470.00 | K46: 458.8 | L46: 448.85 | M46: 0.65783
A47: 37 | B47: ASHOKLEY | C47: 147.15 | D47: 146.93 | E47: 145.87 | F47: 144.58 | G47: 143.52 | H47: 148.22 | I47: 149.28 | J47: 150.57 | K47: 148 | L47: 145.65 | M47: 58.44016
A48: 38 | B48: ASIANPAINT | C48: 3240.7 | D48: 3232.53 | E48: 3215.17 | F48: 3189.63 | G48: 3172.27 | H48: 3258.07 | I48: 3275.43 | J48: 3300.97 | K48: 3249.9 | L48: 3207 | M48: 11.04861
A49: 39 | B49: ASTERDM | C49: 270.5 | D49: 270.03 | E49: 267.52 | F49: 264.53 | G49: 262.02 | H49: 273.02 | I49: 275.53 | J49: 278.52 | K49: 272.55 | L49: 267.05 | M49: 2.27551
A50: 40 | B50: ASTRAZEN | C50: 3502.5 | D50: 3522.50 | E50: 3460.00 | F50: 3417.50 | G50: 3355.00 | H50: 3565.00 | I50: 3627.50 | J50: 3670.00 | K50: 3585 | L50: 3480 | M50: 0.20424
A51: 41 | B51: ASTRAL | C51: 1809.1 | D51: 1816.00 | E51: 1795.00 | F51: 1780.90 | G51: 1759.90 | H51: 1830.10 | I51: 1851.10 | J51: 1865.20 | K51: 1837 | L51: 1801.9 | M51: 3.76713
A52: 42 | B52: ATUL | C52: 6742.1 | D52: 6749.20 | E52: 6698.40 | F52: 6654.70 | G52: 6603.90 | H52: 6792.90 | I52: 6843.70 | J52: 6887.40 | K52: 6800 | L52: 6705.5 | M52: 0.2755
A53: 43 | B53: AUROPHARMA | C53: 658.7 | D53: 655.28 | E53: 649.57 | F53: 640.43 | G53: 634.72 | H53: 664.42 | I53: 670.13 | J53: 679.27 | K53: 661 | L53: 646.15 | M53: 16.57715
A54: 44 | B54: AVANTIFEED | C54: 384.1 | D54: 385.68 | E54: 381.42 | F54: 378.73 | G54: 374.47 | H54: 388.37 | I54: 392.63 | J54: 395.32 | K54: 389.95 | L54: 383 | M54: 1.30544
A55: 45 | B55: DMART | C55: 3500.9 | D55: 3500.30 | E55: 3473.60 | F55: 3446.30 | G55: 3419.60 | H55: 3527.60 | I55: 3554.30 | J55: 3581.60 | K55: 3527 | L55: 3473 | M55: 1.89632
A56: 46 | B56: AXISBANK | C56: 919.7 | D56: 922.23 | E56: 913.52 | F56: 907.33 | G56: 898.62 | H56: 928.42 | I56: 937.13 | J56: 943.32 | K56: 930.95 | L56: 916.05 | M56: 118.17533
A57: 47 | B57: BASF | C57: 2513.9 | D57: 2526.48 | E57: 2493.42 | F57: 2472.93 | G57: 2439.87 | H57: 2546.97 | I57: 2580.03 | J57: 2600.52 | K57: 2559.55 | L57: 2506 | M57: 0.23296
A58: 48 | B58: BEML | C58: 1498.2 | D58: 1479.92 | E58: 1454.83 | F58: 1411.47 | G58: 1386.38 | H58: 1523.28 | I58: 1548.37 | J58: 1591.73 | K58: 1505 | L58: 1436.55 | M58: 4.76949
A59: 49 | B59: BSE | C59: 570.7 | D59: 568.25 | E59: 560.50 | F59: 550.30 | G59: 542.55 | H59: 578.45 | I59: 586.20 | J59: 596.40 | K59: 576 | L59: 558.05 | M59: 19.05639
A60: 50 | B60: BAJAJ-AUTO | C60: 4643.6 | D60: 4626.88 | E60: 4583.97 | F60: 4524.33 | G60: 4481.42 | H60: 4686.52 | I60: 4729.43 | J60: 4789.07 | K60: 4669.8 | L60: 4567.25 | M60: 6.98733
A61: 51 | B61: BAJAJELEC | C61: 1157.15 | D61: 1154.82 | E61: 1146.38 | F61: 1135.62 | G61: 1127.18 | H61: 1165.58 | I61: 1174.02 | J61: 1184.78 | K61: 1163.25 | L61: 1144.05 | M61: 0.66606
A62: 52 | B62: BAJFINANCE | C62: 7040.5 | D62: 7016.30 | E62: 6975.30 | F62: 6910.10 | G62: 6869.10 | H62: 7081.50 | I62: 7122.50 | J62: 7187.70 | K62: 7057.3 | L62: 6951.1 | M62: 5.90026
A63: 53 | B63: BAJAJFINSV | C63: 1450.15 | D63: 1451.05 | E63: 1443.10 | F63: 1436.05 | G63: 1428.10 | H63: 1458.10 | I63: 1466.05 | J63: 1473.10 | K63: 1459 | L63: 1444 | M63: 9.39379
A64: 54 | B64: BAJAJHLDNG | C64: 6993.1 | D64: 7071.45 | E64: 6846.65 | F64: 6700.20 | G64: 6475.40 | H64: 7217.90 | I64: 7442.70 | J64: 7589.15 | K64: 7296.25 | L64: 6925 | M64: 0.73859
A65: 55 | B65: BALAMINES | C65: 2116.65 | D65: 2121.97 | E65: 2100.93 | F65: 2085.22 | G65: 2064.18 | H65: 2137.68 | I65: 2158.72 | J65: 2174.43 | K65: 2143 | L65: 2106.25 | M65: 0.38924
A66: 56 | B66: BALKRISIND | C66: 2287.4 | D66: 2292.40 | E66: 2275.00 | F66: 2262.60 | G66: 2245.20 | H66: 2304.80 | I66: 2322.20 | J66: 2334.60 | K66: 2309.8 | L66: 2280 | M66: 2.10324
A67: 57 | B67: BALRAMCHIN | C67: 390.5 | D67: 392.02 | E67: 387.58 | F67: 384.67 | G67: 380.23 | H67: 394.93 | I67: 399.37 | J67: 402.28 | K67: 396.45 | L67: 389.1 | M67: 4.98032
A68: 58 | B68: BANDHANBNK | C68: 268.35 | D68: 268.75 | E68: 265.50 | F68: 262.65 | G68: 259.40 | H68: 271.60 | I68: 274.85 | J68: 277.70 | K68: 272 | L68: 265.9 | M68: 53.67508
A69: 59 | B69: BANKBARODA | C69: 184.85 | D69: 185.37 | E69: 183.58 | F69: 182.32 | G69: 180.53 | H69: 186.63 | I69: 188.42 | J69: 189.68 | K69: 187.15 | L69: 184.1 | M69: 115.92705
A70: 60 | B70: BANKINDIA | C70: 74.5 | D70: 74.35 | E70: 73.60 | F70: 72.70 | G70: 71.95 | H70: 75.25 | I70: 76.00 | J70: 76.90 | K70: 75.1 | L70: 73.45 | M70: 77.83523
A71: 61 | B71: MAHABANK | C71: 31.35 | D71: 31.10 | E71: 30.60 | F71: 29.85 | G71: 29.35 | H71: 31.85 | I71: 32.35 | J71: 33.10 | K71: 31.6 | L71: 30.35 | M71: 276.80636
A72: 62 | B72: BATAINDIA | C72: 1577.85 | D72: 1583.20 | E72: 1566.45 | F72: 1555.05 | G72: 1538.30 | H72: 1594.60 | I72: 1611.35 | J72: 1622.75 | K72: 1599.95 | L72: 1571.8 | M72: 0.76898
A73: 63 | B73: BAYERCROP | C73: 4293.95 | D73: 4277.18 | E73: 4241.77 | F73: 4189.58 | G73: 4154.17 | H73: 4329.37 | I73: 4364.78 | J73: 4416.97 | K73: 4312.6 | L73: 4225 | M73: 0.14907
A74: 64 | B74: BERGEPAINT | C74: 650.5 | D74: 653.25 | E74: 646.75 | F74: 643.00 | G74: 636.50 | H74: 657.00 | I74: 663.50 | J74: 667.25 | K74: 659.75 | L74: 649.5 | M74: 6.32165
A75: 65 | B75: BDL | C75: 1111.2 | D75: 1107.22 | E75: 1090.33 | F75: 1069.47 | G75: 1052.58 | H75: 1128.08 | I75: 1144.97 | J75: 1165.83 | K75: 1124.1 | L75: 1086.35 | M75: 5.69517
A76: 66 | B76: BEL | C76: 112.9 | D76: 112.78 | E76: 112.12 | F76: 111.33 | G76: 110.67 | H76: 113.57 | I76: 114.23 | J76: 115.02 | K76: 113.45 | L76: 112 | M76: 91.85292
A77: 67 | B77: BHARATFORG | C77: 797.05 | D77: 794.23 | E77: 789.07 | F77: 781.08 | G77: 775.92 | H77: 802.22 | I77: 807.38 | J77: 815.37 | K77: 799.4 | L77: 786.25 | M77: 10.65254
A78: 68 | B78: BHEL | C78: 82 | D78: 82.37 | E78: 81.43 | F78: 80.87 | G78: 79.93 | H78: 82.93 | I78: 83.87 | J78: 84.43 | K78: 83.3 | L78: 81.8 | M78: 117.38032
A79: 69 | B79: BPCL | C79: 364.55 | D79: 365.85 | E79: 362.80 | F79: 361.05 | G79: 358.00 | H79: 367.60 | I79: 370.65 | J79: 372.40 | K79: 368.9 | L79: 364.1 | M79: 17.68641
A80: 70 | B80: BHARATRAS | C80: 9737.55 | D80: 9802.83 | E80: 9656.72 | F80: 9575.88 | G80: 9429.77 | H80: 9883.67 | I80: 10029.78 | J80: 10110.62 | K80: 9948.95 | L80: 9722 | M80: 0.0171
A81: 71 | B81: BHARTIARTL | C81: 827.95 | D81: 829.63 | E81: 821.32 | F81: 814.68 | G81: 806.37 | H81: 836.27 | I81: 844.58 | J81: 851.22 | K81: 837.95 | L81: 823 | M81: 97.13155
A82: 72 | B82: BIOCON | C82: 245.3 | D82: 246.08 | E82: 244.22 | F82: 243.13 | G82: 241.27 | H82: 247.17 | I82: 249.03 | J82: 250.12 | K82: 247.95 | L82: 245 | M82: 25.22264
A83: 73 | B83: BIRLACORPN | C83: 1146.6 | D83: 1135.08 | E83: 1114.67 | F83: 1082.73 | G83: 1062.32 | H83: 1167.02 | I83: 1187.43 | J83: 1219.37 | K83: 1155.5 | L83: 1103.15 | M83: 3.22295
A84: 74 | B84: BSOFT | C84: 343.85 | D84: 345.42 | E84: 340.48 | F84: 337.12 | G84: 332.18 | H84: 348.78 | I84: 353.72 | J84: 357.08 | K84: 350.35 | L84: 342.05 | M84: 21.02679
A85: 75 | B85: BLUEDART | C85: 6206.5 | D85: 6229.53 | E85: 6162.17 | F85: 6117.83 | G85: 6050.47 | H85: 6273.87 | I85: 6341.23 | J85: 6385.57 | K85: 6296.9 | L85: 6185.2 | M85: 0.10371
A86: 76 | B86: BLUESTARCO | C86: 1444 | D86: 1439.08 | E86: 1426.17 | F86: 1408.33 | G86: 1395.42 | H86: 1456.92 | I86: 1469.83 | J86: 1487.67 | K86: 1452 | L86: 1421.25 | M86: 0.7899
A87: 77 | B87: BBTC | C87: 957.1 | D87: 961.87 | E87: 950.23 | F87: 943.37 | G87: 931.73 | H87: 968.73 | I87: 980.37 | J87: 987.23 | K87: 973.5 | L87: 955 | M87: 0.38669
A88: 78 | B88: BORORENEW | C88: 539.95 | D88: 544.77 | E88: 530.83 | F88: 521.72 | G88: 507.78 | H88: 553.88 | I88: 567.82 | J88: 576.93 | K88: 558.7 | L88: 535.65 | M88: 6.86083
A89: 79 | B89: BOSCHLTD | C89: 18602 | D89: 18601.83 | E89: 18484.62 | F89: 18367.23 | G89: 18250.02 | H89: 18719.22 | I89: 18836.43 | J89: 18953.82 | K89: 18719.05 | L89: 18484.45 | M89: 0.43911
A90: 80 | B90: BRIGADE | C90: 569.65 | D90: 567.60 | E90: 563.15 | F90: 556.65 | G90: 552.20 | H90: 574.10 | I90: 578.55 | J90: 585.05 | K90: 572.05 | L90: 561.1 | M90: 1.81055
A91: 81 | B91: BCG | C91: 19.6 | D91: 19.45 | E91: 19.30 | F91: 19.00 | G91: 18.85 | H91: 19.75 | I91: 19.90 | J91: 20.20 | K91: 19.6 | L91: 19.15 | M91: 161.05248
A92: 82 | B92: BRITANNIA | C92: 4635.25 | D92: 4625.93 | E92: 4596.87 | F92: 4558.48 | G92: 4529.42 | H92: 4664.32 | I92: 4693.38 | J92: 4731.77 | K92: 4655 | L92: 4587.55 | M92: 1.88427
A93: 83 | B93: MAPMYINDIA | C93: 1101.75 | D93: 1096.55 | E93: 1083.15 | F93: 1064.55 | G93: 1051.15 | H93: 1115.15 | I93: 1128.55 | J93: 1147.15 | K93: 1109.95 | L93: 1077.95 | M93: 0.85068
A94: 84 | B94: CCL | C94: 636.35 | D94: 634.70 | E94: 631.25 | F94: 626.15 | G94: 622.70 | H94: 639.80 | I94: 643.25 | J94: 648.35 | K94: 638.15 | L94: 629.6 | M94: 0.85784
A95: 85 | B95: CESC | C95: 69.15 | D95: 69.22 | E95: 68.93 | F95: 68.72 | G95: 68.43 | H95: 69.43 | I95: 69.72 | J95: 69.93 | K95: 69.5 | L95: 69 | M95: 12.61569
A96: 86 | B96: CGPOWER | C96: 388.55 | D96: 389.68 | E96: 385.07 | F96: 381.58 | G96: 376.97 | H96: 393.17 | I96: 397.78 | J96: 401.27 | K96: 394.3 | L96: 386.2 | M96: 34.35479
A97: 87 | B97: CRISIL | C97: 3822.55 | D97: 3822.83 | E97: 3769.72 | F97: 3716.88 | G97: 3663.77 | H97: 3875.67 | I97: 3928.78 | J97: 3981.62 | K97: 3875.95 | L97: 3770 | M97: 0.21949
A98: 88 | B98: CSBBANK | C98: 278.5 | D98: 279.12 | E98: 276.13 | F98: 273.77 | G98: 270.78 | H98: 281.48 | I98: 284.47 | J98: 286.83 | K98: 282.1 | L98: 276.75 | M98: 1.04207
A99: 89 | B99: CAMPUS | C99: 308.55 | D99: 309.52 | E99: 304.78 | F99: 301.02 | G99: 296.28 | H99: 313.28 | I99: 318.02 | J99: 321.78 | K99: 314.25 | L99: 305.75 | M99: 20.88362
A100: 90 | B100: CANFINHOME | C100: 728.1 | D100: 721.88 | E100: 711.22 | F100: 694.33 | G100: 683.67 | H100: 738.77 | I100: 749.43 | J100: 766.32 | K100: 732.55 | L100: 705 | M100: 13.98058
A101: 91 | B101: CANBK | C101: 309.4 | D101: 309.87 | E101: 308.23 | F101: 307.07 | G101: 305.43 | H101: 311.03 | I101: 312.67 | J101: 313.83 | K101: 311.5 | L101: 308.7 | M101: 46.86805
A102: 92 | B102: CAPLIPOINT | C102: 756.75 | D102: 761.40 | E102: 740.60 | F102: 724.45 | G102: 703.65 | H102: 777.55 | I102: 798.35 | J102: 814.50 | K102: 782.2 | L102: 745.25 | M102: 2.55167
A103: 93 | B103: CGCL | C103: 707.15 | D103: 706.58 | E103: 700.77 | F103: 694.38 | G103: 688.57 | H103: 712.97 | I103: 718.78 | J103: 725.17 | K103: 712.4 | L103: 700.2 | M103: 2.23025
A104: 94 | B104: CARBORUNIV | C104: 1156.35 | D104: 1156.08 | E104: 1147.67 | F104: 1138.98 | G104: 1130.57 | H104: 1164.77 | I104: 1173.18 | J104: 1181.87 | K104: 1164.5 | L104: 1147.4 | M104: 0.40992
A105: 95 | B105: CASTROLIND | C105: 113.8 | D105: 113.43 | E105: 112.87 | F105: 111.93 | G105: 111.37 | H105: 114.37 | I105: 114.93 | J105: 115.87 | K105: 114 | L105: 112.5 | M105: 4.06422
A106: 96 | B106: CEATLTD | C106: 1928.2 | D106: 1937.63 | E106: 1911.57 | F106: 1894.93 | G106: 1868.87 | H106: 1954.27 | I106: 1980.33 | J106: 1996.97 | K106: 1963.7 | L106: 1921 | M106: 1.52686
A107: 97 | B107: CENTRALBK | C107: 27.75 | D107: 27.60 | E107: 27.10 | F107: 26.45 | G107: 25.95 | H107: 28.25 | I107: 28.75 | J107: 29.40 | K107: 28.1 | L107: 26.95 | M107: 139.45273
A108: 98 | B108: CDSL | C108: 1068.9 | D108: 1062.28 | E108: 1042.17 | F108: 1015.43 | G108: 995.32 | H108: 1089.02 | I108: 1109.13 | J108: 1135.87 | K108: 1082.4 | L108: 1035.55 | M108: 21.80525
A109: 99 | B109: CENTURYPLY | C109: 563.05 | D109: 562.30 | E109: 555.75 | F109: 548.45 | G109: 541.90 | H109: 569.60 | I109: 576.15 | J109: 583.45 | K109: 568.85 | L109: 555 | M109: 0.48663
A110: 100 | B110: CENTURYTEX | C110: 802 | D110: 799.65 | E110: 794.85 | F110: 787.70 | G110: 782.90 | H110: 806.80 | I110: 811.60 | J110: 818.75 | K110: 804.45 | L110: 792.5 | M110: 1.40966
A111: 101 | B111: CERA | C111: 7621.5 | D111: 7646.48 | E111: 7515.02 | F111: 7408.53 | G111: 7277.07 | H111: 7752.97 | I111: 7884.43 | J111: 7990.92 | K111: 7777.95 | L111: 7540 | M111: 0.29401
A112: 102 | B112: CHALET | C112: 433.45 | D112: 435.00 | E112: 429.10 | F112: 424.75 | G112: 418.85 | H112: 439.35 | I112: 445.25 | J112: 449.60 | K112: 440.9 | L112: 430.65 | M112: 1.91158
A113: 103 | B113: CHAMBLFERT | C113: 280.2 | D113: 280.82 | E113: 278.88 | F113: 277.57 | G113: 275.63 | H113: 282.13 | I113: 284.07 | J113: 285.38 | K113: 282.75 | L113: 279.5 | M113: 5.3221
A114: 104 | B114: CHEMPLASTS | C114: 446.95 | D114: 450.37 | E114: 441.13 | F114: 435.32 | G114: 426.08 | H114: 456.18 | I114: 465.42 | J114: 471.23 | K114: 459.6 | L114: 444.55 | M114: 1.21878
A115: 105 | B115: CHOLAHLDNG | C115: 814.4 | D115: 811.30 | E115: 798.65 | F115: 782.90 | G115: 770.25 | H115: 827.05 | I115: 839.70 | J115: 855.45 | K115: 823.95 | L115: 795.55 | M115: 0.2284
A116: 106 | B116: CHOLAFIN | C116: 1043.9 | D116: 1044.30 | E116: 1037.60 | F116: 1031.30 | G116: 1024.60 | H116: 1050.60 | I116: 1057.30 | J116: 1063.60 | K116: 1051 | L116: 1038 | M116: 8.47659
A117: 107 | B117: CIPLA | C117: 964.75 | D117: 959.33 | E117: 952.17 | F117: 939.58 | G117: 932.42 | H117: 971.92 | I117: 979.08 | J117: 991.67 | K117: 966.5 | L117: 946.75 | M117: 11.32919
A118: 108 | B118: CUB | C118: 123.5 | D118: 123.60 | E118: 122.20 | F118: 120.90 | G118: 119.50 | H118: 124.90 | I118: 126.30 | J118: 127.60 | K118: 125 | L118: 122.3 | M118: 156.47347
A119: 109 | B119: CLEAN | C119: 1411.5 | D119: 1415.63 | E119: 1403.87 | F119: 1396.23 | G119: 1384.47 | H119: 1423.27 | I119: 1435.03 | J119: 1442.67 | K119: 1427.4 | L119: 1408 | M119: 0.70719
A120: 110 | B120: COALINDIA | C120: 230.35 | D120: 230.47 | E120: 229.03 | F120: 227.72 | G120: 226.28 | H120: 231.78 | I120: 233.22 | J120: 234.53 | K120: 231.9 | L120: 229.15 | M120: 355.09867
A121: 111 | B121: COCHINSHIP | C121: 498.8 | D121: 497.80 | E121: 491.25 | F121: 483.70 | G121: 477.15 | H121: 505.35 | I121: 511.90 | J121: 519.45 | K121: 504.35 | L121: 490.25 | M121: 5.15454
A122: 112 | B122: COFORGE | C122: 4562.15 | D122: 4560.53 | E122: 4530.17 | F122: 4498.18 | G122: 4467.82 | H122: 4592.52 | I122: 4622.88 | J122: 4654.87 | K122: 4590.9 | L122: 4528.55 | M122: 2.20301
A123: 113 | B123: COLPAL | C123: 1610.9 | D123: 1612.28 | E123: 1599.57 | F123: 1588.23 | G123: 1575.52 | H123: 1623.62 | I123: 1636.33 | J123: 1647.67 | K123: 1625 | L123: 1600.95 | M123: 2.16289
A124: 114 | B124: CAMS | C124: 2229.95 | D124: 2235.28 | E124: 2205.57 | F124: 2181.18 | G124: 2151.47 | H124: 2259.67 | I124: 2289.38 | J124: 2313.77 | K124: 2265 | L124: 2210.9 | M124: 1.35721
A125: 115 | B125: CONCOR | C125: 659.45 | D125: 664.10 | E125: 653.35 | F125: 647.25 | G125: 636.50 | H125: 670.20 | I125: 680.95 | J125: 687.05 | K125: 674.85 | L125: 658 | M125: 3.77426
A126: 116 | B126: COROMANDEL | C126: 946.65 | D126: 950.93 | E126: 938.92 | F126: 931.18 | G126: 919.17 | H126: 958.67 | I126: 970.68 | J126: 978.42 | K126: 962.95 | L126: 943.2 | M126: 2.78264
A127: 117 | B127: CREDITACC | C127: 1250.15 | D127: 1244.52 | E127: 1229.03 | F127: 1207.92 | G127: 1192.43 | H127: 1265.63 | I127: 1281.12 | J127: 1302.23 | K127: 1260 | L127: 1223.4 | M127: 3.15336
A128: 118 | B128: CROMPTON | C128: 273.9 | D128: 274.82 | E128: 272.38 | F128: 270.87 | G128: 268.43 | H128: 276.33 | I128: 278.77 | J128: 280.28 | K128: 277.25 | L128: 273.3 | M128: 11.27524
A129: 119 | B129: CUMMINSIND | C129: 1750.7 | D129: 1755.83 | E129: 1739.87 | F129: 1729.03 | G129: 1713.07 | H129: 1766.67 | I129: 1782.63 | J129: 1793.47 | K129: 1771.8 | L129: 1745 | M129: 3.30554
A130: 120 | B130: CYIENT | C130: 1372 | D130: 1361.45 | E130: 1314.10 | F130: 1256.20 | G130: 1208.85 | H130: 1419.35 | I130: 1466.70 | J130: 1524.60 | K130: 1408.8 | L130: 1303.55 | M130: 12.67897
A131: 121 | B131: DCMSHRIRAM | C131: 862 | D131: 860.67 | E131: 856.33 | F131: 850.67 | G131: 846.33 | H131: 866.33 | I131: 870.67 | J131: 876.33 | K131: 865 | L131: 855 | M131: 0.3117
A132: 122 | B132: DLF | C132: 477.2 | D132: 476.77 | E132: 473.48 | F132: 469.77 | G132: 466.48 | H132: 480.48 | I132: 483.77 | J132: 487.48 | K132: 480.05 | L132: 473.05 | M132: 42.70077
A133: 123 | B133: DABUR | C133: 556.9 | D133: 558.02 | E133: 552.13 | F133: 547.37 | G133: 541.48 | H133: 562.78 | I133: 568.67 | J133: 573.43 | K133: 563.9 | L133: 553.25 | M133: 13.85234
A134: 124 | B134: DALBHARAT | C134: 2134.5 | D134: 2143.05 | E134: 2117.45 | F134: 2100.40 | G134: 2074.80 | H134: 2160.10 | I134: 2185.70 | J134: 2202.75 | K134: 2168.65 | L134: 2126 | M134: 2.11118
A135: 125 | B135: DEEPAKFERT | C135: 565.2 | D135: 557.40 | E135: 544.80 | F135: 524.40 | G135: 511.80 | H135: 577.80 | I135: 590.40 | J135: 610.80 | K135: 570 | L135: 537 | M135: 11.76956
A136: 126 | B136: DEEPAKNTR | C136: 2075.8 | D136: 2079.70 | E136: 2066.05 | F136: 2056.30 | G136: 2042.65 | H136: 2089.45 | I136: 2103.10 | J136: 2112.85 | K136: 2093.35 | L136: 2069.95 | M136: 2.05129
A137: 127 | B137: DELHIVERY | C137: 355.4 | D137: 354.40 | E137: 351.05 | F137: 346.70 | G137: 343.35 | H137: 358.75 | I137: 362.10 | J137: 366.45 | K137: 357.75 | L137: 350.05 | M137: 10.8525
A138: 128 | B138: DELTACORP | C138: 242.05 | D138: 242.70 | E138: 240.50 | F138: 238.95 | G138: 236.75 | H138: 244.25 | I138: 246.45 | J138: 248.00 | K138: 244.9 | L138: 241.15 | M138: 13.58763
A139: 129 | B139: DEVYANI | C139: 185.1 | D139: 185.38 | E139: 182.87 | F139: 180.63 | G139: 178.12 | H139: 187.62 | I139: 190.13 | J139: 192.37 | K139: 187.9 | L139: 183.15 | M139: 15.99637
A140: 130 | B140: DHANI | C140: 34.65 | D140: 34.85 | E140: 34.10 | F140: 33.55 | G140: 32.80 | H140: 35.40 | I140: 36.15 | J140: 36.70 | K140: 35.6 | L140: 34.3 | M140: 32.95749
A141: 131 | B141: DBL | C141: 222.1 | D141: 217.42 | E141: 210.83 | F141: 199.57 | G141: 192.98 | H141: 228.68 | I141: 235.27 | J141: 246.53 | K141: 224 | L141: 206.15 | M141: 160.60302
A142: 132 | B142: DIVISLAB | C142: 3525.4 | D142: 3510.33 | E142: 3458.67 | F142: 3391.93 | G142: 3340.27 | H142: 3577.07 | I142: 3628.73 | J142: 3695.47 | K142: 3562 | L142: 3443.6 | M142: 7.91714
A143: 133 | B143: DIXON | C143: 3909.5 | D143: 3929.88 | E143: 3834.77 | F143: 3760.03 | G143: 3664.92 | H143: 4004.62 | I143: 4099.73 | J143: 4174.47 | K143: 4025 | L143: 3855.15 | M143: 14.83536
A144: 134 | B144: LALPATHLAB | C144: 2005.35 | D144: 2020.42 | E144: 1984.83 | F144: 1964.32 | G144: 1928.73 | H144: 2040.93 | I144: 2076.52 | J144: 2097.03 | K144: 2056 | L144: 1999.9 | M144: 1.94879
A145: 135 | B145: DRREDDY | C145: 4552.05 | D145: 4537.68 | E145: 4515.42 | F145: 4478.78 | G145: 4456.52 | H145: 4574.32 | I145: 4596.58 | J145: 4633.22 | K145: 4559.95 | L145: 4501.05 | M145: 3.05791
A146: 136 | B146: EIDPARRY | C146: 486.65 | D146: 482.85 | E146: 476.70 | F146: 466.75 | G146: 460.60 | H146: 492.80 | I146: 498.95 | J146: 508.90 | K146: 489 | L146: 472.9 | M146: 3.36983
A147: 137 | B147: EIHOTEL | C147: 216.1 | D147: 213.80 | E147: 209.80 | F147: 203.50 | G147: 199.50 | H147: 220.10 | I147: 224.10 | J147: 230.40 | K147: 217.8 | L147: 207.5 | M147: 20.70858
A148: 138 | B148: EPL | C148: 199.8 | D148: 196.53 | E148: 185.07 | F148: 170.33 | G148: 158.87 | H148: 211.27 | I148: 222.73 | J148: 237.47 | K148: 208 | L148: 181.8 | M148: 195.42624
A149: 139 | B149: EASEMYTRIP | C149: 45.8 | D149: 46.00 | E149: 45.40 | F149: 45.00 | G149: 44.40 | H149: 46.40 | I149: 47.00 | J149: 47.40 | K149: 46.6 | L149: 45.6 | M149: 21.73547
A150: 140 | B150: EDELWEISS | C150: 66.5 | D150: 66.90 | E150: 65.40 | F150: 64.30 | G150: 62.80 | H150: 68.00 | I150: 69.50 | J150: 70.60 | K150: 68.4 | L150: 65.8 | M150: 62.66016
A151: 141 | B151: EICHERMOT | C151: 3716.05 | D151: 3712.02 | E151: 3691.03 | F151: 3666.02 | G151: 3645.03 | H151: 3737.03 | I151: 3758.02 | J151: 3783.03 | K151: 3733 | L151: 3687 | M151: 6.22442
A152: 142 | B152: ELGIEQUIP | C152: 540.65 | D152: 546.55 | E152: 531.15 | F152: 521.65 | G152: 506.25 | H152: 556.05 | I152: 571.45 | J152: 580.95 | K152: 561.95 | L152: 537.05 | M152: 6.35624
A153: 143 | B153: EMAMILTD | C153: 387.35 | D153: 391.15 | E153: 382.40 | F153: 377.45 | G153: 368.70 | H153: 396.10 | I153: 404.85 | J153: 409.80 | K153: 399.9 | L153: 386.2 | M153: 2.07307
A154: 144 | B154: ENDURANCE | C154: 1461.15 | D154: 1454.27 | E154: 1441.53 | F154: 1421.92 | G154: 1409.18 | H154: 1473.88 | I154: 1486.62 | J154: 1506.23 | K154: 1467 | L154: 1434.65 | M154: 0.8247
A155: 145 | B155: ENGINERSIN | C155: 109.9 | D155: 110.30 | E155: 108.70 | F155: 107.50 | G155: 105.90 | H155: 111.50 | I155: 113.10 | J155: 114.30 | K155: 111.9 | L155: 109.1 | M155: 31.99757
A156: 146 | B156: EQUITASBNK | C156: 87.7 | D156: 87.70 | E156: 86.65 | F156: 85.60 | G156: 84.55 | H156: 88.75 | I156: 89.80 | J156: 90.85 | K156: 88.75 | L156: 86.65 | M156: 42.76423
A157: 147 | B157: ESCORTS | C157: 2196.55 | D157: 2200.02 | E157: 2172.03 | F157: 2147.52 | G157: 2119.53 | H157: 2224.53 | I157: 2252.52 | J157: 2277.03 | K157: 2228 | L157: 2175.5 | M157: 3.2899
A158: 148 | B158: EXIDEIND | C158: 211.4 | D158: 212.27 | E158: 210.03 | F158: 208.67 | G158: 206.43 | H158: 213.63 | I158: 215.87 | J158: 217.23 | K158: 214.5 | L158: 210.9 | M158: 26.69104
A159: 149 | B159: FDC | C159: 296.15 | D159: 296.55 | E159: 293.20 | F159: 290.25 | G159: 286.90 | H159: 299.50 | I159: 302.85 | J159: 305.80 | K159: 299.9 | L159: 293.6 | M159: 1.69262
A160: 150 | B160: NYKAA | C160: 126.15 | D160: 125.90 | E160: 124.90 | F160: 123.65 | G160: 122.65 | H160: 127.15 | I160: 128.15 | J160: 129.40 | K160: 126.9 | L160: 124.65 | M160: 49.49201
A161: 151 | B161: FEDERALBNK | C161: 125.5 | D161: 125.42 | E161: 124.88 | F161: 124.27 | G161: 123.73 | H161: 126.03 | I161: 126.57 | J161: 127.18 | K161: 125.95 | L161: 124.8 | M161: 109.82556
A162: 152 | B162: FACT | C162: 302.05 | D162: 302.62 | E162: 299.48 | F162: 296.92 | G162: 293.78 | H162: 305.18 | I162: 308.32 | J162: 310.88 | K162: 305.75 | L162: 300.05 | M162: 1.45158
A163: 153 | B163: FINEORG | C163: 4505.25 | D163: 4510.18 | E163: 4488.42 | F163: 4471.58 | G163: 4449.82 | H163: 4527.02 | I163: 4548.78 | J163: 4565.62 | K163: 4531.95 | L163: 4493.35 | M163: 0.28558
A164: 154 | B164: FINCABLES | C164: 789.45 | D164: 789.88 | E164: 777.57 | F164: 765.68 | G164: 753.37 | H164: 801.77 | I164: 814.08 | J164: 825.97 | K164: 802.2 | L164: 778 | M164: 5.16289
A165: 155 | B165: FINPIPE | C165: 173 | D165: 175.48 | E165: 170.02 | F165: 167.03 | G165: 161.57 | H165: 178.47 | I165: 183.93 | J165: 186.92 | K165: 180.95 | L165: 172.5 | M165: 8.76829
A166: 156 | B166: FSL | C166: 134.1 | D166: 134.87 | E166: 132.53 | F166: 130.97 | G166: 128.63 | H166: 136.43 | I166: 138.77 | J166: 140.33 | K166: 137.2 | L166: 133.3 | M166: 22.15155
A167: 157 | B167: FORTIS | C167: 278.85 | D167: 278.78 | E167: 275.27 | F167: 271.68 | G167: 268.17 | H167: 282.37 | I167: 285.88 | J167: 289.47 | K167: 282.3 | L167: 275.2 | M167: 11.48477
A168: 158 | B168: GRINFRA | C168: 1268.05 | D168: 1272.68 | E168: 1245.37 | F168: 1222.68 | G168: 1195.37 | H168: 1295.37 | I168: 1322.68 | J168: 1345.37 | K168: 1300 | L168: 1250 | M168: 0.90348
A169: 159 | B169: GAIL | C169: 105.35 | D169: 104.90 | E169: 103.95 | F169: 102.55 | G169: 101.60 | H169: 106.30 | I169: 107.25 | J169: 108.65 | K169: 105.85 | L169: 103.5 | M169: 94.65271
A170: 160 | B170: GMMPFAUDLR | C170: 1447.65 | D170: 1456.22 | E170: 1434.43 | F170: 1421.22 | G170: 1399.43 | H170: 1469.43 | I170: 1491.22 | J170: 1504.43 | K170: 1478 | L170: 1443 | M170: 0.93095
A171: 161 | B171: GMRINFRA | C171: 40.8 | D171: 40.88 | E171: 40.57 | F171: 40.33 | G171: 40.02 | H171: 41.12 | I171: 41.43 | J171: 41.67 | K171: 41.2 | L171: 40.65 | M171: 62.79111
A172: 162 | B172: GALAXYSURF | C172: 2463.9 | D172: 2469.10 | E172: 2445.90 | F172: 2427.90 | G172: 2404.70 | H172: 2487.10 | I172: 2510.30 | J172: 2528.30 | K172: 2492.3 | L172: 2451.1 | M172: 0.08427
A173: 163 | B173: GARFIBRES | C173: 3061.4 | D173: 3052.13 | E173: 3013.27 | F173: 2965.13 | G173: 2926.27 | H173: 3100.27 | I173: 3139.13 | J173: 3187.27 | K173: 3091 | L173: 3004 | M173: 0.07401
A174: 164 | B174: GICRE | C174: 185.75 | D174: 185.80 | E174: 182.25 | F174: 178.75 | G174: 175.20 | H174: 189.30 | I174: 192.85 | J174: 196.35 | K174: 189.35 | L174: 182.3 | M174: 13.26381
A175: 165 | B175: GLAND | C175: 932.45 | D175: 932.23 | E175: 921.47 | F175: 910.48 | G175: 899.72 | H175: 943.22 | I175: 953.98 | J175: 964.97 | K175: 943 | L175: 921.25 | M175: 3.3681
A176: 166 | B176: GLAXO | C176: 1327.2 | D176: 1323.95 | E176: 1308.60 | F176: 1290.00 | G176: 1274.65 | H176: 1342.55 | I176: 1357.90 | J176: 1376.50 | K176: 1339.3 | L176: 1305.35 | M176: 0.38153
A177: 167 | B177: GLENMARK | C177: 609.6 | D177: 606.07 | E177: 599.53 | F177: 589.47 | G177: 582.93 | H177: 616.13 | I177: 622.67 | J177: 632.73 | K177: 612.6 | L177: 596 | M177: 9.88742
A178: 168 | B178: GOCOLORS | C178: 1089.5 | D178: 1089.80 | E178: 1078.60 | F178: 1067.70 | G178: 1056.50 | H178: 1100.70 | I178: 1111.90 | J178: 1122.80 | K178: 1101 | L178: 1078.9 | M178: 0.46348
A179: 169 | B179: GODFRYPHLP | C179: 1717.85 | D179: 1727.97 | E179: 1700.98 | F179: 1684.12 | G179: 1657.13 | H179: 1744.83 | I179: 1771.82 | J179: 1788.68 | K179: 1754.95 | L179: 1711.1 | M179: 0.43209
A180: 170 | B180: GODREJAGRO | C180: 430.55 | D180: 431.67 | E180: 428.73 | F180: 426.92 | G180: 423.98 | H180: 433.48 | I180: 436.42 | J180: 438.23 | K180: 434.6 | L180: 429.85 | M180: 0.42998
A181: 171 | B181: GODREJCP | C181: 1054.2 | D181: 1058.08 | E181: 1047.17 | F181: 1040.13 | G181: 1029.22 | H181: 1065.12 | I181: 1076.03 | J181: 1083.07 | K181: 1069 | L181: 1051.05 | M181: 7.9978
A182: 172 | B182: GODREJIND | C182: 481.25 | D182: 480.25 | E182: 476.00 | F182: 470.75 | G182: 466.50 | H182: 485.50 | I182: 489.75 | J182: 495.00 | K182: 484.5 | L182: 475 | M182: 0.81112
A183: 173 | B183: GODREJPROP | C183: 1402.7 | D183: 1406.35 | E183: 1389.70 | F183: 1376.70 | G183: 1360.05 | H183: 1419.35 | I183: 1436.00 | J183: 1449.00 | K183: 1423 | L183: 1393.35 | M183: 6.90024
A184: 174 | B184: GRANULES | C184: 288.05 | D184: 286.13 | E184: 283.47 | F184: 278.88 | G184: 276.22 | H184: 290.72 | I184: 293.38 | J184: 297.97 | K184: 288.8 | L184: 281.55 | M184: 12.24324
A185: 175 | B185: GRAPHITE | C185: 335.55 | D185: 333.48 | E185: 329.67 | F185: 323.78 | G185: 319.97 | H185: 339.37 | I185: 343.18 | J185: 349.07 | K185: 337.3 | L185: 327.6 | M185: 9.54408
A186: 176 | B186: GRASIM | C186: 1702.45 | D186: 1707.48 | E186: 1694.97 | F186: 1687.48 | G186: 1674.97 | H186: 1714.97 | I186: 1727.48 | J186: 1734.97 | K186: 1720 | L186: 1700 | M186: 3.78694
A187: 177 | B187: GESHIP | C187: 683.5 | D187: 685.10 | E187: 675.70 | F187: 667.90 | G187: 658.50 | H187: 692.90 | I187: 702.30 | J187: 710.10 | K187: 694.5 | L187: 677.3 | M187: 1.0147
A188: 178 | B188: GREENPANEL | C188: 324.5 | D188: 326.78 | E188: 321.67 | F188: 318.83 | G188: 313.72 | H188: 329.62 | I188: 334.73 | J188: 337.57 | K188: 331.9 | L188: 323.95 | M188: 2.031
A189: 179 | B189: GRINDWELL | C189: 2116.95 | D189: 2111.82 | E189: 2099.63 | F189: 2082.32 | G189: 2070.13 | H189: 2129.13 | I189: 2141.32 | J189: 2158.63 | K189: 2124 | L189: 2094.5 | M189: 0.12489
A190: 180 | B190: GUJALKALI | C190: 649.15 | D190: 650.50 | E190: 645.00 | F190: 640.85 | G190: 635.35 | H190: 654.65 | I190: 660.15 | J190: 664.30 | K190: 656 | L190: 646.35 | M190: 0.41671
A191: 181 | B191: GAEL | C191: 252.25 | D191: 249.58 | E191: 245.27 | F191: 238.28 | G191: 233.97 | H191: 256.57 | I191: 260.88 | J191: 267.87 | K191: 253.9 | L191: 242.6 | M191: 9.70674
A192: 182 | B192: FLUOROCHEM | C192: 3351 | D192: 3367.33 | E192: 3323.67 | F192: 3296.33 | G192: 3252.67 | H192: 3394.67 | I192: 3438.33 | J192: 3465.67 | K192: 3411 | L192: 3340 | M192: 0.57426
A193: 183 | B193: GUJGASLTD | C193: 488.25 | D193: 490.35 | E193: 480.90 | F193: 473.55 | G193: 464.10 | H193: 497.70 | I193: 507.15 | J193: 514.50 | K193: 499.8 | L193: 483 | M193: 30.60387
A194: 184 | B194: GNFC | C194: 583.1 | D194: 586.77 | E194: 578.58 | F194: 574.07 | G194: 565.88 | H194: 591.28 | I194: 599.47 | J194: 603.98 | K194: 594.95 | L194: 582.25 | M194: 8.27791
A195: 185 | B195: GPPL | C195: 110.2 | D195: 109.65 | E195: 107.90 | F195: 105.60 | G195: 103.85 | H195: 111.95 | I195: 113.70 | J195: 116.00 | K195: 111.4 | L195: 107.35 | M195: 10.9613
A196: 186 | B196: GSFC | C196: 158.85 | D196: 159.37 | E196: 157.63 | F196: 156.42 | G196: 154.68 | H196: 160.58 | I196: 162.32 | J196: 163.53 | K196: 161.1 | L196: 158.15 | M196: 16.29059
A197: 187 | B197: GSPL | C197: 304.3 | D197: 303.32 | E197: 300.98 | F197: 297.67 | G197: 295.33 | H197: 306.63 | I197: 308.97 | J197: 312.28 | K197: 305.65 | L197: 300 | M197: 3.97178
A198: 188 | B198: HEG | C198: 1188.45 | D198: 1177.83 | E198: 1160.67 | F198: 1132.88 | G198: 1115.72 | H198: 1205.62 | I198: 1222.78 | J198: 1250.57 | K198: 1195 | L198: 1150.05 | M198: 3.30097
A199: 189 | B199: HCLTECH | C199: 1141.9 | D199: 1144.90 | E199: 1134.65 | F199: 1127.40 | G199: 1117.15 | H199: 1152.15 | I199: 1162.40 | J199: 1169.65 | K199: 1155.15 | L199: 1137.65 | M199: 14.45692
A200: 190 | B200: HDFCAMC | C200: 1950 | D200: 1959.25 | E200: 1935.80 | F200: 1921.60 | G200: 1898.15 | H200: 1973.45 | I200: 1996.90 | J200: 2011.10 | K200: 1982.7 | L200: 1945.05 | M200: 2.73417
A201: 191 | B201: HDFCBANK | C201: 1604 | D201: 1607.97 | E201: 1596.03 | F201: 1588.07 | G201: 1576.13 | H201: 1615.93 | I201: 1627.87 | J201: 1635.83 | K201: 1619.9 | L201: 1600 | M201: 251.83469
A202: 192 | B202: HDFCLIFE | C202: 582.2 | D202: 585.88 | E202: 577.32 | F202: 572.43 | G202: 563.87 | H202: 590.77 | I202: 599.33 | J202: 604.22 | K202: 594.45 | L202: 581 | M202: 16.59264
A203: 193 | B203: HFCL | C203: 64.55 | D203: 64.85 | E203: 64.05 | F203: 63.55 | G203: 62.75 | H203: 65.35 | I203: 66.15 | J203: 66.65 | K203: 65.65 | L203: 64.35 | M203: 28.22269
A204: 194 | B204: HLEGLAS | C204: 616.35 | D204: 618.27 | E204: 612.83 | F204: 609.32 | G204: 603.88 | H204: 621.78 | I204: 627.22 | J204: 630.73 | K204: 623.7 | L204: 614.75 | M204: 0.40754
A205: 195 | B205: HAPPSTMNDS | C205: 918.85 | D205: 921.98 | E205: 910.87 | F205: 902.88 | G205: 891.77 | H205: 929.97 | I205: 941.08 | J205: 949.07 | K205: 933.1 | L205: 914 | M205: 3.46729
A206: 196 | B206: HATSUN | C206: 873.55 | D206: 876.50 | E206: 867.05 | F206: 860.55 | G206: 851.10 | H206: 883.00 | I206: 892.45 | J206: 898.95 | K206: 885.95 | L206: 870 | M206: 0.07099
... 320 more rows

Sheet Bulk Deals
E6: Back To Main Page
A7: Subject : | B7: BULK DEAL | D7: =Main!B10 -> 2023-06-02
A9: Date | B9: Scrip code | C9: Scrip Name | D9: Client Name | E9: Buy / Sell | F9: Quantity Traded | G9: Trade Price / Wt.Avg.trade price | H9: Exchange
A10: 2023-06-01 | B10: 512149 | C10: AVANCE | D10: RUPAL SHRIKANT SHAH | E10: SELL | F10: 2,200,000 | G10: 1.72 | H10: BSE
A11: 2023-06-01 | B11: 538734 | C11: CEINSYSTECH | D11: ZODIUS TECHNOLOGY FUND | E11: SELL | F11: 150,000 | G11: 162.33 | H11: BSE
A12: 2023-06-01 | B12: 538734 | C12: CEINSYSTECH | D12: ELDER VENTURE LLP | E12: SELL | F12: 118,437 | G12: 155.62 | H12: BSE
A13: 2023-06-01 | B13: 539991 | C13: CFEL | D13: SINGULARITY HOLDINGS LIMITED | E13: SELL | F13: 197,018 | G13: 115.24 | H13: BSE
A14: 2023-06-01 | B14: 539991 | C14: CFEL | D14: ABHISHEK KHAITAN | E14: BUY | F14: 147,347 | G14: 115.25 | H14: BSE
A15: 2023-06-01 | B15: 530755 | C15: CORNE | D15: JAYESH PRAVINCHANDRA SHETH | E15: BUY | F15: 4,776 | G15: 16 | H15: BSE
A16: 2023-06-01 | B16: 530755 | C16: CORNE | D16: JAYESH PRAVINCHANDRA SHETH | E16: SELL | F16: 26,861 | G16: 16.24 | H16: BSE
A17: 2023-06-01 | B17: 543848 | C17: DEVLAB | D17: SUNFLOWER BROKING PRIVATE LIMITED | E17: SELL | F17: 52,000 | G17: 61 | H17: BSE
A18: 2023-06-01 | B18: 543848 | C18: DEVLAB | D18: ANSU INVESTMENT | E18: BUY | F18: 52,000 | G18: 61 | H18: BSE
A19: 2023-06-01 | B19: 537707 | C19: ETT | D19: KISHANSINH MANSINH RAJPUT | E19: SELL | F19: 56,000 | G19: 41.28 | H19: BSE
A20: 2023-06-01 | B20: 524444 | C20: EVEXIA | D20: LTS INVESTMENT FUND LTD | E20: BUY | F20: 5,000,000 | G20: 2.8 | H20: BSE
A21: 2023-06-01 | B21: 543895 | C21: EXHICON | D21: SUSHIL LAHOTI | E21: SELL | F21: 8,000 | G21: 135.98 | H21: BSE
A22: 2023-06-01 | B22: 543895 | C22: EXHICON | D22: SUSHIL LAHOTI | E22: BUY | F22: 60,000 | G22: 130.6 | H22: BSE
A23: 2023-06-01 | B23: 530663 | C23: GOYALASS | D23: SULEKHA RANI | E23: SELL | F23: 235,600 | G23: 2.79 | H23: BSE
A24: 2023-06-01 | B24: 530663 | C24: GOYALASS | D24: SULEKHA RANI | E24: BUY | F24: 3 | G24: 2.88 | H24: BSE
A25: 2023-06-01 | B25: 532467 | C25: HAZOOR | D25: CHAITANYA DILIP CHANDAN | E25: SELL | F25: 65,000 | G25: 153.67 | H25: BSE
A26: 2023-06-01 | B26: 532467 | C26: HAZOOR | D26: JABIR MOHD SILAWAT | E26: BUY | F26: 65,065 | G26: 153.7 | H26: BSE
A27: 2023-06-01 | B27: 542935 | C27: ICLORGANIC | D27: YELLOWSTONE VENTURES LLP | E27: BUY | F27: 60,000 | G27: 70.12 | H27: BSE
A28: 2023-06-01 | B28: 540377 | C28: IFL | D28: MONEYSTAR TRADELINK PRIVATE LIMITED | E28: BUY | F28: 1,510,771 | G28: 13.58 | H28: BSE
A29: 2023-06-01 | B29: 542924 | C29: JANUSCORP | D29: MISTERKAPOORKESHRI | E29: BUY | F29: 38,500 | G29: 3.92 | H29: BSE
A30: 2023-06-01 | B30: 542924 | C30: JANUSCORP | D30: MISTERKAPOORKESHRI | E30: SELL | F30: 73,500 | G30: 4.05 | H30: BSE
A31: 2023-06-01 | B31: 506522 | C31: JLMORI | D31: GLOBE CAPITAL MARKET LIMITED | E31: BUY | F31: 11,161 | G31: 2020.16 | H31: BSE
A32: 2023-06-01 | B32: 512489 | C32: OASISEC | D32: KALPANA MADHANI SECURITIES PRIVATE LIMITED | E32: SELL | F32: 10,000 | G32: 133.54 | H32: BSE
A33: 2023-06-01 | B33: 526381 | C33: PATINTLOG | D33: NATASHA NISHQA TANISHA FAMILY BENEFICIARIES TRUST | E33: BUY | F33: 630,000 | G33: 13.38 | H33: BSE
A34: 2023-06-01 | B34: 526381 | C34: PATINTLOG | D34: PATEL HOLDINGS LIMITED | E34: SELL | F34: 630,000 | G34: 13.37 | H34: BSE
A35: 2023-06-01 | B35: 543912 | C35: PIGL | D35: DUES MANAGER PRIVATE LIMITED | E35: BUY | F35: 99,000 | G35: 70.67 | H35: BSE
A36: 2023-06-01 | B36: 543912 | C36: PIGL | D36: POWER SOLUTIONS | E36: SELL | F36: 162,440 | G36: 70.67 | H36: BSE
A37: 2023-06-01 | B37: 543417 | C37: RATEGAIN | D37: ADITYA BIRLA SUN LIFE MUTUAL FUND AC BIRLA SUN LIFE ADVANTAGE FUND | E37: BUY | F37: 1,334,000 | G37: 375 | H37: BSE
A38: 2023-06-01 | B38: 543417 | C38: RATEGAIN | D38: ADITYA BIRLA SUN LIFE MUTUAL FUND AC ADITYA BIRLA SUN LIFE EQUITY HYBRID '95 FUND | E38: BUY | F38: 1,200,000 | G38: 375 | H38: BSE
A39: 2023-06-01 | B39: 543417 | C39: RATEGAIN | D39: SOCIETE GENERALE | E39: BUY | F39: 911,095 | G39: 375 | H39: BSE
A40: 2023-06-01 | B40: 543417 | C40: RATEGAIN | D40: AVATAAR HOLDINGS | E40: SELL | F40: 5,500,000 | G40: 375.02 | H40: BSE
A41: 2023-06-01 | B41: 540147 | C41: SHASHIJIT | D41: NNM SECURITIES PVT LTD | E41: SELL | F41: 75,000 | G41: 34 | H41: BSE
A42: 2023-06-01 | B42: 530525 | C42: SHEETAL | D42: MULTIPLIER SHARE & STOCK ADVISORS PRIVATE LIMITED | E42: BUY | F42: 74,984 | G42: 19.12 | H42: BSE
A43: 2023-06-01 | B43: 539026 | C43: SSPNFIN | D43: SURESH KUMAR AGARWAL | E43: SELL | F43: 20,000 | G43: 6.26 | H43: BSE
A44: 2023-06-01 | B44: 539026 | C44: SSPNFIN | D44: MAA PAHARI MERCANTILES PRIVATE LIMITED | E44: BUY | F44: 20,000 | G44: 6.39 | H44: BSE
A45: 2023-06-01 | B45: 530611 | C45: STURDY | D45: SETU SECURITIES PVT. LTD. | E45: BUY | F45: 950,000 | G45: 0.38 | H45: BSE
A46: 2023-06-01 | B46: 543799 | C46: SVJ | D46: DUES MANAGER PRIVATE LIMITED | E46: SELL | F46: 21,000 | G46: 40.47 | H46: BSE
A47: 2023-06-01 | B47: 543799 | C47: SVJ | D47: DUES MANAGER PRIVATE LIMITED | E47: BUY | F47: 30,000 | G47: 40.8 | H47: BSE
A48: 2023-06-01 | B48: 543799 | C48: SVJ | D48: BONANZA COMMODITY BROKERS PRIVATE LIMITED | E48: SELL | F48: 30,000 | G48: 40.96 | H48: BSE
A49: 2023-06-01 | B49: 539041 | C49: SVPHOUSING | D49: VIJAY KUMAR PAHWA | E49: BUY | F49: 75,000 | G49: 101.82 | H49: BSE
A50: 2023-06-01 | B50: 503816 | C50: SWADPOL | D50: MKJ ENTERPRISES LIMITED | E50: SELL | F50: 250,000 | G50: 36.37 | H50: BSE
A51: 2023-06-01 | B51: 503816 | C51: SWADPOL | D51: PAHARPUR COOLING TOWERS LTD | E51: BUY | F51: 200,000 | G51: 36.3 | H51: BSE
A52: 2023-06-01 | B52: 511447 | C52: SYLPH | D52: SAROJ GUPTA | E52: SELL | F52: 150,103 | G52: 30.77 | H52: BSE
A53: 2023-06-01 | B53: 511447 | C53: SYLPH | D53: MULTIPLIER SHARE & STOCK ADVISORS PRIVATE LIMITED | E53: BUY | F53: 100,000 | G53: 30.71 | H53: BSE
A54: 2023-06-01 | B54: AHL | C54: Abans Holdings Limited | D54: ATLAS EVENTS PRIVATE LIMITED | E54: BUY | F54: 316,896 | G54: 280.53 | H54: NSE
A55: 2023-06-01 | B55: AJOONI | C55: Ajooni Biotech Limited | D55: JOLLY ANKIT SHAH | E55: BUY | F55: 619,471 | G55: 4.71 | H55: NSE
A56: 2023-06-01 | B56: AKI | C56: AKI India Limited | D56: SHIV PRATAP SINGH | E56: BUY | F56: 80,000 | G56: 111.5 | H56: NSE
A57: 2023-06-01 | B57: ASIANENE | C57: Asian Energy Services Ltd | D57: PRITHVI SANJAY BHAGAT | E57: BUY | F57: 300,000 | G57: 107.74 | H57: NSE
A58: 2023-06-01 | B58: DBL | C58: Dilip Buildcon Limited | D58: GRAVITON RESEARCH CAPITAL LLP | E58: BUY | F58: 1,060,488 | G58: 219.3 | H58: NSE
A59: 2023-06-01 | B59: DIL | C59: Debock Industries Limited | D59: WILSON HOLDINGS PRIVATE LIMITED | E59: BUY | F59: 1,500,000 | G59: 17 | H59: NSE
A60: 2023-06-01 | B60: DIL | C60: Debock Industries Limited | D60: MANSUKH SECURITIES & FINANCE LTD | E60: BUY | F60: 1,000,000 | G60: 17 | H60: NSE
A61: 2023-06-01 | B61: GODHA | C61: Godha Cabcon Insulat Ltd | D61: AJAY SALVI | E61: BUY | F61: 2,592,752 | G61: 1.35 | H61: NSE
A62: 2023-06-01 | B62: HCG | C62: Healthcare Glob. Ent. Ltd | D62: ACESO COMPANY PTE LTD | E62: BUY | F62: 3,575,000 | G62: 320 | H62: NSE
A63: 2023-06-01 | B63: IITL | C63: Industrial Inv Trust Ltd | D63: SILVERTOSS SHOPPERS PRIVATE LIMITED | E63: BUY | F63: 200,000 | G63: 93.5 | H63: NSE
A64: 2023-06-01 | B64: KAUSHALYA | C64: Kaushalya Infrastructure | D64: AMIT KUMAR JAIN HUF | E64: BUY | F64: 183,000 | G64: 5.54 | H64: NSE
A65: 2023-06-01 | B65: KDDL | C65: KDDL Limited | D65: SIDDHARTH SUNDER IYER | E65: BUY | F65: 250,000 | G65: 1071.97 | H65: NSE
A66: 2023-06-01 | B66: MAGNUM | C66: Magnum Ventures Limited | D66: MULTIPLIER SHARE & STOCK ADVISORS PRIVATE LIMITED | E66: BUY | F66: 200,000 | G66: 43.55 | H66: NSE
A67: 2023-06-01 | B67: MTARTECH | C67: MTAR Technologies Limited | D67: SOCIETE GENERALE | E67: BUY | F67: 416,500 | G67: 1880 | H67: NSE
A68: 2023-06-01 | B68: NURECA | C68: Nureca Limited | D68: GRAVITON RESEARCH CAPITAL LLP | E68: BUY | F68: 85,710 | G68: 349.39 | H68: NSE
A69: 2023-06-01 | B69: NURECA | C69: Nureca Limited | D69: NK SECURITIES RESEARCH PRIVATE LIMITED | E69: BUY | F69: 59,516 | G69: 362 | H69: NSE
A70: 2023-06-01 | B70: REMUS | C70: Remus Pharmaceuticals L | D70: INDIA EMERGING GIANTS FUND LIMITED | E70: BUY | F70: 15,700 | G70: 2079.23 | H70: NSE
A71: 2023-06-01 | B71: SILGO | C71: Silgo Retail Limited | D71: RAJESH KOLEKAR | E71: BUY | F71: 66,440 | G71: 22.33 | H71: NSE
A72: 2023-06-01 | B72: TIMETECHNO | C72: Time Technoplast Limited | D72: CRONY VYAPAR PVT LTD | E72: BUY | F72: 1,422,102 | G72: 96.48 | H72: NSE
A73: 2023-06-01 | B73: AHL | C73: Abans Holdings Limited | D73: ATLAS EVENTS PRIVATE LIMITED | E73: SELL | F73: 316,896 | G73: 278.12 | H73: NSE
A74: 2023-06-01 | B74: AJOONI | C74: Ajooni Biotech Limited | D74: JOLLY ANKIT SHAH | E74: SELL | F74: 619,471 | G74: 4.68 | H74: NSE
A75: 2023-06-01 | B75: AKI | C75: AKI India Limited | D75: ASAD KAMAL IRAQI | E75: SELL | F75: 111,831 | G75: 111 | H75: NSE
A76: 2023-06-01 | B76: ARCHIES | C76: Archies Limited | D76: STOCK VERTEX VENTURES | E76: SELL | F76: 184,329 | G76: 23.44 | H76: NSE
A77: 2023-06-01 | B77: ASIANENE | C77: Asian Energy Services Ltd | D77: ACHINTYA SECURITIES PRIVATE LIMITED | E77: SELL | F77: 252,500 | G77: 107.81 | H77: NSE
A78: 2023-06-01 | B78: DBL | C78: Dilip Buildcon Limited | D78: GRAVITON RESEARCH CAPITAL LLP | E78: SELL | F78: 1,060,488 | G78: 219.37 | H78: NSE
A79: 2023-06-01 | B79: DIL | C79: Debock Industries Limited | D79: SUNIL KALOT | E79: SELL | F79: 2,500,000 | G79: 17 | H79: NSE
A80: 2023-06-01 | B80: HCG | C80: Healthcare Glob. Ent. Ltd | D80: B S AJAIKUMAR | E80: SELL | F80: 3,575,000 | G80: 320 | H80: NSE
A81: 2023-06-01 | B81: IITL | C81: Industrial Inv Trust Ltd | D81: CONLECTA CAPITAL ADVISORS PRIVATE LIMITED | E81: SELL | F81: 232,342 | G81: 93.56 | H81: NSE
A82: 2023-06-01 | B82: KAUSHALYA | C82: Kaushalya Infrastructure | D82: AMIT KUMAR JAIN HUF | E82: SELL | F82: 183,000 | G82: 5.46 | H82: NSE
A83: 2023-06-01 | B83: KDDL | C83: KDDL Limited | D83: ELEVATION CAPITAL V LIMITED | E83: SELL | F83: 337,357 | G83: 1070.59 | H83: NSE
A84: 2023-06-01 | B84: KRISHCA | C84: Krishca Strapping Sltn L | D84: SHARE INDIA SECURITIES LIMITED | E84: SELL | F84: 64,000 | G84: 101.6 | H84: NSE
A85: 2023-06-01 | B85: MAGNUM | C85: Magnum Ventures Limited | D85: MULTIPLIER SHARE & STOCK ADVISORS PRIVATE LIMITED | E85: SELL | F85: 2,468 | G85: 43.65 | H85: NSE
A86: 2023-06-01 | B86: MAGNUM | C86: Magnum Ventures Limited | D86: SANGAM COMMODITIES PVT LTD . | E86: SELL | F86: 200,000 | G86: 48.05 | H86: NSE
A87: 2023-06-01 | B87: MTARTECH | C87: MTAR Technologies Limited | D87: LEELAVATHI PARVATHA REDDY | E87: SELL | F87: 347,000 | G87: 1880.04 | H87: NSE
A88: 2023-06-01 | B88: NURECA | C88: Nureca Limited | D88: NK SECURITIES RESEARCH PRIVATE LIMITED | E88: SELL | F88: 59,644 | G88: 362.29 | H88: NSE
A89: 2023-06-01 | B89: NURECA | C89: Nureca Limited | D89: GRAVITON RESEARCH CAPITAL LLP | E89: SELL | F89: 85,710 | G89: 349.82 | H89: NSE
A90: 2023-06-01 | B90: REMUS | C90: Remus Pharmaceuticals L | D90: YUGA STOCKS AND COMMODITIES PRIVATE LIMITED . | E90: SELL | F90: 10,600 | G90: 2079.9 | H90: NSE
A91: 2023-06-01 | B91: SILGO | C91: Silgo Retail Limited | D91: RAJESH KOLEKAR | E91: SELL | F91: 66,440 | G91: 22.24 | H91: NSE
A92: 2023-06-01 | B92: TIMETECHNO | C92: Time Technoplast Limited | D92: CRONY VYAPAR PVT LTD | E92: SELL | F92: 1,422,102 | G92: 96.7 | H92: NSE

Sheet Call Tracker (Equity & F&O)
M5: Back To Main Page
A6: Retail Research Technical Calls & Fundamental Performance Report for the month of June-2023
M7: =Main!B10 -> 2023-06-02
B8: Positional Call
A9: Sr.no | B9: Date | D9: Company | E9: Rec | F9: Rec Price | G9: Stop Loss*** | H9: Call Closed At | I9: Target | J9: Remark | K9: Profit / Loss per Share | L9: All charges | M9: Net Gain / Loss % | N9: Status | O9: Closed Date | P9: Market Closing Price
A10: 1 | B10: 2023-05-12 | D10: SBIN | E10: Accu | F10: 562-574 | G10: 538 | I10: 600-630 | J10: Open | P10: =VLOOKUP(D10,'MidCap Intra'!B39:C539,2,0) -> 582.75 | R10: H
A11: 2 | B11: 2023-05-22 | D11: JSWSTEEL | E11: Accu | F11: 665-691 | G11: 637 | I11: 740-780 | J11: Open | P11: =VLOOKUP(D11,'MidCap Intra'!B40:C540,2,0) -> 693.85 | R11: H
A12: 3 | B12: 2023-05-31 | D12: GSFC | E12: Accu | F12: 152-157 | G12: 144 | I12: 170-175 | J12: Open | P12: =VLOOKUP(D12,'MidCap Intra'!B41:C541,2,0) -> 158.85 | R12: H
A16: CLBS = Closing Basis ***
A17: Dividend adjusted <> | F17: Reinitiated $
A18: Part book {} | D18: s | F18: Revised stoploss #
B20: Momentum Call
A21: Sr.no | B21: Date | D21: Company | E21: Rec | F21: Rec Price | G21: Stop Loss | H21: Call Closed At | I21: Target | J21: Remark | K21: Profit / Loss per Share/Lot | L21: All charges | M21: Net Gain / Loss % | N21: Status | O21: Closed Date
A22: 1 | B22: 2023-05-23 | D22: ACC | E22: Buy | F22: 1807-1815 | G22: 1750 | I22: 1900-1920 | J22: Open | R22: H
A23: 2 | B23: 2023-06-01 | D23: MARICO | E23: Buy | F23: 554-557 | G23: 539 | I23: 590-600 | J23: Open | R23: H
A24: 3 | B24: 2023-06-01 | D24: COALINDIA | E24: Buy | F24: 228.5-230.5 | G24: 222 | I24: 240-244 | J24: Open | R24: H
A27: CLBS = Closing Basis *** | H27: *
A28: Dividend adjusted <> | F28: Reinitiated $
F29: Revised stoploss #
A31: Master Trade High Risk
A32: Sr.no | B32: Date | D32: Company | E32: Rec | F32: Rec Price | G32: Stop Loss | H32: Call Closed At | I32: Target | J32: Remark | K32: Profit / Loss per share | L32: All charges | M32: Gain / Loss per Lot | N32: Lot | O32: Status | P32: Closed Date
A37: Master Trade Medium Risk
A38: Sr.no | B38: Date | D38: Company | E38: Rec | F38: Rec Price | G38: Stop Loss | H38: Call Closed At | I38: Target | J38: Remark | K38: Profit/ Loss per lot | L38: All charges | M38: Gain / Loss per Lot | N38: Lot | O38: Status | P38: Closed Date
A39: 1 | B39: 2023-06-01 | D39: COALINDIA 240 CE JUN | E39: Buy | F39: 1.40-1.60 | G39: 0.4 | I39: 3.0-4.0 | J39: Open | R39: H
A40: 2 | B40: 2023-06-01 | D40: NIFTY 18400 PE 8-JUN | E40: Buy | F40: 45-50 | G40: 18 | I40: 90-110 | J40: Open | R40: H
A41: 3 | B41: 2023-06-01 | D41: BANKNIFTY 44200 CE 8-JUN | E41: Buy | F41: 200-220 | G41: 115 | I41: 320-380 | J41: Open | R41: H
A46: Techno -Funda (positional)
A47: Sr.no | B47: Date | D47: Company | E47: Rec | F47: Rec Price | G47: Stop Loss*** | H47: Call Closed At | I47: Target | J47: Remark | K47: Profit / Loss per Share/Lot | L47: All charges | M47: Net Gain / Loss % | N47: Status | O47: Closed Date | P47: Market Closing Price
A48: 1 | B48: 2022-10-06 | D48: AMBIKCO | E48: Buy | F48: 1420-1620 | G48: 1220 | I48: 2000-2300 | J48: Open | P48: =VLOOKUP(D48,'MidCap Intra'!B98:C598,2,0) ->  | R48: H
A49: 2 | B49: 2023-05-04 | D49: IOC | E49: Buy | F49: 84 | G49: 74.9 | H49: 89.75 | I49: 95-100 | J49: Part profit of Rs.5.75/- | K49: =H49-F49 -> 5.75 | L49: =(F49*-0.7)/100 -> -0.59 | M49: =(K49+L49)/F49 -> 6.15% | N49: Successful | O49: 2023-05-24 | R49: H
A50: 3 | B50: 2023-05-25 | D50: GSPL | E50: Buy | F50: 276-296 | G50: 267 | I50: 330-350 | J50: Open | R50: H
A51: 4 | B51: 2023-05-31 | D51: ROUTE | E51: Buy | F51: 1350-1410 | G51: 1240 | I51: 1600-1650 | J51: Open | R51: H
A53: CLBS = Closing Basis *** | F53: Reinitiated $
A54: Dividend adjusted <> | F54: Revised stoploss # | H54: .................
B63: Investment Idea
A64: Sr.no | B64: Date | D64: Company | E64: Rec | F64: Rec Price | G64: Point of Review | H64: Close Rate | I64: Target | J64: Remark | K64: Profit / Loss per Share | L64: Gain / Loss % | M64: Status | N64: Closed Date
A65: 1 | B65: 2013-11-01 | D65: L&T Finance Holding | E65: Accu | F65: 82.00 | G65: - | H65: 100 | I65: 100.00 | J65: Target Achieved | K65: =H65-F65 -> 18.00 | L65: =K65/F65 -> 21.95% | M65: Successful | N65: 2016-10-14
A66: 2 | B66: 2014-06-04 | D66: Finolex Inds | E66: Buy | F66: 257.00 | G66: - | H66: 300 | I66: 300.00 | J66: Target Achieved | K66: 43.00 | L66: 16.73% | M66: Successful | N66: 2014-07-02
A67: 3 | B67: 2014-07-08 | D67: JK Cement | E67: Buy | F67: 393.00 | G67: - | H67: 468 | I67: 468.00 | J67: Target Achieved | K67: 75.00 | L67: 19.08% | M67: Successful | N67: 2014-08-12
A68: 4 | B68: 2014-08-06 | D68: Finolex Cables | E68: Buy | F68: 205.00 | G68: - | H68: 275 | I68: 250.00 | J68: Target Achieved | K68: 70.00 | L68: 34.15% | M68: Successful | N68: 2014-11-19
A69: 5 | B69: 2014-09-04 | D69: Exide Inds | E69: Buy | F69: 162.00 | G69: - | H69: 190 | I69: 190.00 | J69: Target Achieved | K69: 28.00 | L69: 17.28% | M69: Successful | N69: 2015-01-02
A70: 6 | B70: 2014-09-04 | D70: Deepak Nitrite | E70: Buy | F70: 75.00 | G70: - | H70: 91.5 | I70: 95-100 | J70: Profit of Rs.16.50/- | K70: 16.50 | L70: 22.00% | M70: Successful | N70: 2014-11-11
A71: 7 | B71: 2014-10-01 | D71: Mercks | E71: Buy | F71: 850.00 | G71: - | H71: 982.5 | I71: 1050.00 | J71: Profit of Rs.132.50/- | K71: 132.50 | L71: 15.59% | M71: Successful | N71: 2015-02-04
A72: 8 | B72: 2014-10-01 | D72: Grindwell Norton | E72: Buy | F72: 475.00 | G72: - | H72: 515 | I72: 600.00 | J72: Profit of Rs.40/- | K72: 40.00 | L72: 8.42% | M72: Successful | N72: 2014-10-27
A73: 9 | B73: 2014-10-01 | D73: Snowman Logistics | E73: Buy | F73: 86.00 | G73: - | H73: 99 | I73: 140.00 | J73: Profit of Rs.13.00/- | K73: 13.00 | L73: 15.12% | M73: Successful | N73: 2014-10-27
A74: 10 | B74: 2014-10-14 | D74: Birla Corp | E74: Buy | F74: 496.60 | G74: - | H74: 621 | I74: 580.00 | J74: Target Achieved | K74: 124.40 | L74: 25.05% | M74: Successful | N74: 2016-08-23
A75: 11 | B75: 2014-10-14 | D75: Ultratech Cem | E75: Buy | F75: 2481.90 | G75: - | H75: 2840 | I75: 2870.00 | J75: Profit of Rs.358.10/- | K75: 358.10 | L75: 14.43% | M75: Successful | N75: 2015-01-13
A76: 12 | B76: 2014-10-16 | D76: Sintex Inds | E76: Buy | F76: 84.50 | G76: - | H76: 93 | I76: 110.00 | J76: Profit of Rs.8.50/- | K76: 8.50 | L76: 10.06% | M76: Successful | N76: 2014-10-27
A77: 13 | B77: 2014-10-16 | D77: HSIL | E77: Buy | F77: 401.00 | G77: - | H77: 428 | I77: 450.00 | J77: Profit of Rs.27.00/- | K77: 27.00 | L77: 6.73% | M77: Successful | N77: 2015-01-16
A78: 14 | B78: 2014-10-16 | D78: Eveready Inds | E78: Buy | F78: 101.00 | G78: - | H78: 112 | I78: 120.00 | J78: Profit of Rs.11.00/- | K78: 11.00 | L78: 10.89% | M78: Successful | N78: 2014-10-27
A79: 15 | B79: 2014-11-11 | D79: Pennar Inds | E79: Buy | F79: 59.00 | G79: - | H79: 76 | I79: 76.00 | J79: Target Achieved | K79: 17.00 | L79: 28.81% | M79: Successful | N79: 2017-10-24
A80: 16 | B80: 2014-11-11 | D80: Snowman Logistics | E80: Buy | F80: 99.00 | G80: - | H80: 120 | I80: 120.00 | J80: Profit of Rs.21/- | K80: 21.00 | L80: 21.21% | M80: Successful | N80: 2014-11-17
A81: 17 | B81: 2014-11-13 | D81: Dharamsi Morarji Chem | E81: Buy | F81: 22.00 | G81: - | H81: 33.55 | I81: 32.00 | J81: Profit of Rs 11.55/- | K81: 11.55 | L81: 52.50% | M81: Successful | N81: 2015-07-03
A82: 18 | B82: 2014-12-03 | D82: Tatachem | E82: Buy | F82: 440.00 | G82: - | H82: 520 | I82: 520.00 | J82: Profit of Rs 80.00/- | K82: 80.00 | L82: 18.18% | M82: Successful | N82: 2015-07-23
A83: 19 | B83: 2014-12-03 | D83: Advanta | E83: Buy | F83: 360.00 | G83: - | H83: 427 | I83: 425.00 | J83: Profit of Rs.67.00/- | K83: 67.00 | L83: 18.61% | M83: Successful | N83: 2015-02-23
A84: 20 | B84: 2015-01-08 | D84: GDL | E84: Buy | F84: 360.00 | G84: - | H84: 455 | I84: 420.00 | J84: Profit of Rs.95.00/- | K84: 95.00 | L84: 26.39% | M84: Successful | N84: 2015-01-20
A85: 21 | B85: 2015-01-08 | D85: NRB Bearing | E85: Buy | F85: 130.00 | H85: 175.5 | I85: 165.00 | J85: Profit of Rs 45.50/- | K85: 45.50 | L85: 35.00% | M85: Successful | N85: 2017-12-19
A86: 22 | B86: 2015-02-05 | D86: GSFC | E86: Accu | F86: 98.00 | H86: 120 | I86: 120.00 | J86: Target Achieved | K86: 22.00 | L86: 22.45% | M86: Successful | N86: 2017-01-18
A87: 23 | B87: 2015-02-05 | D87: Sundrmfast | E87: Accu | F87: 196.00 | H87: 262 | I87: 255.00 | J87: Target Achieved | K87: 66.00 | L87: 33.67% | M87: Successful | N87: 2016-08-17
A88: 24 | B88: 2015-03-04 | D88: GPPL | E88: Accu | F88: 235 | H88: 77.00 | I88: 280-285 | J88: Loss of Rs.158/- | K88: -158.00 | L88: -67.23% | M88: Unsuccessful | N88: 2019-02-26
A89: 25 | B89: 2015-03-04 | D89: ORIENTCEM | E89: Accu | F89: 185.00 | H89: 224 | I89: 220-225 | J89: Target Achieved | K89: 39.00 | L89: 21.08% | M89: Successful | N89: 2016-10-04
A90: 26 | B90: 2015-03-27 | D90: PFS | E90: Accu | F90: 49.5 | H90: 15.85 | I90: 67.00 | J90: Loss of Rs.33.65/- | K90: -33.65 | L90: -68% | M90: Unsuccessful | N90: 2019-06-11
A91: 27 | B91: 2015-03-30 | D91: Walchandnagar Ind Ltd | E91: Accu | F91: 183.50 | H91: 219 | I91: 218.00 | J91: Profit of Rs.35.50/- | K91: 35.50 | L91: 19.35% | M91: Successful | N91: 2015-04-09
A92: 28 | B92: 2015-04-20 | D92: Kalpataru Power Transmission Ltd | E92: Accu | F92: =(227+237)/2 -> 232.00 | H92: 298 | I92: 298.00 | J92: Target Achieved | K92: 66.00 | L92: 28.45% | M92: Successful | N92: 2017-03-29
A93: 29 | B93: 2015-05-04 | D93: Mastek Ltd | E93: Buy | F93: 385.00 | H93: =212.5+331 -> 543.5 | I93: 510.00 | J93: Profit of Rs 158.50/- | K93: 158.50 | L93: 41.17% | M93: Successful | N93: 2015-08-19
A94: 30 | B94: 2015-05-04 | D94: Suprajit Eng | E94: Buy | F94: 115.50 | H94: 146 | I94: 142.00 | J94: Profit of Rs 30.50/- | K94: 30.50 | L94: 26.41% | M94: Successful | N94: 2015-07-17
A95: 31 | B95: 2015-05-27 | D95: TCI | E95: Buy | F95: 237.50 | H95: 279.5 | I95: 278.00 | J95: Target Achieved | K95: 42.00 | L95: 17.68% | M95: Successful | N95: 2015-08-06
A96: 32 | B96: 2015-06-19 | D96: HSIL | E96: Accu | F96: 340.00 | H96: 448 | I96: 448.00 | J96: Target Achieved | K96: 108.00 | L96: 31.76% | M96: Successful | N96: 2017-10-10
A97: 33 | B97: 2015-07-06 | D97: Capital First | E97: Accu | F97: 390.00 | H97: 460 | I97: 460.00 | J97: Target Achieved | K97: =H97-F97 -> 70.00 | L97: =K97/F97 -> 17.95% | M97: Successful | N97: 2016-04-18
A98: 34 | B98: 2015-07-10 | D98: Dolphin OffShore | E98: Accu | F98: 122.5 | H98: 61.00 | I98: 172.00 | J98: Loss of Rs.61.50/- | K98: -61.50 | L98: -50.20% | M98: Unsuccessful | N98: 2018-08-21
A99: 35 | B99: 2015-08-03 | D99: Allcargo logistics | E99: Accu | F99: 297.50 | H99: 350 | I99: 360.00 | J99: Profit of Rs 52.50/- | K99: 52.50 | L99: 17.65% | M99: Successful | N99: 2015-08-16
A100: 36 | B100: 2015-08-03 | D100: Camline Fine | E100: Accu | F100: 115.50 | H100: 149 | I100: 140.00 | J100: Profit of Rs 33.50/- | K100: 33.50 | L100: 29.00% | M100: Successful | N100: 2017-01-05
A101: 37 | B101: 2015-09-04 | D101: TCI | E101: Accu | F101: 226.00 | H101: 292 | I101: 292.00 | J101: Target Achieved | K101: 66.00 | L101: 29.20% | M101: Successful | N101: 2015-10-09
A102: 38 | B102: 2015-09-07 | D102: Kalpataru Power Transmission Ltd | E102: Accu | F102: 232.50 | H102: 312.5 | I102: 310.00 | J102: Target Achieved | K102: 80.00 | L102: 34.41% | M102: Successful | N102: 2017-03-29
A103: 39 | B103: 2015-09-21 | D103: LLOYD ELECTRIC & ENG LTD | E103: Accu | F103: 196.50 | H103: 238 | I103: 238.00 | J103: Target Achieved | K103: 41.50 | L103: 21.12% | M103: Successful | N103: 2015-10-14
A104: 40 | B104: 2015-09-24 | D104: L&T Finance Holding | E104: Accu | F104: 65.00 | H104: 82 | I104: 82.00 | J104: Target Achieved | K104: 17.00 | L104: 26.15% | M104: Successful | N104: 2016-07-27
A105: 41 | B105: 2015-10-14 | D105: KEC International ltd | E105: Accu | F105: 144.00 | H105: 182.5 | I105: 181.00 | J105: Target Achieved | K105: 38.50 | L105: 26.74% | M105: Successful | N105: 2017-03-23
A106: 42 | B106: 2015-10-14 | D106: Gruh Finance | E106: Accu | F106: 264.00 | H106: 311 | I106: 311.00 | J106: Target Achieved | K106: 47.00 | L106: 17.80% | M106: Successful | N106: 2016-08-22
A107: 43 | B107: 2015-11-10 | D107: Pidilitind | E107: Buy | F107: 549.50 | H107: 630 | I107: 630.00 | J107: Target Achieved | K107: 80.50 | L107: 14.65% | M107: Successful | N107: 2016-02-19
A108: 44 | B108: 2015-12-04 | D108: Zensar Technology | E108: Accu | F108: 1027.50 | H108: 1315 | I108: 1250.00 | J108: Target Achieved | K108: 287.50 | L108: 27.98% | M108: Successful | N108: 2018-05-24
A109: 45 | B109: 2015-12-29 | D109: Vinati Organics Ltd | E109: Accu | F109: 465.00 | H109: 540 | I109: 540.00 | J109: Target Achieved | K109: 75.00 | L109: 16.13% | M109: Successful | N109: 2016-06-09
A110: 46 | B110: 2016-01-11 | D110: GSFC | E110: Buy | F110: 81.00 | H110: 110 | I110: 110.00 | J110: Target Achieved | K110: 29.00 | L110: 35.80% | M110: Successful | N110: 2017-01-10
A111: 47 | B111: 2016-01-13 | D111: SSWL | E111: Buy | F111: 417.50 | H111: 547 | I111: 535.00 | J111: Target Achieved | K111: 129.50 | L111: 31.02% | M111: Successful | N111: 2016-07-27
A112: 48 | B112: 2016-02-08 | D112: Persistent System Ltd | E112: Accu | F112: 650.00 | H112: 800 | I112: 800.00 | J112: Target Achieved | K112: 150.00 | L112: 23.08% | M112: Successful | N112: 2018-02-23
A113: 49 | B113: 2016-03-04 | D113: UPL | E113: Accu | F113: 437.50 | H113: 504.5 | I113: 522.00 | J113: Profit of Rs.67/- | K113: 67.00 | L113: 15.31% | M113: Successful | N113: 2016-04-20
A114: 50 | B114: 2016-03-09 | D114: Ashoka Buildcon Ltd | E114: Accu | F114: 189.50 | H114: 218 | I114: 218.00 | J114: Target Achieved | K114: 28.50 | L114: 15.04% | M114: Successful | N114: 2017-10-26
A115: 51 | B115: 2016-04-11 | D115: PTC INDIA FIN SERV LTD | E115: Accu | F115: 36.5 | H115: 15.85 | I115: 60.00 | J115: Loss of Rs.20.65/- | K115: -20.65 | L115: -56.58% | M115: Unsuccessful | N115: 2019-06-11
A116: 52 | B116: 2016-04-12 | D116: CAMLINFINE $ | E116: Accu | F116: 93.00 | H116: 149 | I116: 140.00 | J116: Profit of Rs 56/- | K116: 56.00 | L116: 60.22% | M116: Successful | N116: 2017-01-05
A117: 53 | B117: 2016-04-12 | D117: Greaves Cotton Ltd. | E117: Accu | F117: 130.00 | H117: 150 | I117: 150-155 | J117: Target Achieved | K117: 20.00 | L117: 15.38% | M117: Successful | N117: 2016-07-13
A118: 54 | B118: 2016-04-13 | D118: DHFL | E118: Accu | F118: 196.00 | H118: 299 | I118: 299.00 | J118: Target Achieved | K118: 103.00 | L118: 52.55% | M118: Successful | N118: 2016-09-07
A119: 55 | B119: 2016-04-13 | D119: Magma | E119: Accu | F119: 88.00 | H119: 103 | I119: 103.00 | J119: Target Achieved | K119: 15.00 | L119: 17.05% | M119: Successful | N119: 2016-06-09
A120: 56 | B120: 2016-05-02 | D120: KEC International ltd $ | E120: Accu | F120: 127.50 | H120: 148 | I120: 148-150 | J120: Target Achieved | K120: =H120-F120 -> 20.50 | L120: =K120/F120 -> 16.08% | M120: Successful | N120: 2016-07-13
A121: 57 | B121: 2016-05-03 | D121: Mindtree | E121: Accu | F121: 675.00 | H121: 815 | I121: 790-800 | J121: Target Achieved | K121: =H121-F121 -> 140.00 | L121: =K121/F121 -> 20.74% | M121: Successful | N121: 2018-02-23
A122: 58 | B122: 2016-06-01 | D122: Atulauto | E122: Accu | F122: 500 | H122: 232.50 | I122: 565-570 | J122: Loss of Rs.267.50 /- | K122: =H122-F122 -> -267.50 | L122: =K122/F122 -> -53.50% | M122: Unsuccessful | N122: 2019-09-27
A123: 59 | B123: 2016-06-06 | D123: TRITURBINE | E123: Accu | F123: 110.00 | H123: 126.5 | I123: 125.00 | J123: Profit of Rs.16.50/- | K123: =H123-F123 -> 16.50 | L123: =K123/F123 -> 15.00% | M123: Successful | N123: 2016-07-01
A124: 60 | B124: 2016-06-17 | D124: Pennar Industries Ltd | E124: Accu | F124: 44.00 | H124: 69.5 | I124: 69.50 | J124: Profit of Rs.25.50/- | K124: =H124-F124 -> 25.50 | L124: =K124/F124 -> 57.95% | M124: Successful | N124: 2017-08-30
A125: 61 | B125: 2016-06-28 | D125: EVEREADY | E125: Accu | F125: 262.50 | H125: 340 | I125: 333.00 | J125: Profit of Rs.77.50/- | K125: 77.50 | L125: 29.52% | M125: Successful | N125: 2017-10-09
A126: 62 | B126: 2016-06-28 | D126: FIEMIND | E126: Accu | F126: 840.00 | H126: 1230 | I126: 1230.00 | J126: Target Achieved | K126: 390.00 | L126: 46.43% | M126: Successful | N126: 2016-10-06
A127: 63 | B127: 2016-07-05 | D127: Bajaj Corp Ltd | E127: Accu | F127: 395 | H127: =(468.5+342.5)/2 -> 405.50 | I127: 510.00 | J127: Profit of Rs.10.50/- | K127: =H127-F127 -> 10.50 | L127: =K127/F127 -> 3% | M127: Neutral | N127: 2019-05-21
A128: 64 | B128: 2016-08-02 | D128: GPPL $ | E128: Buy | F128: =169.5-12.8 -> 156.7 | H128: 77.00 | I128: 198-200 | J128: Loss of Rs.79.7/- | K128: -79.70 | L128: -50.86% | M128: Unsuccessful | N128: 2019-02-26
A129: 65 | B129: 2016-08-04 | D129: WONDERLA HOLIDAYS LTD | E129: Accu | F129: 400 | H129: 305.00 | I129: 475.00 | J129: Loss of Rs.95/- | K129: -95.00 | L129: -23.75% | M129: Unsuccessful | N129: 2019-05-21
A130: 66 | B130: 2016-08-11 | D130: CAMLINFINE | E130: Accu | F130: 86.50 | H130: 130 | I130: 130.00 | J130: Profit of Rs.43.50/- | K130: 43.50 | L130: 50.29% | M130: Successful | N130: 2017-12-22
A131: 67 | B131: 2016-08-18 | D131: GRANULES | E131: Accu | F131: 133.5 | H131: 126.50 | I131: 178.00 | J131: Exit | K131: -7.00 | L131: -5.24% | M131: Unsuccessful | N131: 2016-09-02
A132: 68 | B132: 2016-08-31 | D132: VA TECH WABAG | E132: Accu | F132: 560.00 | H132: 725 | I132: 725.00 | J132: Target Achieved | K132: 165.00 | L132: 29.46% | M132: Successful | N132: 2016-03-27
A133: 69 | B133: 2016-09-01 | D133: SKIPPER LIMITED | E133: Accu | F133: 160.50 | H133: 210 | I133: 210.00 | J133: Target Achieved | K133: 49.50 | L133: 30.84% | M133: Successful | N133: 2017-05-16
A134: 70 | B134: 2016-10-03 | D134: IFBIND | E134: Accu | F134: 430.00 | H134: 596 | I134: 575.00 | J134: Profit of Rs.166/- | K134: 166.00 | L134: 38.60% | M134: Successful | N134: 2017-02-03
A135: 71 | B135: 2016-10-14 | D135: ASIANTILES | E135: Accu | F135: 280.00 | H135: 345 | I135: 345.00 | J135: Target Achieved | K135: =H135-F135 -> 65.00 | L135: =K135/F135 -> 23.21% | M135: Successful | N135: 2017-03-20
A136: 72 | B136: 2016-10-14 | D136: DEEPIND | E136: Accu | F136: 245.00 | H136: 325.5 | I136: 330.00 | J136: Profit of Rs.80.5/- | K136: 80.50 | L136: =K136/F136 -> 32.86% | M136: Successful | N136: 2017-02-03
A137: 73 | B137: 2016-10-17 | D137: DCBBANK | E137: Accu | F137: 125.00 | H137: 160 | I137: 160.00 | J137: Target Achieved | K137: 35.00 | L137: 28.00% | M137: Successful | N137: 2017-03-09
A138: 74 | B138: 2016-10-17 | D138: ORIENTREF | E138: Accu | F138: 114.00 | H138: 145 | I138: 145.00 | J138: Target Achieved | K138: 31.00 | L138: =K138/F138 -> 27.19% | M138: Successful | N138: 2017-05-04
A139: 75 | B139: 2016-10-17 | D139: GANECOS | E139: Accu | F139: 212.00 | H139: 280 | I139: 276.00 | J139: Profit of Rs.68/- | K139: 68.00 | L139: =K139/F139 -> 32.08% | M139: Successful | N139: 2017-05-03
A140: 76 | B140: 2016-11-04 | D140: NBCC | E140: Accu | F140: 155.00 | H140: 210 | I140: 210.00 | J140: Profit of Rs.55/- | K140: 55.00 | L140: =K140/F140 -> 35.48% | M140: Successful | N140: 2017-07-28
A141: 77 | B141: 2016-12-06 | D141: PRECAM | E141: Accu | F141: 150.5 | H141: 72.50 | I141: 174.00 | J141: Loss of Rs.78/- | K141: -78.00 | L141: -51.83% | M141: Unsuccessful | N141: 2018-08-21
A142: 78 | B142: 2016-12-08 | D142: INFRATEL | E142: Accu | F142: 380.00 | H142: 478 | I142: 468.00 | J142: Target Achieved | K142: =H142-F142 -> 98.00 | L142: =K142/F142 -> 25.79% | M142: Successful | N142: 2017-10-17
A143: 79 | B143: 2016-12-30 | D143: GODREJPROP | E143: Accu | F143: 305.00 | H143: 375 | I143: 375.00 | J143: Target Achieved | K143: =H143-F143 -> 70.00 | L143: =K143/F143 -> 22.95% | M143: Successful | N143: 2017-02-02
A144: 80 | B144: 2017-01-04 | D144: DEEPAKNTR | E144: Accu | F144: 99.50 | H144: 158 | I144: 158.00 | J144: Target Achieved | K144: =H144-F144 -> 58.50 | L144: =K144/F144 -> 58.79% | M144: Successful | N144: 2017-06-12
A145: 81 | B145: 2017-01-04 | D145: DEEPAKNTR | E145: Accu | F145: 99.50 | H145: 158 | I145: 158.00 | J145: Target Achieved | K145: 58.50 | L145: 58.79% | M145: Successful | N145: 2017-06-12
A146: 82 | B146: 2017-02-20 | D146: RECLTD | E146: Accu | F146: 140.50 | H146: 220 | I146: 220.00 | J146: Target Achieved | K146: =H146-F146 -> 79.50 | L146: =K146/F146 -> 56.58% | M146: Successful | N146: 2017-05-09
A147: 83 | B147: 2017-02-20 | D147: SUBROS | E147: Accu | F147: 202.50 | H147: 234 | I147: 234.00 | J147: Target Achieved | K147: 31.50 | L147: 15.56% | M147: Successful | N147: 2017-04-11
A148: 84 | B148: 2017-03-24 | D148: VRLLOG | E148: Accu | F148: 300.50 | H148: 417.5 | I148: 420.00 | J148: Profit of Rs.117/- | K148: =H148-F148 -> 117.00 | L148: =K148/F148 -> 38.94% | M148: Successful | N148: 2017-12-01
A149: 85 | B149: 2017-03-24 | D149: FIEMIND | E149: Accu | F149: 850.00 | H149: 1042.5 | I149: 1023.00 | J149: Profit of Rs 192.50/- | K149: 192.50 | L149: 22.65% | M149: Successful | N149: 2017-04-05
A150: 86 | B150: 2017-04-05 | D150: RATNAMANI | E150: Accu | F150: 785.00 | H150: 930 | I150: 920.00 | J150: Profit of Rs.145/- | K150: =H150-F150 -> 145.00 | L150: =K150/F150 -> 18.47% | M150: Successful | N150: 2017-08-29
A151: 87 | B151: 2017-04-06 | D151: ZEEMEDIA | E151: Accu | F151: 40 | H151: 13.10 | I151: 60.00 | J151: Loss of Rs.26.9/- | K151: -26.90 | L151: -67.25% | M151: Unsuccessful | N151: 2018-02-07
A152: 88 | B152: 2017-04-12 | D152: DABUR | E152: Accu | F152: 289.50 | H152: 354 | I152: 360.00 | J152: Profit of Rs.64.5/- | K152: =H152-F152 -> 64.50 | L152: =K152/F152 -> 22.28% | M152: Successful | N152: 2017-11-01
A153: 89 | B153: 2017-04-20 | D153: KPRMILL | E153: Accu | F153: 700.00 | H153: 840 | I153: 840.00 | J153: Profit of Rs.140/- | K153: 140.00 | L153: 20.00% | M153: Successful | N153: 2017-06-07
A154: 90 | B154: 2017-06-01 | D154: ESSELPACK | E154: Accu | F154: 130.00 | H154: 144.25 | I154: 170.00 | J154: Profit of Rs.14.25/- | K154: 14.25 | L154: 10.96% | M154: Successful | N154: 2019-07-29
A155: 91 | B155: 2017-06-15 | D155: KEI | E155: Accu | F155: 214.50 | H155: 262 | I155: 262.00 | J155: Profit of Rs.47.5/- | K155: 47.50 | L155: 22.14% | M155: Successful | N155: 2017-08-30
A156: 92 | B156: 2017-07-17 | D156: MAYURUNIQ | E156: Accu | F156: 370.00 | H156: 447.5 | I156: 450.00 | J156: Target Achieved | K156: 77.50 | L156: 20.95% | M156: Successful | N156: 2017-10-27
A157: 93 | B157: 2017-07-27 | D157: RAMCOCEM | E157: Accu | F157: 657.50 | H157: 825 | I157: 820.00 | J157: Target Achieved | K157: 167.50 | L157: 25.48% | M157: Successful | N157: 2017-12-21
A158: 94 | B158: 2017-08-17 | D158: FINPIPE | E158: Accu | F158: 605.00 | H158: 750 | I158: 750.00 | J158: Profit of Rs.145/- | K158: 145.00 | L158: 23.97% | M158: Successful | N158: 2017-10-19
A159: 95 | B159: 2017-09-01 | D159: SHK | E159: Accu | F159: 255 | H159: 217.25 | I159: 320.00 | J159: Loss of Rs.37.75/- | K159: -37.75 | L159: -15% | M159: Unsuccessful | N159: 2019-07-15
A160: 96 | B160: 2017-09-19 | D160: SKIPPER | E160: Accu | F160: 215.00 | H160: 258 | I160: 258.00 | J160: Target Achieved | K160: 43.00 | L160: 20.00% | M160: Successful | N160: 2017-11-01
A161: 97 | B161: 2017-09-19 | D161: SKIPPER | E161: Accu | F161: 215.00 | H161: 258 | I161: 258.00 | J161: Target Achieved | K161: 43.00 | L161: 20.00% | M161: Successful | N161: 2017-11-01
A162: 98 | B162: 2017-09-20 | D162: CAMLINFINE$ | E162: Accu | F162: 75.00 | H162: 90 | I162: 90.00 | J162: Profit of Rs.15.00/- | K162: =H162-F162 -> 15.00 | L162: =K162/F162 -> 20.00% | M162: Successful | N162: 2017-10-11
A163: 99 | B163: 2017-10-03 | D163: GNA | E163: Accu | F163: 315.00 | H163: 392 | I163: 384.00 | J163: Profit of Rs.77/- | K163: 77.00 | L163: 24.44% | M163: Successful | N163: 2017-10-09
A164: 100 | B164: 2017-10-05 | D164: NOCIL | E164: Accu | F164: 145.00 | H164: 179 | I164: 180.00 | J164: Profit of Rs.34/- | K164: 34.00 | L164: 23.45% | M164: Successful | N164: 2017-10-17
A165: 101 | B165: 2017-10-06 | D165: CENTURYPLY | E165: Accu | F165: 256.00 | H165: 323 | I165: 320.00 | J165: Target Achieved | K165: 67.00 | L165: 26.17% | M165: Successful | N165: 2017-11-28
A166: 102 | B166: 2017-10-09 | D166: EIHOTEL | E166: Accu | F166: 137.50 | H166: 184 | I166: 183.00 | J166: Profit of Rs.46.5/- | K166: 46.50 | L166: 33.82% | M166: Successful | N166: 2018-01-08
A167: 103 | B167: 2017-10-10 | D167: NRBBEARING | E167: Accu | F167: 125.50 | H167: 158 | I167: 155.00 | J167: Profit of Rs.32.5/- | K167: 32.50 | L167: 25.90% | M167: Successful | N167: 2017-11-28
A168: 104 | B168: 2017-10-10 | D168: BOROSIL | E168: Accu | F168: 895.00 | H168: 1122.5 | I168: 1078.00 | J168: Profit of Rs.227.5/- | K168: 227.50 | L168: 25.42% | M168: Successful | N168: 2018-01-17
A169: 105 | B169: 2017-10-12 | D169: CYIENT | E169: Accu | F169: 525.00 | H169: 629 | I169: 629.00 | J169: Target Achieved | K169: 104.00 | L169: 19.81% | M169: Successful | N169: 2018-01-19
A170: 106 | B170: 2017-11-07 | D170: HATSUN | E170: Accu | F170: 740.00 | H170: 892.5 | I170: 900.00 | J170: Profit of Rs.152.5/- | K170: =H170-F170 -> 152.50 | L170: =K170/F170 -> 20.61% | M170: Successful | N170: 2017-11-13
A171: 107 | B171: 2017-12-04 | D171: SANGHIIND | E171: Accu | F171: 118.50 | H171: 143.5 | I171: 145.00 | J171: Profit of Rs.25/- | K171: =H171-F171 -> 25.00 | L171: =K171/F171 -> 21.10% | M171: Successful | N171: 2017-12-28
A172: 108 | B172: 2017-12-21 | D172: KAJARIACER | E172: Accu | F172: 715 | H172: 500.00 | I172: 872.00 | J172: Loss of Rs.215/- | K172: =H172-F172 -> -215.00 | L172: =K172/F172 -> -30.07% | M172: Unsuccessful | N172: 2019-07-24
A173: 109 | B173: 2017-12-29 | D173: GNA | E173: Accu | F173: 435.00 | H173: 542.5 | I173: 539.00 | J173: Target Achieved | K173: 107.50 | L173: 24.71% | M173: Successful | N173: 2018-04-16
A174: 110 | B174: 2017-12-29 | D174: ZENSARTECH | E174: Accu | F174: 885.00 | H174: 1090 | I174: 1084.00 | J174: Target Achieved | K174: 205.00 | L174: 23.16% | M174: Successful | N174: 2018-04-23
A175: 111 | B175: 2018-04-02 | D175: EVERESTIND | E175: Accu | F175: 478.50 | H175: 442 | I175: 613.00 | J175: Loss of Rs.36.50 /- | K175: =H175-F175 -> -36.50 | L175: =K175/F175 -> -7.63% | M175: Unsuccessful | N175: 2019-10-24
A176: 112 | B176: 2018-04-04 | D176: GPPL$ | E176: Accu | F176: =141.5-7.3 -> 134.2 | H176: 77.00 | I176: 180.00 | J176: Loss of Rs.57.2/- | K176: =H176-F176 -> -57.20 | L176: =K176/F176 -> -42.62% | M176: Unsuccessful | N176: 2019-02-26
A177: 113 | B177: 2018-04-19 | D177: MANPASAND | E177: Accu | F177: 430 | H177: 220.00 | I177: 537.00 | J177: Loss of Rs.210/- | K177: =H177-F177 -> -210.00 | L177: =K177/F177 -> -48.84% | M177: Unsuccessful | N177: 2018-06-01
A178: 114 | B178: 2018-04-30 | D178: HEIDELBERG | E178: Accu | F178: 153.5 | H178: 196 | I178: 196.00 | J178: Profit of Rs.42.50/- | K178: =H178-F178 -> 42.50 | L178: =K178/F178 -> 27.69% | M178: Successful | N178: 2019-05-20
A179: 115 | B179: 2018-07-25 | D179: ZEEMEDIA | E179: Accu | F179: 27.5 | H179: 13.10 | I179: 60.00 | J179: Loss of Rs.14.40/- | K179: -14.40 | L179: -52.36% | M179: Unsuccessful | N179: 2018-02-07
A180: 116 | B180: 2018-08-06 | D180: GABRIEL | E180: Accu | F180: 148.5 | H180: 102 | I180: 182.00 | J180: Loss of Rs.46.50/- | K180: =H180-F180 -> -46.50 | L180: =K180/F180 -> -31.31% | M180: Unsuccessful | N180: 2019-07-15
A181: 117 | B181: 2018-08-23 | D181: INDIANHUME | E181: Accu | F181: 285 | H181: 355 | I181: 364.00 | J181: Profit of Rs.70/- | K181: 70.00 | L181: 24.56% | M181: Successful | N181: 2018-12-21
A182: 118 | B182: 2018-08-29 | D182: GRINDWELL | E182: Accu | F182: 525 | H182: 585 | I182: 635.00 | J182: Profit of Rs.60- | K182: =H182-F182 -> 60.00 | L182: =K182/F182 -> 11.43% | M182: Successful | N182: 2019-07-16
A183: 119 | B183: 2018-10-22 | D183: FINPIPE | E183: Accu | F183: 475 | H183: 574 | I183: 570.00 | J183: Target Achieved | K183: 99.00 | L183: 20.84% | M183: Successful | N183: 2018-10-30
A184: 120 | B184: 2018-10-24 | D184: GULFOILLUB | E184: Accu | F184: 707.5 | H184: 872 | I184: 872.00 | J184: Target Achieved | K184: 164.50 | L184: 23.25% | M184: Successful | N184: 2019-01-17
A185: 121 | B185: 2018-10-25 | D185: DBCORP | E185: Accu | F185: 162 | H185: 204 | I185: 209.00 | J185: Profit of Rs.42/- | K185: 42.00 | L185: 25.93% | M185: Successful | N185: 2019-03-15
A186: 122 | B186: 2018-10-26 | D186: RITES | E186: Accu | F186: 240 | H186: 297 | I186: 297.00 | J186: Target Achieved | K186: 57.00 | L186: 23.75% | M186: Successful | N186: 2018-11-13
A187: 123 | B187: 2018-12-05 | D187: BRIGADE | E187: Accu | F187: 202.5 | H187: 255 | I187: 252.00 | J187: Target Achieved | K187: 52.50 | L187: 25.93% | M187: Successful | N187: 2019-03-18 | R187: V
A188: 124 | B188: 2018-12-31 | D188: JKCEMENT | E188: Accu | F188: 710 | H188: 866 | I188: 866.00 | J188: Target Achieved | K188: 156.00 | L188: 21.97% | M188: Successful | N188: 2019-03-29 | R188: V
A189: 125 | B189: 2019-02-26 | D189: MARICO | E189: Accu | F189: 337.25 | H189: 398.5 | I189: 411.00 | J189: Profit of Rs.61.25/- | K189: 61.25 | L189: 18.16% | M189: Successful | N189: 2019-10-22 | R189: V
A190: 126 | B190: 2019-04-04 | D190: ITDCEM | E190: Accu | F190: 130 | H190: 65 | I190: 158.00 | J190: Loss of Rs.65 /- | K190: -65.00 | L190: -50.00% | M190: Unsuccessful | N190: 2019-09-18 | R190: K
A191: 127 | B191: 2017-10-09 | D191: RECLTD | E191: Accu | F191: 141.5 | H191: 183.5 | I191: 210.00 | J191: Profit of Rs.42/- | K191: 42.00 | L191: 29.68% | M191: Successful | N191: 2017-11-03 | R191: K
A192: 128 | B192: 2017-12-05 | D192: ALLCARGO | E192: Accu | F192: 172.00 | H192: 155.25 | I192: 230.00 | J192: Loss of Rs.16.75/- | K192: -16.75 | L192: -9.74% | M192: Unsuccessful | N192: 2019-11-18 | R192: K
A193: 129 | B193: 2018-10-25 | D193: GODREJCP | E193: Accu | F193: 698.5 | H193: 890 | I193: 890.00 | J193: Profit of Rs.191.50/- | K193: 191.50 | L193: 27.42% | M193: Successful | N193: 2021-05-12 | R193: V
A194: 130 | B194: 2017-05-22 | D194: GREAVESCOT | E194: Accu | F194: 127.6 | H194: 138 | I194: 190.00 | J194: Profit of Rs.10.40 | K194: 10.40 | L194: 8.15% | M194: Successful | N194: 2019-11-05 | R194: K
A195: 131 | B195: 2018-02-27 | D195: MOLDTKPAC | E195: Accu | F195: 317 | H195: 382.5 | I195: 398.00 | J195: Profit of Rs.65.5 | K195: 65.50 | L195: 20.66% | M195: Successful | N195: 2021-02-11 | R195: K
A196: 132 | B196: 2018-03-05 | D196: LICHSGFIN | E196: Accu | F196: =510-14.4 -> 495.60 | H196: 350 | I196: 672.00 | J196: Loss of Rs.145.60/- | K196: -145.60 | L196: -29.38% | M196: Unsuccessful | N196: 2020-02-26 | R196: V
A197: 133 | B197: 2018-05-17 | D197: PHILIPCARB | E197: Accu | F197: 230.30 | H197: 102.5 | I197: 348.00 | J197: Loss of Rs.127.80/- | K197: -127.80 | L197: -55.49% | M197: Unsuccessful | N197: 2020-03-06 | R197: V
A198: 134 | B198: 2018-06-07 | D198: KEC | E198: Accu | F198: =342.5-5.1 -> 337.4 | H198: 412.5 | I198: 439.00 | J198: Profit of Rs.75.10 | K198: 75.10 | L198: 22.26% | M198: Successful | N198: 2021-02-03 | R198: K
A199: 135 | B199: 2018-07-04 | D199: ASHOKLEY | E199: Accu | F199: =127.5-5.53 -> 121.97 | H199: 122.50 | I199: 170.00 | J199: Profit of Rs.0.53/- | K199: 0.53 | L199: 0% | M199: Neutral | N199: 2021-08-23 | R199: V
A200: 136 | B200: 2018-07-13 | D200: FCONSUMER | E200: Accu | F200: 46.50 | H200: 17 | I200: 59.00 | J200: Loss of Rs.29.50/- | K200: -29.50 | L200: -63.44% | M200: Unsuccessful | N200: 2020-02-26 | R200: V
A201: 137 | B201: 2018-10-23 | D201: JKPAPER | E201: Accu | F201: 156.5 | H201: 207.5 | I201: 191.00 | J201: Target Achieved | K201: 51.00 | L201: 32.59% | M201: Successful | N201: 2021-06-22 | R201: V
A202: 138 | B202: 2018-12-05 | D202: CCL | E202: Accu | F202: 259.5 | H202: 320 | I202: 320.00 | J202: Target Achieved | K202: 60.50 | L202: 23.31% | M202: Successful | N202: 2021-05-07 | R202: V
A203: 139 | B203: 2018-12-05 | D203: VARROC | E203: Accu | F203: 715 | H203: 445 | I203: 840.00 | J203: Loss of Rs.270/- | K203: -270.00 | L203: -37.76% | M203: Unsuccessful | N203: 2019-12-01 | R203: V
A204: 140 | B204: 2019-01-04 | D204: MGL | E204: Accu | F204: 875 | H204: 1165 | I204: 1185.00 | J204: Profit of Rs.290/- | K204: 290.00 | L204: 33.14% | M204: Successful | N204: 2020-01-17 | R204: V
A205: 141 | B205: 2019-04-04 | D205: COCHINSHIP | E205: Accu | F205: =387-14.63 -> 372.37 | H205: 490 | I205: 490.00 | J205: Target Achieved | K205: 117.63 | L205: 31.59% | M205: Successful | N205: 2020-01-20 | R205: V
A206: 142 | B206: 2019-04-23 | D206: MAHINDCIE | E206: Buy | F206: 220 | H206: 127.5 | I206: 284.00 | J206: Loss of Rs.92.50/- | K206: -92.50 | L206: -42.05% | M206: Unsuccessful | N206: 2020-03-06 | R206: V
A207: 143 | B207: 2019-06-06 | D207: RADICO | E207: Buy | F207: 332.8 | H207: 405 | I207: 419.00 | J207: Profit of Rs.72.20/- | K207: 72.20 | L207: 21.69% | M207: Successful | N207: 2020-01-30 | R207: K
A208: 144 | B208: 2019-06-25 | D208: M&MFIN | E208: Accu | F208: 386 | H208: 395.00 | I208: 452.00 | J208: Profit of Rs.9/- | K208: 9.00 | L208: 2% | M208: Neutral | N208: 2020-02-07 | R208: K
A209: 145 | B209: 2019-08-30 | D209: INDHOTEL | E209: Accu | F209: 137.5 | H209: 138.50 | I209: 190.00 | J209: Profit of Rs.1/- | K209: 1.00 | L209: 1% | M209: Neutral | N209: 2021-08-24 | R209: V
A210: 146 | B210: 2019-09-23 | D210: KNRCON | E210: Accu | F210: 235 | H210: 295 | I210: 296.00 | J210: Profit of Rs.60/- | K210: 60.00 | L210: 25.53% | M210: Successful | N210: 2020-01-14 | R210: K
A211: 147 | B211: 2019-10-14 | D211: KEC$ | E211: Accu | F211: 277.5 | H211: 333 | I211: 333.00 | J211: Profit of Rs.55.50/- | K211: 55.50 | L211: 20.00% | M211: Successful | N211: 2020-01-16 | R211: V
A212: 148 | B212: 2019-10-14 | D212: MGL$ | E212: Accu | F212: 930 | H212: 1165 | I212: 1200.00 | J212: Profit of Rs.235/- | K212: 235.00 | L212: 25.27% | M212: Successful | N212: 2020-01-17 | R212: K
A213: 149 | B213: 2019-10-15 | D213: JKPAPER$ | E213: Accu | F213: 111.00 | H213: 141 | I213: 141.00 | J213: Profit of Rs.30/- | K213: 30.00 | L213: 27.03% | M213: Successful | N213: 2021-05-12 | R213: K
A214: 150 | B214: 2019-10-15 | D214: RADICO$ | E214: Accu | F214: 296.00 | H214: 370 | I214: 370.00 | J214: Target Achieved | K214: =H214-F214 -> 74.00 | L214: =K214/F214 -> 25.00% | M214: Successful | N214: 2020-01-23 | R214: K
A215: 151 | B215: 2019-10-16 | D215: MOLDTKPAC$ | E215: Accu | F215: 300.00 | H215: 382.5 | I215: 344.00 | J215: Profit of Rs.82.5/- | K215: 82.50 | L215: 27.50% | M215: Successful | N215: 2021-02-11 | R215: K
A216: 152 | B216: 2020-01-02 | D216: PSPPROJECT | E216: Accu | F216: 495.00 | H216: 595 | I216: 590.00 | J216: Profit of Rs.100/- | K216: 100.00 | L216: 20.20% | M216: Successful | N216: 2022-01-28 | R216: K
A217: 153 | B217: 2020-05-15 | D217: BEL | E217: Accu | F217: 67.50 | H217: 86 | I217: 86.00 | J217: Profit of Rs.18.50/- | K217: 18.50 | L217: 27.41% | M217: Successful | N217: 2020-06-26 | R217: K
A218: 154 | B218: 2020-07-23 | D218: RITES | E218: Accu | F218: 231.00 | H218: 281 | I218: 281.00 | J218: Target Achieved | K218: 50.00 | L218: 21.65% | M218: Successful | N218: 2021-06-11 | R218: K
A219: 155 | B219: 2020-09-18 | D219: IEX | E219: Accu | F219: 206 | H219: 248 | I219: 248.00 | J219: Target Achieved | K219: 42.00 | L219: 20.39% | M219: Successful | N219: 2021-01-18 | R219: K
A220: 156 | B220: 2020-11-05 | D220: IEX | E220: Accu | F220: 182.5 | H220: 248 | I220: 248.00 | J220: Target Achieved | K220: 65.50 | L220: 35.89% | M220: Successful | N220: 2021-01-18 | R220: K
A221: 157 | B221: 2020-11-05 | D221: CCL | E221: Accu | F221: 247.5 | H221: 320 | I221: 320.00 | J221: Target Achieved | K221: 72.50 | L221: 29.29% | M221: Successful | N221: 2021-05-07 | R221: K
A222: 158 | B222: 2020-11-05 | D222: POLYCAB | E222: Accu | F222: 925.00 | H222: 1095 | I222: 1093.00 | J222: Profit of Rs.170/- | K222: 170.00 | L222: 18.38% | M222: Successful | N222: 2021-01-05 | R222: K
A223: 159 | B223: 2020-11-05 | D223: COCHINSHIP | E223: Accu | F223: 332.50 | H223: 393 | I223: 406.00 | J223: Profit of Rs.60.50/- | K223: 60.50 | L223: 18.20% | M223: Successful | N223: 2021-03-01 | R223: K
A224: 160 | B224: 2020-11-06 | D224: RITES | E224: Accu | F224: 231.00 | H224: 281 | I224: 281.00 | J224: Target Achieved | K224: 50.00 | L224: 21.65% | M224: Successful | N224: 2021-06-11 | R224: K
A225: 161 | B225: 2020-12-22 | D225: MIDHANI | E225: Accu | F225: 190.00 | H225: 239 | I225: 239.00 | J225: Profit of Rs.49/- | K225: 49.00 | L225: 25.79% | M225: Successful | N225: 2022-10-10 | R225: K
A226: 162 | B226: 2021-03-03 | D226: PSPPROJECT | E226: Accu | F226: 495.00 | H226: 595 | I226: 590.00 | J226: Profit of Rs.100/- | K226: 100.00 | L226: 20.20% | M226: Successful | N226: 2022-01-28 | R226: K
A227: 163 | B227: 2021-03-19 | D227: COCHINSHIP | E227: Accu | F227: 355.00 | H227: 422.5 | I227: 420.00 | J227: Profit of Rs.67.5/- | K227: 67.50 | L227: 19.01% | M227: Successful | N227: 2021-06-14 | R227: K
A228: 164 | B228: 2021-04-09 | D228: ANURAS | E228: Accu | F228: 555.00 | H228: 663 | I228: 663.00 | J228: Profit of Rs.108/- | K228: 108.00 | L228: 19.46% | M228: Successful | N228: 2021-05-05 | R228: K
... 25 more rows
